{"text_format":"1","workbook":"xlsx","n_sheets":9,"sheets":["Materiál_1","Materiál_2","Materiál_3","Materiál_4","Materiál_5","Materiál_6","Materiál_7","Materiál_8","Souhrn"],"not_rendered":{"charts":0,"images":26,"macros":1,"external_links":0,"defined_names":17,"comments":2,"pivot_tables":0},"unopened":[],"bounds":{"document_bytes":16777216,"sheet_cells":100000,"rows_first":2000,"rows_last":500,"rows_between":2000,"halvings":0,"cell_chars":16384,"cell_head_chars":4096},"cells_cut":0,"cells_raw":0,"read":"whole","date_system":"1900"}

{"sheet":"Materiál_1","index":0,"n_rows":433,"n_cols":28,"rows_kept":433,"cut":false,"hidden":false,"merged":[[431,24,431,25],[432,24,432,25],[12,2,12,3],[13,2,13,3],[420,18,432,21],[420,24,420,25],[421,24,421,25],[422,24,422,25],[423,24,423,25],[424,24,424,25],[425,24,425,25],[426,24,426,25],[427,24,427,25],[428,24,428,25],[18,0,19,0],[19,6,19,9],[12,4,12,9],[429,24,429,25],[430,24,430,25],[10,6,10,14],[16,2,16,9],[16,13,16,14],[13,4,13,9],[1,0,1,15],[3,0,3,15],[7,6,7,14],[8,6,8,14],[9,6,9,14],[12,13,12,15],[13,13,13,15]]}
[]
["!!! UVÁDĚJTE ROZMĚRY VČ. HRAN, PŘIČEMŽ DODRŽTE ZNAČENÍ UVEDENÉ VEDLE TABULKY !!!"]
[]
["!!! STANDARTNĚ OLEPUJEME TRANSPARENTNÍM POLYURETANOVÝM LEPIDLEM !!!"]
[]
[]
[null,null,null,null,null,null,null,null,null,null,null,null,null,null,null,null,null,1,"znamená ABS 0,5"]
[null,"Dodavatel:",null,null,null,null,"Označení zakázky:",null,null,null,null,null,null,null,null,null,null,2,"znamená ABS 2"]
[null,"NODO ART, s.r.o.",null,null,null,null,"Odběratel:",null,null,null,null,null,null,null,null,null,null,3,"znamená ABS 42/0,5"]
[null,"tel. +420 773 236 200",null,null,null,null,"tel:",null,null,null,null,null,null,null,null,null,null,4,"znamená ABS 42/2"]
[null,"e-mail: dubovecky@nodo.cz",null,null,null,null,"e - mail :",null,null,null,null,null,null,null,null,null,null,5,"znamená ABS 22/1"]
[null,null,null,null,null,null,null,null,null,null,null,null,null,null,null,null,null,6,"znamená ABS 42/1"]
[null,"OBYČEJNÉ LEPIDLO \"EVA\"","DOPRAVA          \"ZÁVOZ\"",null,"NEBALIT NA PALETU",null,null,null,null,null,null,null,null,"UVOLŇOVACÍ ŘEZ"]
[]
[]
[]
[null,"Druh materiálu:",null,null,null,null,null,null,null,null,null,null,null,null,null,"BÍLÉ LEPIDLO"]
[]
["P.č.",null,"X1, X2","Y1, Y2",null,null,"X1","X2","Y1","Y2",null,null,null,null,null,null,null,null,null,null,"ABS 0,5","ABS 2","ABS 0,5","ABS 2","ABS 1","ABS 42/1","zesilování","sdružené formáty"]
[null,"Název","délka                             (po vláknech) (mm)","šířka                                        (napříč vláknům) (mm)","počet (ks)","orientace lét","olepování",null,null,null,null,null,null,"zesilování","sdružené formáty","Poznámka",null,null,null,"m2",1,2,3,4,5,6,"m2","m2"]
[1,null,null,null,null,null,null,null,null,null,null,null,null,null,null,null,null,null,null,{"$f":"(C21*D21*E21)/1000000","v":0},{"$f":"((((IF($G21=U$20,$G21*$C21,\"0\"))+(IF($H21=U$20,$H21*$C21,\"0\"))+(IF($I21=U$20,$I21*$D21,\"0\"))+(IF($J21=U$20,$J21*$D21,\"0\")))*$E21)/1000)/U$20","v":0},0,0,0,0,0,{"$f":"IF(N21=\"\",0,(C21*D21*E21)/1000000)","v":0},{"$f":"IF(O21=\"\",0,(C21*D21*E21)/1000000)","v":0}]
[2,null,null,null,null,null,null,null,null,null,null,null,null,null,null,null,null,null,null,0,0,0,0,0,0,0,{"$f":"IF(N22=\"\",0,(C22*D22*E22)/1000000)","v":0},{"$f":"IF(O22=\"\",0,(C22*D22*E22)/1000000)","v":0}]
[3,null,null,null,null,null,null,null,null,null,null,null,null,null,null,null,null,null,null,0,0,0,0,0,0,0,0,0]
[4,null,null,null,null,null,null,null,null,null,null,null,null,null,null,null,null,null,null,0,0,0,0,0,0,0,0,0]
[5,null,null,null,null,null,null,null,null,null,null,null,null,null,null,null,null,null,null,0,0,0,0,0,0,0,0,0]
[6,null,null,null,null,null,null,null,null,null,null,null,null,null,null,null,null,null,null,0,0,0,0,0,0,0,0,0]
[7,null,null,null,null,null,null,null,null,null,null,null,null,null,null,null,null,null,null,0,0,0,0,0,0,0,0,0]
[8,null,null,null,null,null,null,null,null,null,null,null,null,null,null,null,null,null,null,0,0,0,0,0,0,0,0,0]
[9,null,null,null,null,null,null,null,null,null,null,null,null,null,null,null,null,null,null,0,0,0,0,0,0,0,0,0]
[10,null,null,null,null,null,null,null,null,null,null,null,null,null,null,null,null,null,null,0,0,0,0,0,0,0,0,0]
[11,null,null,null,null,null,null,null,null,null,null,null,null,null,null,null,null,null,null,0,0,0,0,0,0,0,0,0]
[12,null,null,null,null,null,null,null,null,null,null,null,null,null,null,null,null,null,null,0,0,0,0,0,0,0,0,0]
[13,null,null,null,null,null,null,null,null,null,null,null,null,null,null,null,null,null,null,0,0,0,0,0,0,0,0,0]
[14,null,null,null,null,null,null,null,null,null,null,null,null,null,null,null,null,null,null,0,0,0,0,0,0,0,0,0]
[15,null,null,null,null,null,null,null,null,null,null,null,null,null,null,null,null,null,null,0,0,0,0,0,0,0,0,0]
[16,null,null,null,null,null,null,null,null,null,null,null,null,null,null,null,null,null,null,0,0,0,0,0,0,0,0,0]
[17,null,null,null,null,null,null,null,null,null,null,null,null,null,null,null,null,null,null,0,{"$f":"((((IF($G37=U$20,$G37*$C37,\"0\"))+(IF($H37=U$20,$H37*$C37,\"0\"))+(IF($I37=U$20,$I37*$D37,\"0\"))+(IF($J37=U$20,$J37*$D37,\"0\")))*$E37)/1000)/U$20","v":0},0,0,0,0,0,0,0]
[18,null,null,null,null,null,null,null,null,null,null,null,null,null,null,null,null,null,null,0,0,0,0,0,0,0,0,0]
[19,null,null,null,null,null,null,null,null,null,null,null,null,null,null,null,null,null,null,0,0,0,0,0,0,0,0,0]
[20,null,null,null,null,null,null,null,null,null,null,null,null,null,null,null,null,null,null,0,0,0,0,0,0,0,0,0]
[21,null,null,null,null,null,null,null,null,null,null,null,null,null,null,null,null,null,null,0,0,0,0,0,0,0,0,0]
[22,null,null,null,null,null,null,null,null,null,null,null,null,null,null,null,null,null,null,0,0,0,0,0,0,0,0,0]
[23,null,null,null,null,null,null,null,null,null,null,null,null,null,null,null,null,null,null,0,0,0,0,0,0,0,0,0]
[24,null,null,null,null,null,null,null,null,null,null,null,null,null,null,null,null,null,null,0,0,0,0,0,0,0,0,0]
[25,null,null,null,null,null,null,null,null,null,null,null,null,null,null,null,null,null,null,0,0,0,0,0,0,0,0,0]
[26,null,null,null,null,null,null,null,null,null,null,null,null,null,null,null,null,null,null,0,0,0,0,0,0,0,0,0]
[27,null,null,null,null,null,null,null,null,null,null,null,null,null,null,null,null,null,null,0,0,0,0,0,0,0,0,0]
[28,null,null,null,null,null,null,null,null,null,null,null,null,null,null,null,null,null,null,0,0,0,0,0,0,0,0,0]
[29,null,null,null,null,null,null,null,null,null,null,null,null,null,null,null,null,null,null,0,0,0,0,0,0,0,0,0]
[30,null,null,null,null,null,null,null,null,null,null,null,null,null,null,null,null,null,null,0,0,0,0,0,0,0,0,0]
[31,null,null,null,null,null,null,null,null,null,null,null,null,null,null,null,null,null,null,0,0,0,0,0,0,0,0,0]
[32,null,null,null,null,null,null,null,null,null,null,null,null,null,null,null,null,null,null,0,0,0,0,0,0,0,0,0]
[33,null,null,null,null,null,null,null,null,null,null,null,null,null,null,null,null,null,null,0,{"$f":"((((IF($G53=U$20,$G53*$C53,\"0\"))+(IF($H53=U$20,$H53*$C53,\"0\"))+(IF($I53=U$20,$I53*$D53,\"0\"))+(IF($J53=U$20,$J53*$D53,\"0\")))*$E53)/1000)/U$20","v":0},0,0,0,0,0,0,0]
[34,null,null,null,null,null,null,null,null,null,null,null,null,null,null,null,null,null,null,0,0,0,0,0,0,0,0,0]
[35,null,null,null,null,null,null,null,null,null,null,null,null,null,null,null,null,null,null,0,0,0,0,0,0,0,0,0]
[36,null,null,null,null,null,null,null,null,null,null,null,null,null,null,null,null,null,null,0,0,0,0,0,0,0,0,0]
[37,null,null,null,null,null,null,null,null,null,null,null,null,null,null,null,null,null,null,0,0,0,0,0,0,0,0,0]
[38,null,null,null,null,null,null,null,null,null,null,null,null,null,null,null,null,null,null,0,0,0,0,0,0,0,0,0]
[39,null,null,null,null,null,null,null,null,null,null,null,null,null,null,null,null,null,null,0,0,0,0,0,0,0,0,0]
[40,null,null,null,null,null,null,null,null,null,null,null,null,null,null,null,null,null,null,0,0,0,0,0,0,0,0,0]
[41,null,null,null,null,null,null,null,null,null,null,null,null,null,null,null,null,null,null,0,0,0,0,0,0,0,0,0]
[42,null,null,null,null,null,null,null,null,null,null,null,null,null,null,null,null,null,null,0,0,0,0,0,0,0,0,0]
[43,null,null,null,null,null,null,null,null,null,null,null,null,null,null,null,null,null,null,0,0,0,0,0,0,0,0,0]
[44,null,null,null,null,null,null,null,null,null,null,null,null,null,null,null,null,null,null,0,0,0,0,0,0,0,0,0]
[45,null,null,null,null,null,null,null,null,null,null,null,null,null,null,null,null,null,null,0,0,0,0,0,0,0,0,0]
[46,null,null,null,null,null,null,null,null,null,null,null,null,null,null,null,null,null,null,0,0,0,0,0,0,0,0,0]
[47,null,null,null,null,null,null,null,null,null,null,null,null,null,null,null,null,null,null,0,0,0,0,0,0,0,0,0]
[48,null,null,null,null,null,null,null,null,null,null,null,null,null,null,null,null,null,null,0,0,0,0,0,0,0,0,0]
[49,null,null,null,null,null,null,null,null,null,null,null,null,null,null,null,null,null,null,0,{"$f":"((((IF($G69=U$20,$G69*$C69,\"0\"))+(IF($H69=U$20,$H69*$C69,\"0\"))+(IF($I69=U$20,$I69*$D69,\"0\"))+(IF($J69=U$20,$J69*$D69,\"0\")))*$E69)/1000)/U$20","v":0},0,0,0,0,0,0,0]
[50,null,null,null,null,null,null,null,null,null,null,null,null,null,null,null,null,null,null,0,0,0,0,0,0,0,0,0]
[51,null,null,null,null,null,null,null,null,null,null,null,null,null,null,null,null,null,null,0,0,0,0,0,0,0,0,0]
[52,null,null,null,null,null,null,null,null,null,null,null,null,null,null,null,null,null,null,0,0,0,0,0,0,0,0,0]
[53,null,null,null,null,null,null,null,null,null,null,null,null,null,null,null,null,null,null,0,0,0,0,0,0,0,0,0]
[54,null,null,null,null,null,null,null,null,null,null,null,null,null,null,null,null,null,null,0,0,0,0,0,0,0,0,0]
[55,null,null,null,null,null,null,null,null,null,null,null,null,null,null,null,null,null,null,0,0,0,0,0,0,0,0,0]
[56,null,null,null,null,null,null,null,null,null,null,null,null,null,null,null,null,null,null,0,0,0,0,0,0,0,0,0]
[57,null,null,null,null,null,null,null,null,null,null,null,null,null,null,null,null,null,null,0,0,0,0,0,0,0,0,0]
[58,null,null,null,null,null,null,null,null,null,null,null,null,null,null,null,null,null,null,0,0,0,0,0,0,0,0,0]
[59,null,null,null,null,null,null,null,null,null,null,null,null,null,null,null,null,null,null,0,0,0,0,0,0,0,0,0]
[60,null,null,null,null,null,null,null,null,null,null,null,null,null,null,null,null,null,null,0,0,0,0,0,0,0,0,0]
[61,null,null,null,null,null,null,null,null,null,null,null,null,null,null,null,null,null,null,0,0,0,0,0,0,0,0,0]
[62,null,null,null,null,null,null,null,null,null,null,null,null,null,null,null,null,null,null,0,0,0,0,0,0,0,0,0]
[63,null,null,null,null,null,null,null,null,null,null,null,null,null,null,null,null,null,null,0,0,0,0,0,0,0,0,0]
[64,null,null,null,null,null,null,null,null,null,null,null,null,null,null,null,null,null,null,0,0,0,0,0,0,0,0,0]
[65,null,null,null,null,null,null,null,null,null,null,null,null,null,null,null,null,null,null,{"$f":"(C85*D85*E85)/1000000","v":0},{"$f":"((((IF($G85=U$20,$G85*$C85,\"0\"))+(IF($H85=U$20,$H85*$C85,\"0\"))+(IF($I85=U$20,$I85*$D85,\"0\"))+(IF($J85=U$20,$J85*$D85,\"0\")))*$E85)/1000)/U$20","v":0},0,0,0,0,0,0,0]
[66,null,null,null,null,null,null,null,null,null,null,null,null,null,null,null,null,null,null,0,0,0,0,0,0,0,{"$f":"IF(N86=\"\",0,(C86*D86*E86)/1000000)","v":0},{"$f":"IF(O86=\"\",0,(C86*D86*E86)/1000000)","v":0}]
[67,null,null,null,null,null,null,null,null,null,null,null,null,null,null,null,null,null,null,0,0,0,0,0,0,0,0,0]
[68,null,null,null,null,null,null,null,null,null,null,null,null,null,null,null,null,null,null,0,0,0,0,0,0,0,0,0]
[69,null,null,null,null,null,null,null,null,null,null,null,null,null,null,null,null,null,null,0,0,0,0,0,0,0,0,0]
[70,null,null,null,null,null,null,null,null,null,null,null,null,null,null,null,null,null,null,0,0,0,0,0,0,0,0,0]
[71,null,null,null,null,null,null,null,null,null,null,null,null,null,null,null,null,null,null,0,0,0,0,0,0,0,0,0]
[72,null,null,null,null,null,null,null,null,null,null,null,null,null,null,null,null,null,null,0,0,0,0,0,0,0,0,0]
[73,null,null,null,null,null,null,null,null,null,null,null,null,null,null,null,null,null,null,0,0,0,0,0,0,0,0,0]
[74,null,null,null,null,null,null,null,null,null,null,null,null,null,null,null,null,null,null,0,0,0,0,0,0,0,0,0]
[75,null,null,null,null,null,null,null,null,null,null,null,null,null,null,null,null,null,null,0,0,0,0,0,0,0,0,0]
[76,null,null,null,null,null,null,null,null,null,null,null,null,null,null,null,null,null,null,0,0,0,0,0,0,0,0,0]
[77,null,null,null,null,null,null,null,null,null,null,null,null,null,null,null,null,null,null,0,0,0,0,0,0,0,0,0]
[78,null,null,null,null,null,null,null,null,null,null,null,null,null,null,null,null,null,null,0,0,0,0,0,0,0,0,0]
[79,null,null,null,null,null,null,null,null,null,null,null,null,null,null,null,null,null,null,0,0,0,0,0,0,0,0,0]
[80,null,null,null,null,null,null,null,null,null,null,null,null,null,null,null,null,null,null,0,0,0,0,0,0,0,0,0]
[81,null,null,null,null,null,null,null,null,null,null,null,null,null,null,null,null,null,null,0,{"$f":"((((IF($G101=U$20,$G101*$C101,\"0\"))+(IF($H101=U$20,$H101*$C101,\"0\"))+(IF($I101=U$20,$I101*$D101,\"0\"))+(IF($J101=U$20,$J101*$D101,\"0\")))*$E101)/1000)/U$20","v":0},0,0,0,0,0,0,0]
[82,null,null,null,null,null,null,null,null,null,null,null,null,null,null,null,null,null,null,0,0,0,0,0,0,0,0,0]
[83,null,null,null,null,null,null,null,null,null,null,null,null,null,null,null,null,null,null,0,0,0,0,0,0,0,0,0]
[84,null,null,null,null,null,null,null,null,null,null,null,null,null,null,null,null,null,null,0,0,0,0,0,0,0,0,0]
[85,null,null,null,null,null,null,null,null,null,null,null,null,null,null,null,null,null,null,0,0,0,0,0,0,0,0,0]
[86,null,null,null,null,null,null,null,null,null,null,null,null,null,null,null,null,null,null,0,0,0,0,0,0,0,0,0]
[87,null,null,null,null,null,null,null,null,null,null,null,null,null,null,null,null,null,null,0,0,0,0,0,0,0,0,0]
[88,null,null,null,null,null,null,null,null,null,null,null,null,null,null,null,null,null,null,0,0,0,0,0,0,0,0,0]
[89,null,null,null,null,null,null,null,null,null,null,null,null,null,null,null,null,null,null,0,0,0,0,0,0,0,0,0]
[90,null,null,null,null,null,null,null,null,null,null,null,null,null,null,null,null,null,null,0,0,0,0,0,0,0,0,0]
[91,null,null,null,null,null,null,null,null,null,null,null,null,null,null,null,null,null,null,0,0,0,0,0,0,0,0,0]
[92,null,null,null,null,null,null,null,null,null,null,null,null,null,null,null,null,null,null,0,0,0,0,0,0,0,0,0]
[93,null,null,null,null,null,null,null,null,null,null,null,null,null,null,null,null,null,null,0,0,0,0,0,0,0,0,0]
[94,null,null,null,null,null,null,null,null,null,null,null,null,null,null,null,null,null,null,0,0,0,0,0,0,0,0,0]
[95,null,null,null,null,null,null,null,null,null,null,null,null,null,null,null,null,null,null,0,0,0,0,0,0,0,0,0]
[96,null,null,null,null,null,null,null,null,null,null,null,null,null,null,null,null,null,null,0,0,0,0,0,0,0,0,0]
[97,null,null,null,null,null,null,null,null,null,null,null,null,null,null,null,null,null,null,0,{"$f":"((((IF($G117=U$20,$G117*$C117,\"0\"))+(IF($H117=U$20,$H117*$C117,\"0\"))+(IF($I117=U$20,$I117*$D117,\"0\"))+(IF($J117=U$20,$J117*$D117,\"0\")))*$E117)/1000)/U$20","v":0},0,0,0,0,0,0,0]
[98,null,null,null,null,null,null,null,null,null,null,null,null,null,null,null,null,null,null,0,0,0,0,0,0,0,0,0]
[99,null,null,null,null,null,null,null,null,null,null,null,null,null,null,null,null,null,null,0,0,0,0,0,0,0,0,0]
[100,null,null,null,null,null,null,null,null,null,null,null,null,null,null,null,null,null,null,0,0,0,0,0,0,0,0,0]
[101,null,null,null,null,null,null,null,null,null,null,null,null,null,null,null,null,null,null,0,0,0,0,0,0,0,0,0]
[102,null,null,null,null,null,null,null,null,null,null,null,null,null,null,null,null,null,null,0,0,0,0,0,0,0,0,0]
[103,null,null,null,null,null,null,null,null,null,null,null,null,null,null,null,null,null,null,0,0,0,0,0,0,0,0,0]
[104,null,null,null,null,null,null,null,null,null,null,null,null,null,null,null,null,null,null,0,0,0,0,0,0,0,0,0]
[105,null,null,null,null,null,null,null,null,null,null,null,null,null,null,null,null,null,null,0,0,0,0,0,0,0,0,0]
[106,null,null,null,null,null,null,null,null,null,null,null,null,null,null,null,null,null,null,0,0,0,0,0,0,0,0,0]
[107,null,null,null,null,null,null,null,null,null,null,null,null,null,null,null,null,null,null,0,0,0,0,0,0,0,0,0]
[108,null,null,null,null,null,null,null,null,null,null,null,null,null,null,null,null,null,null,0,0,0,0,0,0,0,0,0]
[109,null,null,null,null,null,null,null,null,null,null,null,null,null,null,null,null,null,null,0,0,0,0,0,0,0,0,0]
[110,null,null,null,null,null,null,null,null,null,null,null,null,null,null,null,null,null,null,0,0,0,0,0,0,0,0,0]
[111,null,null,null,null,null,null,null,null,null,null,null,null,null,null,null,null,null,null,0,0,0,0,0,0,0,0,0]
[112,null,null,null,null,null,null,null,null,null,null,null,null,null,null,null,null,null,null,0,0,0,0,0,0,0,0,0]
[113,null,null,null,null,null,null,null,null,null,null,null,null,null,null,null,null,null,null,0,{"$f":"((((IF($G133=U$20,$G133*$C133,\"0\"))+(IF($H133=U$20,$H133*$C133,\"0\"))+(IF($I133=U$20,$I133*$D133,\"0\"))+(IF($J133=U$20,$J133*$D133,\"0\")))*$E133)/1000)/U$20","v":0},0,0,0,0,0,0,0]
[114,null,null,null,null,null,null,null,null,null,null,null,null,null,null,null,null,null,null,0,0,0,0,0,0,0,0,0]
[115,null,null,null,null,null,null,null,null,null,null,null,null,null,null,null,null,null,null,0,0,0,0,0,0,0,0,0]
[116,null,null,null,null,null,null,null,null,null,null,null,null,null,null,null,null,null,null,0,0,0,0,0,0,0,0,0]
[117,null,null,null,null,null,null,null,null,null,null,null,null,null,null,null,null,null,null,0,0,0,0,0,0,0,0,0]
[118,null,null,null,null,null,null,null,null,null,null,null,null,null,null,null,null,null,null,0,0,0,0,0,0,0,0,0]
[119,null,null,null,null,null,null,null,null,null,null,null,null,null,null,null,null,null,null,0,0,0,0,0,0,0,0,0]
[120,null,null,null,null,null,null,null,null,null,null,null,null,null,null,null,null,null,null,0,0,0,0,0,0,0,0,0]
[121,null,null,null,null,null,null,null,null,null,null,null,null,null,null,null,null,null,null,0,0,0,0,0,0,0,0,0]
[122,null,null,null,null,null,null,null,null,null,null,null,null,null,null,null,null,null,null,0,0,0,0,0,0,0,0,0]
[123,null,null,null,null,null,null,null,null,null,null,null,null,null,null,null,null,null,null,0,0,0,0,0,0,0,0,0]
[124,null,null,null,null,null,null,null,null,null,null,null,null,null,null,null,null,null,null,0,0,0,0,0,0,0,0,0]
[125,null,null,null,null,null,null,null,null,null,null,null,null,null,null,null,null,null,null,0,0,0,0,0,0,0,0,0]
[126,null,null,null,null,null,null,null,null,null,null,null,null,null,null,null,null,null,null,0,0,0,0,0,0,0,0,0]
[127,null,null,null,null,null,null,null,null,null,null,null,null,null,null,null,null,null,null,0,0,0,0,0,0,0,0,0]
[128,null,null,null,null,null,null,null,null,null,null,null,null,null,null,null,null,null,null,0,0,0,0,0,0,0,0,0]
[129,null,null,null,null,null,null,null,null,null,null,null,null,null,null,null,null,null,null,{"$f":"(C149*D149*E149)/1000000","v":0},{"$f":"((((IF($G149=U$20,$G149*$C149,\"0\"))+(IF($H149=U$20,$H149*$C149,\"0\"))+(IF($I149=U$20,$I149*$D149,\"0\"))+(IF($J149=U$20,$J149*$D149,\"0\")))*$E149)/1000)/U$20","v":0},0,0,0,0,0,0,0]
[130,null,null,null,null,null,null,null,null,null,null,null,null,null,null,null,null,null,null,0,0,0,0,0,0,0,{"$f":"IF(N150=\"\",0,(C150*D150*E150)/1000000)","v":0},{"$f":"IF(O150=\"\",0,(C150*D150*E150)/1000000)","v":0}]
[131,null,null,null,null,null,null,null,null,null,null,null,null,null,null,null,null,null,null,0,0,0,0,0,0,0,0,0]
[132,null,null,null,null,null,null,null,null,null,null,null,null,null,null,null,null,null,null,0,0,0,0,0,0,0,0,0]
[133,null,null,null,null,null,null,null,null,null,null,null,null,null,null,null,null,null,null,0,0,0,0,0,0,0,0,0]
[134,null,null,null,null,null,null,null,null,null,null,null,null,null,null,null,null,null,null,0,0,0,0,0,0,0,0,0]
[135,null,null,null,null,null,null,null,null,null,null,null,null,null,null,null,null,null,null,0,0,0,0,0,0,0,0,0]
[136,null,null,null,null,null,null,null,null,null,null,null,null,null,null,null,null,null,null,0,0,0,0,0,0,0,0,0]
[137,null,null,null,null,null,null,null,null,null,null,null,null,null,null,null,null,null,null,0,0,0,0,0,0,0,0,0]
[138,null,null,null,null,null,null,null,null,null,null,null,null,null,null,null,null,null,null,0,0,0,0,0,0,0,0,0]
[139,null,null,null,null,null,null,null,null,null,null,null,null,null,null,null,null,null,null,0,0,0,0,0,0,0,0,0]
[140,null,null,null,null,null,null,null,null,null,null,null,null,null,null,null,null,null,null,0,0,0,0,0,0,0,0,0]
[141,null,null,null,null,null,null,null,null,null,null,null,null,null,null,null,null,null,null,0,0,0,0,0,0,0,0,0]
[142,null,null,null,null,null,null,null,null,null,null,null,null,null,null,null,null,null,null,0,0,0,0,0,0,0,0,0]
[143,null,null,null,null,null,null,null,null,null,null,null,null,null,null,null,null,null,null,0,0,0,0,0,0,0,0,0]
[144,null,null,null,null,null,null,null,null,null,null,null,null,null,null,null,null,null,null,0,0,0,0,0,0,0,0,0]
[145,null,null,null,null,null,null,null,null,null,null,null,null,null,null,null,null,null,null,0,{"$f":"((((IF($G165=U$20,$G165*$C165,\"0\"))+(IF($H165=U$20,$H165*$C165,\"0\"))+(IF($I165=U$20,$I165*$D165,\"0\"))+(IF($J165=U$20,$J165*$D165,\"0\")))*$E165)/1000)/U$20","v":0},0,0,0,0,0,0,0]
[146,null,null,null,null,null,null,null,null,null,null,null,null,null,null,null,null,null,null,0,0,0,0,0,0,0,0,0]
[147,null,null,null,null,null,null,null,null,null,null,null,null,null,null,null,null,null,null,0,0,0,0,0,0,0,0,0]
[148,null,null,null,null,null,null,null,null,null,null,null,null,null,null,null,null,null,null,0,0,0,0,0,0,0,0,0]
[149,null,null,null,null,null,null,null,null,null,null,null,null,null,null,null,null,null,null,0,0,0,0,0,0,0,0,0]
[150,null,null,null,null,null,null,null,null,null,null,null,null,null,null,null,null,null,null,0,0,0,0,0,0,0,0,0]
[151,null,null,null,null,null,null,null,null,null,null,null,null,null,null,null,null,null,null,0,0,0,0,0,0,0,0,0]
[152,null,null,null,null,null,null,null,null,null,null,null,null,null,null,null,null,null,null,0,0,0,0,0,0,0,0,0]
[153,null,null,null,null,null,null,null,null,null,null,null,null,null,null,null,null,null,null,0,0,0,0,0,0,0,0,0]
[154,null,null,null,null,null,null,null,null,null,null,null,null,null,null,null,null,null,null,0,0,0,0,0,0,0,0,0]
[155,null,null,null,null,null,null,null,null,null,null,null,null,null,null,null,null,null,null,0,0,0,0,0,0,0,0,0]
[156,null,null,null,null,null,null,null,null,null,null,null,null,null,null,null,null,null,null,0,0,0,0,0,0,0,0,0]
[157,null,null,null,null,null,null,null,null,null,null,null,null,null,null,null,null,null,null,0,0,0,0,0,0,0,0,0]
[158,null,null,null,null,null,null,null,null,null,null,null,null,null,null,null,null,null,null,0,0,0,0,0,0,0,0,0]
[159,null,null,null,null,null,null,null,null,null,null,null,null,null,null,null,null,null,null,0,0,0,0,0,0,0,0,0]
[160,null,null,null,null,null,null,null,null,null,null,null,null,null,null,null,null,null,null,0,0,0,0,0,0,0,0,0]
[161,null,null,null,null,null,null,null,null,null,null,null,null,null,null,null,null,null,null,0,{"$f":"((((IF($G181=U$20,$G181*$C181,\"0\"))+(IF($H181=U$20,$H181*$C181,\"0\"))+(IF($I181=U$20,$I181*$D181,\"0\"))+(IF($J181=U$20,$J181*$D181,\"0\")))*$E181)/1000)/U$20","v":0},0,0,0,0,0,0,0]
[162,null,null,null,null,null,null,null,null,null,null,null,null,null,null,null,null,null,null,0,0,0,0,0,0,0,0,0]
[163,null,null,null,null,null,null,null,null,null,null,null,null,null,null,null,null,null,null,0,0,0,0,0,0,0,0,0]
[164,null,null,null,null,null,null,null,null,null,null,null,null,null,null,null,null,null,null,0,0,0,0,0,0,0,0,0]
[165,null,null,null,null,null,null,null,null,null,null,null,null,null,null,null,null,null,null,0,0,0,0,0,0,0,0,0]
[166,null,null,null,null,null,null,null,null,null,null,null,null,null,null,null,null,null,null,0,0,0,0,0,0,0,0,0]
[167,null,null,null,null,null,null,null,null,null,null,null,null,null,null,null,null,null,null,0,0,0,0,0,0,0,0,0]
[168,null,null,null,null,null,null,null,null,null,null,null,null,null,null,null,null,null,null,0,0,0,0,0,0,0,0,0]
[169,null,null,null,null,null,null,null,null,null,null,null,null,null,null,null,null,null,null,0,0,0,0,0,0,0,0,0]
[170,null,null,null,null,null,null,null,null,null,null,null,null,null,null,null,null,null,null,0,0,0,0,0,0,0,0,0]
[171,null,null,null,null,null,null,null,null,null,null,null,null,null,null,null,null,null,null,0,0,0,0,0,0,0,0,0]
[172,null,null,null,null,null,null,null,null,null,null,null,null,null,null,null,null,null,null,0,0,0,0,0,0,0,0,0]
[173,null,null,null,null,null,null,null,null,null,null,null,null,null,null,null,null,null,null,0,0,0,0,0,0,0,0,0]
[174,null,null,null,null,null,null,null,null,null,null,null,null,null,null,null,null,null,null,0,0,0,0,0,0,0,0,0]
[175,null,null,null,null,null,null,null,null,null,null,null,null,null,null,null,null,null,null,0,0,0,0,0,0,0,0,0]
[176,null,null,null,null,null,null,null,null,null,null,null,null,null,null,null,null,null,null,0,0,0,0,0,0,0,0,0]
[177,null,null,null,null,null,null,null,null,null,null,null,null,null,null,null,null,null,null,0,{"$f":"((((IF($G197=U$20,$G197*$C197,\"0\"))+(IF($H197=U$20,$H197*$C197,\"0\"))+(IF($I197=U$20,$I197*$D197,\"0\"))+(IF($J197=U$20,$J197*$D197,\"0\")))*$E197)/1000)/U$20","v":0},0,0,0,0,0,0,0]
[178,null,null,null,null,null,null,null,null,null,null,null,null,null,null,null,null,null,null,0,0,0,0,0,0,0,0,0]
[179,null,null,null,null,null,null,null,null,null,null,null,null,null,null,null,null,null,null,0,0,0,0,0,0,0,0,0]
[180,null,null,null,null,null,null,null,null,null,null,null,null,null,null,null,null,null,null,0,0,0,0,0,0,0,0,0]
[181,null,null,null,null,null,null,null,null,null,null,null,null,null,null,null,null,null,null,0,0,0,0,0,0,0,0,0]
[182,null,null,null,null,null,null,null,null,null,null,null,null,null,null,null,null,null,null,0,0,0,0,0,0,0,0,0]
[183,null,null,null,null,null,null,null,null,null,null,null,null,null,null,null,null,null,null,0,0,0,0,0,0,0,0,0]
[184,null,null,null,null,null,null,null,null,null,null,null,null,null,null,null,null,null,null,0,0,0,0,0,0,0,0,0]
[185,null,null,null,null,null,null,null,null,null,null,null,null,null,null,null,null,null,null,0,0,0,0,0,0,0,0,0]
[186,null,null,null,null,null,null,null,null,null,null,null,null,null,null,null,null,null,null,0,0,0,0,0,0,0,0,0]
[187,null,null,null,null,null,null,null,null,null,null,null,null,null,null,null,null,null,null,0,0,0,0,0,0,0,0,0]
[188,null,null,null,null,null,null,null,null,null,null,null,null,null,null,null,null,null,null,0,0,0,0,0,0,0,0,0]
[189,null,null,null,null,null,null,null,null,null,null,null,null,null,null,null,null,null,null,0,0,0,0,0,0,0,0,0]
[190,null,null,null,null,null,null,null,null,null,null,null,null,null,null,null,null,null,null,0,0,0,0,0,0,0,0,0]
[191,null,null,null,null,null,null,null,null,null,null,null,null,null,null,null,null,null,null,0,0,0,0,0,0,0,0,0]
[192,null,null,null,null,null,null,null,null,null,null,null,null,null,null,null,null,null,null,0,0,0,0,0,0,0,0,0]
[193,null,null,null,null,null,null,null,null,null,null,null,null,null,null,null,null,null,null,{"$f":"(C213*D213*E213)/1000000","v":0},{"$f":"((((IF($G213=U$20,$G213*$C213,\"0\"))+(IF($H213=U$20,$H213*$C213,\"0\"))+(IF($I213=U$20,$I213*$D213,\"0\"))+(IF($J213=U$20,$J213*$D213,\"0\")))*$E213)/1000)/U$20","v":0},0,0,0,0,0,0,0]
[194,null,null,null,null,null,null,null,null,null,null,null,null,null,null,null,null,null,null,0,0,0,0,0,0,0,{"$f":"IF(N214=\"\",0,(C214*D214*E214)/1000000)","v":0},{"$f":"IF(O214=\"\",0,(C214*D214*E214)/1000000)","v":0}]
[195,null,null,null,null,null,null,null,null,null,null,null,null,null,null,null,null,null,null,0,0,0,0,0,0,0,0,0]
[196,null,null,null,null,null,null,null,null,null,null,null,null,null,null,null,null,null,null,0,0,0,0,0,0,0,0,0]
[197,null,null,null,null,null,null,null,null,null,null,null,null,null,null,null,null,null,null,0,0,0,0,0,0,0,0,0]
[198,null,null,null,null,null,null,null,null,null,null,null,null,null,null,null,null,null,null,0,0,0,0,0,0,0,0,0]
[199,null,null,null,null,null,null,null,null,null,null,null,null,null,null,null,null,null,null,0,0,0,0,0,0,0,0,0]
[200,null,null,null,null,null,null,null,null,null,null,null,null,null,null,null,null,null,null,0,0,0,0,0,0,0,0,0]
[201,null,null,null,null,null,null,null,null,null,null,null,null,null,null,null,null,null,null,0,0,0,0,0,0,0,0,0]
[202,null,null,null,null,null,null,null,null,null,null,null,null,null,null,null,null,null,null,0,0,0,0,0,0,0,0,0]
[203,null,null,null,null,null,null,null,null,null,null,null,null,null,null,null,null,null,null,0,0,0,0,0,0,0,0,0]
[204,null,null,null,null,null,null,null,null,null,null,null,null,null,null,null,null,null,null,0,0,0,0,0,0,0,0,0]
[205,null,null,null,null,null,null,null,null,null,null,null,null,null,null,null,null,null,null,0,0,0,0,0,0,0,0,0]
[206,null,null,null,null,null,null,null,null,null,null,null,null,null,null,null,null,null,null,0,0,0,0,0,0,0,0,0]
[207,null,null,null,null,null,null,null,null,null,null,null,null,null,null,null,null,null,null,0,0,0,0,0,0,0,0,0]
[208,null,null,null,null,null,null,null,null,null,null,null,null,null,null,null,null,null,null,0,0,0,0,0,0,0,0,0]
[209,null,null,null,null,null,null,null,null,null,null,null,null,null,null,null,null,null,null,0,{"$f":"((((IF($G229=U$20,$G229*$C229,\"0\"))+(IF($H229=U$20,$H229*$C229,\"0\"))+(IF($I229=U$20,$I229*$D229,\"0\"))+(IF($J229=U$20,$J229*$D229,\"0\")))*$E229)/1000)/U$20","v":0},0,0,0,0,0,0,0]
[210,null,null,null,null,null,null,null,null,null,null,null,null,null,null,null,null,null,null,0,0,0,0,0,0,0,0,0]
[211,null,null,null,null,null,null,null,null,null,null,null,null,null,null,null,null,null,null,0,0,0,0,0,0,0,0,0]
[212,null,null,null,null,null,null,null,null,null,null,null,null,null,null,null,null,null,null,0,0,0,0,0,0,0,0,0]
[213,null,null,null,null,null,null,null,null,null,null,null,null,null,null,null,null,null,null,0,0,0,0,0,0,0,0,0]
[214,null,null,null,null,null,null,null,null,null,null,null,null,null,null,null,null,null,null,0,0,0,0,0,0,0,0,0]
[215,null,null,null,null,null,null,null,null,null,null,null,null,null,null,null,null,null,null,0,0,0,0,0,0,0,0,0]
[216,null,null,null,null,null,null,null,null,null,null,null,null,null,null,null,null,null,null,0,0,0,0,0,0,0,0,0]
[217,null,null,null,null,null,null,null,null,null,null,null,null,null,null,null,null,null,null,0,0,0,0,0,0,0,0,0]
[218,null,null,null,null,null,null,null,null,null,null,null,null,null,null,null,null,null,null,0,0,0,0,0,0,0,0,0]
[219,null,null,null,null,null,null,null,null,null,null,null,null,null,null,null,null,null,null,0,0,0,0,0,0,0,0,0]
[220,null,null,null,null,null,null,null,null,null,null,null,null,null,null,null,null,null,null,0,0,0,0,0,0,0,0,0]
[221,null,null,null,null,null,null,null,null,null,null,null,null,null,null,null,null,null,null,0,0,0,0,0,0,0,0,0]
[222,null,null,null,null,null,null,null,null,null,null,null,null,null,null,null,null,null,null,0,0,0,0,0,0,0,0,0]
[223,null,null,null,null,null,null,null,null,null,null,null,null,null,null,null,null,null,null,0,0,0,0,0,0,0,0,0]
[224,null,null,null,null,null,null,null,null,null,null,null,null,null,null,null,null,null,null,0,0,0,0,0,0,0,0,0]
[225,null,null,null,null,null,null,null,null,null,null,null,null,null,null,null,null,null,null,0,{"$f":"((((IF($G245=U$20,$G245*$C245,\"0\"))+(IF($H245=U$20,$H245*$C245,\"0\"))+(IF($I245=U$20,$I245*$D245,\"0\"))+(IF($J245=U$20,$J245*$D245,\"0\")))*$E245)/1000)/U$20","v":0},0,0,0,0,0,0,0]
[226,null,null,null,null,null,null,null,null,null,null,null,null,null,null,null,null,null,null,0,0,0,0,0,0,0,0,0]
[227,null,null,null,null,null,null,null,null,null,null,null,null,null,null,null,null,null,null,0,0,0,0,0,0,0,0,0]
[228,null,null,null,null,null,null,null,null,null,null,null,null,null,null,null,null,null,null,0,0,0,0,0,0,0,0,0]
[229,null,null,null,null,null,null,null,null,null,null,null,null,null,null,null,null,null,null,0,0,0,0,0,0,0,0,0]
[230,null,null,null,null,null,null,null,null,null,null,null,null,null,null,null,null,null,null,0,0,0,0,0,0,0,0,0]
[231,null,null,null,null,null,null,null,null,null,null,null,null,null,null,null,null,null,null,0,0,0,0,0,0,0,0,0]
[]
[]
[]
[]
[]
[]
[]
[]
[]
[]
[]
[]
[]
[]
[]
[]
[]
[]
[]
[]
[]
[]
[]
[]
[]
[]
[]
[]
[]
[]
[]
[]
[]
[]
[]
[]
[]
[]
[]
[]
[]
[]
[]
[]
[]
[]
[]
[]
[]
[]
[]
[]
[]
[]
[]
[]
[]
[]
[]
[]
[]
[]
[]
[]
[]
[]
[]
[]
[]
[]
[]
[]
[]
[]
[]
[]
[]
[]
[]
[]
[]
[]
[]
[]
[]
[]
[]
[]
[]
[]
[]
[]
[]
[]
[]
[]
[]
[]
[]
[]
[]
[]
[]
[]
[]
[]
[]
[]
[]
[]
[]
[]
[]
[]
[]
[]
[]
[]
[]
[]
[]
[]
[]
[]
[]
[]
[]
[]
[]
[]
[]
[]
[]
[]
[]
[]
[]
[]
[]
[]
[]
[]
[]
[]
[]
[]
[]
[]
[]
[]
[]
[]
[]
[]
[]
[]
[]
[]
[]
[]
[]
[]
[]
[]
[null,null,null,null,null,null,null,null,null,null,null,null,null,null,null,null,null,null,null,null,"ABS 0,5","ABS 2","ABS 0,5","ABS 2","ABS 1","ABS 42/1","zesilování","sdružené formáty"]
[null,null,null,null,null,null,null,null,null,null,null,null,null,null,null,null,null,null,null,"m2",1,2,3,4,5,6,"m2","m2"]
[]
[null,null,null,null,null,null,null,null,null,null,null,null,null,null,null,null,null,null,null,{"$f":"SUM(T21:T251)","v":0},0,0,0,0,0,0,0,0]
[]
[null,null,null,null,null,null,null,null,null,null,null,null,null,null,null,null,null,null,"výpočet",null,null,null,"plocha","m2",{"$f":"T$419","v":0}]
[null,null,null,null,null,null,null,null,null,null,null,null,null,null,null,null,null,null,null,null,null,null,"ABS 22/0,5","m",{"$f":"U$419","v":0}]
[null,null,null,null,null,null,null,null,null,null,null,null,null,null,null,null,null,null,null,null,null,null,"ABS 22/2","m",{"$f":"V$419","v":0}]
[null,null,null,null,null,null,null,null,null,null,null,null,null,null,null,null,null,null,null,null,null,null,"ABS 42/0,5","m",{"$f":"W$419","v":0}]
[null,null,null,null,null,null,null,null,null,null,null,null,null,null,null,null,null,null,null,null,null,null,"ABS 42/2","m",{"$f":"X$419","v":0}]
[null,null,null,null,null,null,null,null,null,null,null,null,null,null,null,null,null,null,null,null,null,null,"ABS 22/1","m",{"$f":"Y$419","v":0}]
[null,null,null,null,null,null,null,null,null,null,null,null,null,null,null,null,null,null,null,null,null,null,"ABS 42/1","m",{"$f":"Z$419","v":0}]
[]
[]
[null,null,null,null,null,null,null,null,null,null,null,null,null,null,null,null,null,null,null,null,null,null,"počet","KS",{"$f":"SUM(E21:E251)","v":0}]
[null,null,null,null,null,null,null,null,null,null,null,null,null,null,null,null,null,null,null,null,null,null,"plocha zesílení","m2",{"$f":"AA$419","v":0}]
[null,null,null,null,null,null,null,null,null,null,null,null,null,null,null,null,null,null,null,null,null,null,"plocha celkem","m2",{"$f":"T419+Y431","v":0}]
[null,null,null,null,null,null,null,null,null,null,null,null,null,null,null,null,null,null,null,null,null,null,"plocha SF","m2",{"$f":"AB$419","v":0}]

{"sheet":"Materiál_2","index":1,"n_rows":433,"n_cols":28,"rows_kept":433,"cut":false,"hidden":false,"merged":[[10,6,10,14],[1,0,1,15],[3,0,3,15],[7,6,7,14],[8,6,8,14],[9,6,9,14],[12,2,12,3],[12,4,12,9],[12,13,12,15],[13,2,13,3],[13,4,13,9],[13,13,13,15],[420,24,420,25],[421,24,421,25],[422,24,422,25],[423,24,423,25],[424,24,424,25],[16,2,16,9],[16,13,16,14],[18,0,19,0],[19,6,19,9],[420,18,432,21],[431,24,431,25],[432,24,432,25],[425,24,425,25],[426,24,426,25],[427,24,427,25],[428,24,428,25],[429,24,429,25],[430,24,430,25]]}
[]
["!!! UVÁDĚJTE ROZMĚRY VČ. HRAN, PŘIČEMŽ DODRŽTE ZNAČENÍ UVEDENÉ VEDLE TABULKY !!!"]
[]
["!!! STANDARTNĚ OLEPUJEME TRANSPARENTNÍM POLYURETANOVÝM LEPIDLEM !!!"]
[]
[]
[null,null,null,null,null,null,null,null,null,null,null,null,null,null,null,null,null,1,"znamená ABS 0,5"]
[null,"Dodavatel:",null,null,null,null,"Označení zakázky:",null,null,null,null,null,null,null,null,{"$f":"IF(Materiál_1!P8=\"\",\"\",Materiál_1!P8)","v":""},null,2,"znamená ABS 2"]
[null,{"$f":"Materiál_1!B9","v":"NODO ART, s.r.o."},null,null,null,null,"Odběratel:",null,null,null,null,null,null,null,null,{"$f":"IF(Materiál_1!P9=\"\",\"\",Materiál_1!P9)","v":""},{"$f":"IF(Materiál_1!Q9=\"\",\"\",Materiál_1!Q9)","v":""},{"$f":"IF(Materiál_1!R9=\"\",\"\",Materiál_1!R9)","v":3},{"$f":"IF(Materiál_1!S9=\"\",\"\",Materiál_1!S9)","v":"znamená ABS 42/0,5"},{"$f":"IF(Materiál_1!T9=\"\",\"\",Materiál_1!T9)","v":""},{"$f":"IF(Materiál_1!U9=\"\",\"\",Materiál_1!U9)","v":""}]
[null,{"$f":"Materiál_1!B10","v":"tel. +420 773 236 200"},null,null,null,null,"tel:",null,null,null,null,null,null,null,null,{"$f":"IF(Materiál_1!P10=\"\",\"\",Materiál_1!P10)","v":""},null,4,"znamená ABS 42/2"]
[null,{"$f":"Materiál_1!B11","v":"e-mail: dubovecky@nodo.cz"},null,null,null,null,"e - mail :",null,null,null,null,null,null,null,null,{"$f":"IF(Materiál_1!P11=\"\",\"\",Materiál_1!P11)","v":""},null,5,"znamená ABS 22/1"]
[null,null,null,null,null,null,null,null,null,null,null,null,null,null,null,null,null,6,"znamená ABS 42/1"]
[null,"OBYČEJNÉ LEPIDLO \"EVA\"","DOPRAVA          \"ZÁVOZ\"",null,"NEBALIT NA PALETU",null,null,null,null,null,null,null,null,"UVOLŇOVACÍ ŘEZ"]
[null,{"$f":"IF(Materiál_1!B14=\"\",\"\",Materiál_1!B14)","v":""},{"$f":"IF(Materiál_1!C14=\"\",\"\",Materiál_1!C14)","v":""},{"$f":"IF(Materiál_1!D14=\"\",\"\",Materiál_1!D14)","v":""},{"$f":"IF(Materiál_1!E14=\"\",\"\",Materiál_1!E14)","v":""},{"$f":"IF(Materiál_1!F14=\"\",\"\",Materiál_1!F14)","v":""},{"$f":"IF(Materiál_1!G14=\"\",\"\",Materiál_1!G14)","v":""},{"$f":"IF(Materiál_1!H14=\"\",\"\",Materiál_1!H14)","v":""},{"$f":"IF(Materiál_1!I14=\"\",\"\",Materiál_1!I14)","v":""},{"$f":"IF(Materiál_1!J14=\"\",\"\",Materiál_1!J14)","v":""}]
[]
[]
[null,"Druh materiálu:",null,null,null,null,null,null,null,null,null,null,null,null,null,"BÍLÉ LEPIDLO"]
[]
["P.č.",null,"X1, X2","Y1, Y2",null,null,"X1","X2","Y1","Y2",null,null,null,null,null,null,null,null,null,null,"ABS 0,5","ABS 2","ABS 0,5","ABS 2","ABS 1","ABS 42/1","zesilování","sdružené formáty"]
[null,"Název","délka                             (po vláknech) (mm)","šířka                                        (napříč vláknům) (mm)","počet (ks)","orientace lét","olepování",null,null,null,null,null,null,"zesilování","sdružené formáty","Poznámka",null,null,null,"m2",1,2,3,4,5,6,"m2","m2"]
[1,null,null,null,null,null,null,null,null,null,null,null,null,null,null,null,null,null,null,{"$f":"(C21*D21*E21)/1000000","v":0},{"$f":"((((IF($G21=U$20,$G21*$C21,\"0\"))+(IF($H21=U$20,$H21*$C21,\"0\"))+(IF($I21=U$20,$I21*$D21,\"0\"))+(IF($J21=U$20,$J21*$D21,\"0\")))*$E21)/1000)/U$20","v":0},0,0,0,0,0,{"$f":"IF(N21=\"\",0,(C21*D21*E21)/1000000)","v":0},{"$f":"IF(O21=\"\",0,(C21*D21*E21)/1000000)","v":0}]
[2,null,null,null,null,null,null,null,null,null,null,null,null,null,null,null,null,null,null,0,0,0,0,0,0,0,{"$f":"IF(N22=\"\",0,(C22*D22*E22)/1000000)","v":0},{"$f":"IF(O22=\"\",0,(C22*D22*E22)/1000000)","v":0}]
[3,null,null,null,null,null,null,null,null,null,null,null,null,null,null,null,null,null,null,0,0,0,0,0,0,0,0,0]
[4,null,null,null,null,null,null,null,null,null,null,null,null,null,null,null,null,null,null,0,0,0,0,0,0,0,0,0]
[5,null,null,null,null,null,null,null,null,null,null,null,null,null,null,null,null,null,null,0,0,0,0,0,0,0,0,0]
[6,null,null,null,null,null,null,null,null,null,null,null,null,null,null,null,null,null,null,0,0,0,0,0,0,0,0,0]
[7,null,null,null,null,null,null,null,null,null,null,null,null,null,null,null,null,null,null,0,0,0,0,0,0,0,0,0]
[8,null,null,null,null,null,null,null,null,null,null,null,null,null,null,null,null,null,null,0,0,0,0,0,0,0,0,0]
[9,null,null,null,null,null,null,null,null,null,null,null,null,null,null,null,null,null,null,0,0,0,0,0,0,0,0,0]
[10,null,null,null,null,null,null,null,null,null,null,null,null,null,null,null,null,null,null,0,0,0,0,0,0,0,0,0]
[11,null,null,null,null,null,null,null,null,null,null,null,null,null,null,null,null,null,null,0,0,0,0,0,0,0,0,0]
[12,null,null,null,null,null,null,null,null,null,null,null,null,null,null,null,null,null,null,0,0,0,0,0,0,0,0,0]
[13,null,null,null,null,null,null,null,null,null,null,null,null,null,null,null,null,null,null,0,0,0,0,0,0,0,0,0]
[14,null,null,null,null,null,null,null,null,null,null,null,null,null,null,null,null,null,null,0,0,0,0,0,0,0,0,0]
[15,null,null,null,null,null,null,null,null,null,null,null,null,null,null,null,null,null,null,0,0,0,0,0,0,0,0,0]
[16,null,null,null,null,null,null,null,null,null,null,null,null,null,null,null,null,null,null,0,0,0,0,0,0,0,0,0]
[17,null,null,null,null,null,null,null,null,null,null,null,null,null,null,null,null,null,null,0,{"$f":"((((IF($G37=U$20,$G37*$C37,\"0\"))+(IF($H37=U$20,$H37*$C37,\"0\"))+(IF($I37=U$20,$I37*$D37,\"0\"))+(IF($J37=U$20,$J37*$D37,\"0\")))*$E37)/1000)/U$20","v":0},0,0,0,0,0,0,0]
[18,null,null,null,null,null,null,null,null,null,null,null,null,null,null,null,null,null,null,0,0,0,0,0,0,0,0,0]
[19,null,null,null,null,null,null,null,null,null,null,null,null,null,null,null,null,null,null,0,0,0,0,0,0,0,0,0]
[20,null,null,null,null,null,null,null,null,null,null,null,null,null,null,null,null,null,null,0,0,0,0,0,0,0,0,0]
[21,null,null,null,null,null,null,null,null,null,null,null,null,null,null,null,null,null,null,0,0,0,0,0,0,0,0,0]
[22,null,null,null,null,null,null,null,null,null,null,null,null,null,null,null,null,null,null,0,0,0,0,0,0,0,0,0]
[23,null,null,null,null,null,null,null,null,null,null,null,null,null,null,null,null,null,null,0,0,0,0,0,0,0,0,0]
[24,null,null,null,null,null,null,null,null,null,null,null,null,null,null,null,null,null,null,0,0,0,0,0,0,0,0,0]
[25,null,null,null,null,null,null,null,null,null,null,null,null,null,null,null,null,null,null,0,0,0,0,0,0,0,0,0]
[26,null,null,null,null,null,null,null,null,null,null,null,null,null,null,null,null,null,null,0,0,0,0,0,0,0,0,0]
[27,null,null,null,null,null,null,null,null,null,null,null,null,null,null,null,null,null,null,0,0,0,0,0,0,0,0,0]
[28,null,null,null,null,null,null,null,null,null,null,null,null,null,null,null,null,null,null,0,0,0,0,0,0,0,0,0]
[29,null,null,null,null,null,null,null,null,null,null,null,null,null,null,null,null,null,null,0,0,0,0,0,0,0,0,0]
[30,null,null,null,null,null,null,null,null,null,null,null,null,null,null,null,null,null,null,0,0,0,0,0,0,0,0,0]
[31,null,null,null,null,null,null,null,null,null,null,null,null,null,null,null,null,null,null,0,0,0,0,0,0,0,0,0]
[32,null,null,null,null,null,null,null,null,null,null,null,null,null,null,null,null,null,null,0,0,0,0,0,0,0,0,0]
[33,null,null,null,null,null,null,null,null,null,null,null,null,null,null,null,null,null,null,0,{"$f":"((((IF($G53=U$20,$G53*$C53,\"0\"))+(IF($H53=U$20,$H53*$C53,\"0\"))+(IF($I53=U$20,$I53*$D53,\"0\"))+(IF($J53=U$20,$J53*$D53,\"0\")))*$E53)/1000)/U$20","v":0},0,0,0,0,0,0,0]
[34,null,null,null,null,null,null,null,null,null,null,null,null,null,null,null,null,null,null,0,0,0,0,0,0,0,0,0]
[35,null,null,null,null,null,null,null,null,null,null,null,null,null,null,null,null,null,null,0,0,0,0,0,0,0,0,0]
[36,null,null,null,null,null,null,null,null,null,null,null,null,null,null,null,null,null,null,0,0,0,0,0,0,0,0,0]
[37,null,null,null,null,null,null,null,null,null,null,null,null,null,null,null,null,null,null,0,0,0,0,0,0,0,0,0]
[38,null,null,null,null,null,null,null,null,null,null,null,null,null,null,null,null,null,null,0,0,0,0,0,0,0,0,0]
[39,null,null,null,null,null,null,null,null,null,null,null,null,null,null,null,null,null,null,0,0,0,0,0,0,0,0,0]
[40,null,null,null,null,null,null,null,null,null,null,null,null,null,null,null,null,null,null,0,0,0,0,0,0,0,0,0]
[41,null,null,null,null,null,null,null,null,null,null,null,null,null,null,null,null,null,null,0,0,0,0,0,0,0,0,0]
[42,null,null,null,null,null,null,null,null,null,null,null,null,null,null,null,null,null,null,0,0,0,0,0,0,0,0,0]
[43,null,null,null,null,null,null,null,null,null,null,null,null,null,null,null,null,null,null,0,0,0,0,0,0,0,0,0]
[44,null,null,null,null,null,null,null,null,null,null,null,null,null,null,null,null,null,null,0,0,0,0,0,0,0,0,0]
[45,null,null,null,null,null,null,null,null,null,null,null,null,null,null,null,null,null,null,0,0,0,0,0,0,0,0,0]
[46,null,null,null,null,null,null,null,null,null,null,null,null,null,null,null,null,null,null,0,0,0,0,0,0,0,0,0]
[47,null,null,null,null,null,null,null,null,null,null,null,null,null,null,null,null,null,null,0,0,0,0,0,0,0,0,0]
[48,null,null,null,null,null,null,null,null,null,null,null,null,null,null,null,null,null,null,0,0,0,0,0,0,0,0,0]
[49,null,null,null,null,null,null,null,null,null,null,null,null,null,null,null,null,null,null,0,{"$f":"((((IF($G69=U$20,$G69*$C69,\"0\"))+(IF($H69=U$20,$H69*$C69,\"0\"))+(IF($I69=U$20,$I69*$D69,\"0\"))+(IF($J69=U$20,$J69*$D69,\"0\")))*$E69)/1000)/U$20","v":0},0,0,0,0,0,0,0]
[50,null,null,null,null,null,null,null,null,null,null,null,null,null,null,null,null,null,null,0,0,0,0,0,0,0,0,0]
[51,null,null,null,null,null,null,null,null,null,null,null,null,null,null,null,null,null,null,0,0,0,0,0,0,0,0,0]
[52,null,null,null,null,null,null,null,null,null,null,null,null,null,null,null,null,null,null,0,0,0,0,0,0,0,0,0]
[53,null,null,null,null,null,null,null,null,null,null,null,null,null,null,null,null,null,null,0,0,0,0,0,0,0,0,0]
[54,null,null,null,null,null,null,null,null,null,null,null,null,null,null,null,null,null,null,0,0,0,0,0,0,0,0,0]
[55,null,null,null,null,null,null,null,null,null,null,null,null,null,null,null,null,null,null,0,0,0,0,0,0,0,0,0]
[56,null,null,null,null,null,null,null,null,null,null,null,null,null,null,null,null,null,null,0,0,0,0,0,0,0,0,0]
[57,null,null,null,null,null,null,null,null,null,null,null,null,null,null,null,null,null,null,0,0,0,0,0,0,0,0,0]
[58,null,null,null,null,null,null,null,null,null,null,null,null,null,null,null,null,null,null,0,0,0,0,0,0,0,0,0]
[59,null,null,null,null,null,null,null,null,null,null,null,null,null,null,null,null,null,null,0,0,0,0,0,0,0,0,0]
[60,null,null,null,null,null,null,null,null,null,null,null,null,null,null,null,null,null,null,0,0,0,0,0,0,0,0,0]
[61,null,null,null,null,null,null,null,null,null,null,null,null,null,null,null,null,null,null,0,0,0,0,0,0,0,0,0]
[62,null,null,null,null,null,null,null,null,null,null,null,null,null,null,null,null,null,null,0,0,0,0,0,0,0,0,0]
[63,null,null,null,null,null,null,null,null,null,null,null,null,null,null,null,null,null,null,0,0,0,0,0,0,0,0,0]
[64,null,null,null,null,null,null,null,null,null,null,null,null,null,null,null,null,null,null,0,0,0,0,0,0,0,0,0]
[65,null,null,null,null,null,null,null,null,null,null,null,null,null,null,null,null,null,null,{"$f":"(C85*D85*E85)/1000000","v":0},{"$f":"((((IF($G85=U$20,$G85*$C85,\"0\"))+(IF($H85=U$20,$H85*$C85,\"0\"))+(IF($I85=U$20,$I85*$D85,\"0\"))+(IF($J85=U$20,$J85*$D85,\"0\")))*$E85)/1000)/U$20","v":0},0,0,0,0,0,0,0]
[66,null,null,null,null,null,null,null,null,null,null,null,null,null,null,null,null,null,null,0,0,0,0,0,0,0,{"$f":"IF(N86=\"\",0,(C86*D86*E86)/1000000)","v":0},{"$f":"IF(O86=\"\",0,(C86*D86*E86)/1000000)","v":0}]
[67,null,null,null,null,null,null,null,null,null,null,null,null,null,null,null,null,null,null,0,0,0,0,0,0,0,0,0]
[68,null,null,null,null,null,null,null,null,null,null,null,null,null,null,null,null,null,null,0,0,0,0,0,0,0,0,0]
[69,null,null,null,null,null,null,null,null,null,null,null,null,null,null,null,null,null,null,0,0,0,0,0,0,0,0,0]
[70,null,null,null,null,null,null,null,null,null,null,null,null,null,null,null,null,null,null,0,0,0,0,0,0,0,0,0]
[71,null,null,null,null,null,null,null,null,null,null,null,null,null,null,null,null,null,null,0,0,0,0,0,0,0,0,0]
[72,null,null,null,null,null,null,null,null,null,null,null,null,null,null,null,null,null,null,0,0,0,0,0,0,0,0,0]
[73,null,null,null,null,null,null,null,null,null,null,null,null,null,null,null,null,null,null,0,0,0,0,0,0,0,0,0]
[74,null,null,null,null,null,null,null,null,null,null,null,null,null,null,null,null,null,null,0,0,0,0,0,0,0,0,0]
[75,null,null,null,null,null,null,null,null,null,null,null,null,null,null,null,null,null,null,0,0,0,0,0,0,0,0,0]
[76,null,null,null,null,null,null,null,null,null,null,null,null,null,null,null,null,null,null,0,0,0,0,0,0,0,0,0]
[77,null,null,null,null,null,null,null,null,null,null,null,null,null,null,null,null,null,null,0,0,0,0,0,0,0,0,0]
[78,null,null,null,null,null,null,null,null,null,null,null,null,null,null,null,null,null,null,0,0,0,0,0,0,0,0,0]
[79,null,null,null,null,null,null,null,null,null,null,null,null,null,null,null,null,null,null,0,0,0,0,0,0,0,0,0]
[80,null,null,null,null,null,null,null,null,null,null,null,null,null,null,null,null,null,null,0,0,0,0,0,0,0,0,0]
[81,null,null,null,null,null,null,null,null,null,null,null,null,null,null,null,null,null,null,0,{"$f":"((((IF($G101=U$20,$G101*$C101,\"0\"))+(IF($H101=U$20,$H101*$C101,\"0\"))+(IF($I101=U$20,$I101*$D101,\"0\"))+(IF($J101=U$20,$J101*$D101,\"0\")))*$E101)/1000)/U$20","v":0},0,0,0,0,0,0,0]
[82,null,null,null,null,null,null,null,null,null,null,null,null,null,null,null,null,null,null,0,0,0,0,0,0,0,0,0]
[83,null,null,null,null,null,null,null,null,null,null,null,null,null,null,null,null,null,null,0,0,0,0,0,0,0,0,0]
[84,null,null,null,null,null,null,null,null,null,null,null,null,null,null,null,null,null,null,0,0,0,0,0,0,0,0,0]
[85,null,null,null,null,null,null,null,null,null,null,null,null,null,null,null,null,null,null,0,0,0,0,0,0,0,0,0]
[86,null,null,null,null,null,null,null,null,null,null,null,null,null,null,null,null,null,null,0,0,0,0,0,0,0,0,0]
[87,null,null,null,null,null,null,null,null,null,null,null,null,null,null,null,null,null,null,0,0,0,0,0,0,0,0,0]
[88,null,null,null,null,null,null,null,null,null,null,null,null,null,null,null,null,null,null,0,0,0,0,0,0,0,0,0]
[89,null,null,null,null,null,null,null,null,null,null,null,null,null,null,null,null,null,null,0,0,0,0,0,0,0,0,0]
[90,null,null,null,null,null,null,null,null,null,null,null,null,null,null,null,null,null,null,0,0,0,0,0,0,0,0,0]
[91,null,null,null,null,null,null,null,null,null,null,null,null,null,null,null,null,null,null,0,0,0,0,0,0,0,0,0]
[92,null,null,null,null,null,null,null,null,null,null,null,null,null,null,null,null,null,null,0,0,0,0,0,0,0,0,0]
[93,null,null,null,null,null,null,null,null,null,null,null,null,null,null,null,null,null,null,0,0,0,0,0,0,0,0,0]
[94,null,null,null,null,null,null,null,null,null,null,null,null,null,null,null,null,null,null,0,0,0,0,0,0,0,0,0]
[95,null,null,null,null,null,null,null,null,null,null,null,null,null,null,null,null,null,null,0,0,0,0,0,0,0,0,0]
[96,null,null,null,null,null,null,null,null,null,null,null,null,null,null,null,null,null,null,0,0,0,0,0,0,0,0,0]
[97,null,null,null,null,null,null,null,null,null,null,null,null,null,null,null,null,null,null,0,{"$f":"((((IF($G117=U$20,$G117*$C117,\"0\"))+(IF($H117=U$20,$H117*$C117,\"0\"))+(IF($I117=U$20,$I117*$D117,\"0\"))+(IF($J117=U$20,$J117*$D117,\"0\")))*$E117)/1000)/U$20","v":0},0,0,0,0,0,0,0]
[98,null,null,null,null,null,null,null,null,null,null,null,null,null,null,null,null,null,null,0,0,0,0,0,0,0,0,0]
[99,null,null,null,null,null,null,null,null,null,null,null,null,null,null,null,null,null,null,0,0,0,0,0,0,0,0,0]
[100,null,null,null,null,null,null,null,null,null,null,null,null,null,null,null,null,null,null,0,0,0,0,0,0,0,0,0]
[101,null,null,null,null,null,null,null,null,null,null,null,null,null,null,null,null,null,null,0,0,0,0,0,0,0,0,0]
[102,null,null,null,null,null,null,null,null,null,null,null,null,null,null,null,null,null,null,0,0,0,0,0,0,0,0,0]
[103,null,null,null,null,null,null,null,null,null,null,null,null,null,null,null,null,null,null,0,0,0,0,0,0,0,0,0]
[104,null,null,null,null,null,null,null,null,null,null,null,null,null,null,null,null,null,null,0,0,0,0,0,0,0,0,0]
[105,null,null,null,null,null,null,null,null,null,null,null,null,null,null,null,null,null,null,0,0,0,0,0,0,0,0,0]
[106,null,null,null,null,null,null,null,null,null,null,null,null,null,null,null,null,null,null,0,0,0,0,0,0,0,0,0]
[107,null,null,null,null,null,null,null,null,null,null,null,null,null,null,null,null,null,null,0,0,0,0,0,0,0,0,0]
[108,null,null,null,null,null,null,null,null,null,null,null,null,null,null,null,null,null,null,0,0,0,0,0,0,0,0,0]
[109,null,null,null,null,null,null,null,null,null,null,null,null,null,null,null,null,null,null,0,0,0,0,0,0,0,0,0]
[110,null,null,null,null,null,null,null,null,null,null,null,null,null,null,null,null,null,null,0,0,0,0,0,0,0,0,0]
[111,null,null,null,null,null,null,null,null,null,null,null,null,null,null,null,null,null,null,0,0,0,0,0,0,0,0,0]
[112,null,null,null,null,null,null,null,null,null,null,null,null,null,null,null,null,null,null,0,0,0,0,0,0,0,0,0]
[113,null,null,null,null,null,null,null,null,null,null,null,null,null,null,null,null,null,null,0,{"$f":"((((IF($G133=U$20,$G133*$C133,\"0\"))+(IF($H133=U$20,$H133*$C133,\"0\"))+(IF($I133=U$20,$I133*$D133,\"0\"))+(IF($J133=U$20,$J133*$D133,\"0\")))*$E133)/1000)/U$20","v":0},0,0,0,0,0,0,0]
[114,null,null,null,null,null,null,null,null,null,null,null,null,null,null,null,null,null,null,0,0,0,0,0,0,0,0,0]
[115,null,null,null,null,null,null,null,null,null,null,null,null,null,null,null,null,null,null,0,0,0,0,0,0,0,0,0]
[116,null,null,null,null,null,null,null,null,null,null,null,null,null,null,null,null,null,null,0,0,0,0,0,0,0,0,0]
[117,null,null,null,null,null,null,null,null,null,null,null,null,null,null,null,null,null,null,0,0,0,0,0,0,0,0,0]
[118,null,null,null,null,null,null,null,null,null,null,null,null,null,null,null,null,null,null,0,0,0,0,0,0,0,0,0]
[119,null,null,null,null,null,null,null,null,null,null,null,null,null,null,null,null,null,null,0,0,0,0,0,0,0,0,0]
[120,null,null,null,null,null,null,null,null,null,null,null,null,null,null,null,null,null,null,0,0,0,0,0,0,0,0,0]
[121,null,null,null,null,null,null,null,null,null,null,null,null,null,null,null,null,null,null,0,0,0,0,0,0,0,0,0]
[122,null,null,null,null,null,null,null,null,null,null,null,null,null,null,null,null,null,null,0,0,0,0,0,0,0,0,0]
[123,null,null,null,null,null,null,null,null,null,null,null,null,null,null,null,null,null,null,0,0,0,0,0,0,0,0,0]
[124,null,null,null,null,null,null,null,null,null,null,null,null,null,null,null,null,null,null,0,0,0,0,0,0,0,0,0]
[125,null,null,null,null,null,null,null,null,null,null,null,null,null,null,null,null,null,null,0,0,0,0,0,0,0,0,0]
[126,null,null,null,null,null,null,null,null,null,null,null,null,null,null,null,null,null,null,0,0,0,0,0,0,0,0,0]
[127,null,null,null,null,null,null,null,null,null,null,null,null,null,null,null,null,null,null,0,0,0,0,0,0,0,0,0]
[128,null,null,null,null,null,null,null,null,null,null,null,null,null,null,null,null,null,null,0,0,0,0,0,0,0,0,0]
[129,null,null,null,null,null,null,null,null,null,null,null,null,null,null,null,null,null,null,{"$f":"(C149*D149*E149)/1000000","v":0},{"$f":"((((IF($G149=U$20,$G149*$C149,\"0\"))+(IF($H149=U$20,$H149*$C149,\"0\"))+(IF($I149=U$20,$I149*$D149,\"0\"))+(IF($J149=U$20,$J149*$D149,\"0\")))*$E149)/1000)/U$20","v":0},0,0,0,0,0,0,0]
[130,null,null,null,null,null,null,null,null,null,null,null,null,null,null,null,null,null,null,0,0,0,0,0,0,0,{"$f":"IF(N150=\"\",0,(C150*D150*E150)/1000000)","v":0},{"$f":"IF(O150=\"\",0,(C150*D150*E150)/1000000)","v":0}]
[131,null,null,null,null,null,null,null,null,null,null,null,null,null,null,null,null,null,null,0,0,0,0,0,0,0,0,0]
[132,null,null,null,null,null,null,null,null,null,null,null,null,null,null,null,null,null,null,0,0,0,0,0,0,0,0,0]
[133,null,null,null,null,null,null,null,null,null,null,null,null,null,null,null,null,null,null,0,0,0,0,0,0,0,0,0]
[134,null,null,null,null,null,null,null,null,null,null,null,null,null,null,null,null,null,null,0,0,0,0,0,0,0,0,0]
[135,null,null,null,null,null,null,null,null,null,null,null,null,null,null,null,null,null,null,0,0,0,0,0,0,0,0,0]
[136,null,null,null,null,null,null,null,null,null,null,null,null,null,null,null,null,null,null,0,0,0,0,0,0,0,0,0]
[137,null,null,null,null,null,null,null,null,null,null,null,null,null,null,null,null,null,null,0,0,0,0,0,0,0,0,0]
[138,null,null,null,null,null,null,null,null,null,null,null,null,null,null,null,null,null,null,0,0,0,0,0,0,0,0,0]
[139,null,null,null,null,null,null,null,null,null,null,null,null,null,null,null,null,null,null,0,0,0,0,0,0,0,0,0]
[140,null,null,null,null,null,null,null,null,null,null,null,null,null,null,null,null,null,null,0,0,0,0,0,0,0,0,0]
[141,null,null,null,null,null,null,null,null,null,null,null,null,null,null,null,null,null,null,0,0,0,0,0,0,0,0,0]
[142,null,null,null,null,null,null,null,null,null,null,null,null,null,null,null,null,null,null,0,0,0,0,0,0,0,0,0]
[143,null,null,null,null,null,null,null,null,null,null,null,null,null,null,null,null,null,null,0,0,0,0,0,0,0,0,0]
[144,null,null,null,null,null,null,null,null,null,null,null,null,null,null,null,null,null,null,0,0,0,0,0,0,0,0,0]
[145,null,null,null,null,null,null,null,null,null,null,null,null,null,null,null,null,null,null,0,{"$f":"((((IF($G165=U$20,$G165*$C165,\"0\"))+(IF($H165=U$20,$H165*$C165,\"0\"))+(IF($I165=U$20,$I165*$D165,\"0\"))+(IF($J165=U$20,$J165*$D165,\"0\")))*$E165)/1000)/U$20","v":0},0,0,0,0,0,0,0]
[146,null,null,null,null,null,null,null,null,null,null,null,null,null,null,null,null,null,null,0,0,0,0,0,0,0,0,0]
[147,null,null,null,null,null,null,null,null,null,null,null,null,null,null,null,null,null,null,0,0,0,0,0,0,0,0,0]
[148,null,null,null,null,null,null,null,null,null,null,null,null,null,null,null,null,null,null,0,0,0,0,0,0,0,0,0]
[149,null,null,null,null,null,null,null,null,null,null,null,null,null,null,null,null,null,null,0,0,0,0,0,0,0,0,0]
[150,null,null,null,null,null,null,null,null,null,null,null,null,null,null,null,null,null,null,0,0,0,0,0,0,0,0,0]
[151,null,null,null,null,null,null,null,null,null,null,null,null,null,null,null,null,null,null,0,0,0,0,0,0,0,0,0]
[152,null,null,null,null,null,null,null,null,null,null,null,null,null,null,null,null,null,null,0,0,0,0,0,0,0,0,0]
[153,null,null,null,null,null,null,null,null,null,null,null,null,null,null,null,null,null,null,0,0,0,0,0,0,0,0,0]
[154,null,null,null,null,null,null,null,null,null,null,null,null,null,null,null,null,null,null,0,0,0,0,0,0,0,0,0]
[155,null,null,null,null,null,null,null,null,null,null,null,null,null,null,null,null,null,null,0,0,0,0,0,0,0,0,0]
[156,null,null,null,null,null,null,null,null,null,null,null,null,null,null,null,null,null,null,0,0,0,0,0,0,0,0,0]
[157,null,null,null,null,null,null,null,null,null,null,null,null,null,null,null,null,null,null,0,0,0,0,0,0,0,0,0]
[158,null,null,null,null,null,null,null,null,null,null,null,null,null,null,null,null,null,null,0,0,0,0,0,0,0,0,0]
[159,null,null,null,null,null,null,null,null,null,null,null,null,null,null,null,null,null,null,0,0,0,0,0,0,0,0,0]
[160,null,null,null,null,null,null,null,null,null,null,null,null,null,null,null,null,null,null,0,0,0,0,0,0,0,0,0]
[161,null,null,null,null,null,null,null,null,null,null,null,null,null,null,null,null,null,null,0,{"$f":"((((IF($G181=U$20,$G181*$C181,\"0\"))+(IF($H181=U$20,$H181*$C181,\"0\"))+(IF($I181=U$20,$I181*$D181,\"0\"))+(IF($J181=U$20,$J181*$D181,\"0\")))*$E181)/1000)/U$20","v":0},0,0,0,0,0,0,0]
[162,null,null,null,null,null,null,null,null,null,null,null,null,null,null,null,null,null,null,0,0,0,0,0,0,0,0,0]
[163,null,null,null,null,null,null,null,null,null,null,null,null,null,null,null,null,null,null,0,0,0,0,0,0,0,0,0]
[164,null,null,null,null,null,null,null,null,null,null,null,null,null,null,null,null,null,null,0,0,0,0,0,0,0,0,0]
[165,null,null,null,null,null,null,null,null,null,null,null,null,null,null,null,null,null,null,0,0,0,0,0,0,0,0,0]
[166,null,null,null,null,null,null,null,null,null,null,null,null,null,null,null,null,null,null,0,0,0,0,0,0,0,0,0]
[167,null,null,null,null,null,null,null,null,null,null,null,null,null,null,null,null,null,null,0,0,0,0,0,0,0,0,0]
[168,null,null,null,null,null,null,null,null,null,null,null,null,null,null,null,null,null,null,0,0,0,0,0,0,0,0,0]
[169,null,null,null,null,null,null,null,null,null,null,null,null,null,null,null,null,null,null,0,0,0,0,0,0,0,0,0]
[170,null,null,null,null,null,null,null,null,null,null,null,null,null,null,null,null,null,null,0,0,0,0,0,0,0,0,0]
[171,null,null,null,null,null,null,null,null,null,null,null,null,null,null,null,null,null,null,0,0,0,0,0,0,0,0,0]
[172,null,null,null,null,null,null,null,null,null,null,null,null,null,null,null,null,null,null,0,0,0,0,0,0,0,0,0]
[173,null,null,null,null,null,null,null,null,null,null,null,null,null,null,null,null,null,null,0,0,0,0,0,0,0,0,0]
[174,null,null,null,null,null,null,null,null,null,null,null,null,null,null,null,null,null,null,0,0,0,0,0,0,0,0,0]
[175,null,null,null,null,null,null,null,null,null,null,null,null,null,null,null,null,null,null,0,0,0,0,0,0,0,0,0]
[176,null,null,null,null,null,null,null,null,null,null,null,null,null,null,null,null,null,null,0,0,0,0,0,0,0,0,0]
[177,null,null,null,null,null,null,null,null,null,null,null,null,null,null,null,null,null,null,0,{"$f":"((((IF($G197=U$20,$G197*$C197,\"0\"))+(IF($H197=U$20,$H197*$C197,\"0\"))+(IF($I197=U$20,$I197*$D197,\"0\"))+(IF($J197=U$20,$J197*$D197,\"0\")))*$E197)/1000)/U$20","v":0},0,0,0,0,0,0,0]
[178,null,null,null,null,null,null,null,null,null,null,null,null,null,null,null,null,null,null,0,0,0,0,0,0,0,0,0]
[179,null,null,null,null,null,null,null,null,null,null,null,null,null,null,null,null,null,null,0,0,0,0,0,0,0,0,0]
[180,null,null,null,null,null,null,null,null,null,null,null,null,null,null,null,null,null,null,0,0,0,0,0,0,0,0,0]
[181,null,null,null,null,null,null,null,null,null,null,null,null,null,null,null,null,null,null,0,0,0,0,0,0,0,0,0]
[182,null,null,null,null,null,null,null,null,null,null,null,null,null,null,null,null,null,null,0,0,0,0,0,0,0,0,0]
[183,null,null,null,null,null,null,null,null,null,null,null,null,null,null,null,null,null,null,0,0,0,0,0,0,0,0,0]
[184,null,null,null,null,null,null,null,null,null,null,null,null,null,null,null,null,null,null,0,0,0,0,0,0,0,0,0]
[185,null,null,null,null,null,null,null,null,null,null,null,null,null,null,null,null,null,null,0,0,0,0,0,0,0,0,0]
[186,null,null,null,null,null,null,null,null,null,null,null,null,null,null,null,null,null,null,0,0,0,0,0,0,0,0,0]
[187,null,null,null,null,null,null,null,null,null,null,null,null,null,null,null,null,null,null,0,0,0,0,0,0,0,0,0]
[188,null,null,null,null,null,null,null,null,null,null,null,null,null,null,null,null,null,null,0,0,0,0,0,0,0,0,0]
[189,null,null,null,null,null,null,null,null,null,null,null,null,null,null,null,null,null,null,0,0,0,0,0,0,0,0,0]
[190,null,null,null,null,null,null,null,null,null,null,null,null,null,null,null,null,null,null,0,0,0,0,0,0,0,0,0]
[191,null,null,null,null,null,null,null,null,null,null,null,null,null,null,null,null,null,null,0,0,0,0,0,0,0,0,0]
[192,null,null,null,null,null,null,null,null,null,null,null,null,null,null,null,null,null,null,0,0,0,0,0,0,0,0,0]
[193,null,null,null,null,null,null,null,null,null,null,null,null,null,null,null,null,null,null,{"$f":"(C213*D213*E213)/1000000","v":0},{"$f":"((((IF($G213=U$20,$G213*$C213,\"0\"))+(IF($H213=U$20,$H213*$C213,\"0\"))+(IF($I213=U$20,$I213*$D213,\"0\"))+(IF($J213=U$20,$J213*$D213,\"0\")))*$E213)/1000)/U$20","v":0},0,0,0,0,0,0,0]
[194,null,null,null,null,null,null,null,null,null,null,null,null,null,null,null,null,null,null,0,0,0,0,0,0,0,{"$f":"IF(N214=\"\",0,(C214*D214*E214)/1000000)","v":0},{"$f":"IF(O214=\"\",0,(C214*D214*E214)/1000000)","v":0}]
[195,null,null,null,null,null,null,null,null,null,null,null,null,null,null,null,null,null,null,0,0,0,0,0,0,0,0,0]
[196,null,null,null,null,null,null,null,null,null,null,null,null,null,null,null,null,null,null,0,0,0,0,0,0,0,0,0]
[197,null,null,null,null,null,null,null,null,null,null,null,null,null,null,null,null,null,null,0,0,0,0,0,0,0,0,0]
[198,null,null,null,null,null,null,null,null,null,null,null,null,null,null,null,null,null,null,0,0,0,0,0,0,0,0,0]
[199,null,null,null,null,null,null,null,null,null,null,null,null,null,null,null,null,null,null,0,0,0,0,0,0,0,0,0]
[200,null,null,null,null,null,null,null,null,null,null,null,null,null,null,null,null,null,null,0,0,0,0,0,0,0,0,0]
[201,null,null,null,null,null,null,null,null,null,null,null,null,null,null,null,null,null,null,0,0,0,0,0,0,0,0,0]
[202,null,null,null,null,null,null,null,null,null,null,null,null,null,null,null,null,null,null,0,0,0,0,0,0,0,0,0]
[203,null,null,null,null,null,null,null,null,null,null,null,null,null,null,null,null,null,null,0,0,0,0,0,0,0,0,0]
[204,null,null,null,null,null,null,null,null,null,null,null,null,null,null,null,null,null,null,0,0,0,0,0,0,0,0,0]
[205,null,null,null,null,null,null,null,null,null,null,null,null,null,null,null,null,null,null,0,0,0,0,0,0,0,0,0]
[206,null,null,null,null,null,null,null,null,null,null,null,null,null,null,null,null,null,null,0,0,0,0,0,0,0,0,0]
[207,null,null,null,null,null,null,null,null,null,null,null,null,null,null,null,null,null,null,0,0,0,0,0,0,0,0,0]
[208,null,null,null,null,null,null,null,null,null,null,null,null,null,null,null,null,null,null,0,0,0,0,0,0,0,0,0]
[209,null,null,null,null,null,null,null,null,null,null,null,null,null,null,null,null,null,null,0,{"$f":"((((IF($G229=U$20,$G229*$C229,\"0\"))+(IF($H229=U$20,$H229*$C229,\"0\"))+(IF($I229=U$20,$I229*$D229,\"0\"))+(IF($J229=U$20,$J229*$D229,\"0\")))*$E229)/1000)/U$20","v":0},0,0,0,0,0,0,0]
[210,null,null,null,null,null,null,null,null,null,null,null,null,null,null,null,null,null,null,0,0,0,0,0,0,0,0,0]
[211,null,null,null,null,null,null,null,null,null,null,null,null,null,null,null,null,null,null,0,0,0,0,0,0,0,0,0]
[212,null,null,null,null,null,null,null,null,null,null,null,null,null,null,null,null,null,null,0,0,0,0,0,0,0,0,0]
[213,null,null,null,null,null,null,null,null,null,null,null,null,null,null,null,null,null,null,0,0,0,0,0,0,0,0,0]
[214,null,null,null,null,null,null,null,null,null,null,null,null,null,null,null,null,null,null,0,0,0,0,0,0,0,0,0]
[215,null,null,null,null,null,null,null,null,null,null,null,null,null,null,null,null,null,null,0,0,0,0,0,0,0,0,0]
[216,null,null,null,null,null,null,null,null,null,null,null,null,null,null,null,null,null,null,0,0,0,0,0,0,0,0,0]
[217,null,null,null,null,null,null,null,null,null,null,null,null,null,null,null,null,null,null,0,0,0,0,0,0,0,0,0]
[218,null,null,null,null,null,null,null,null,null,null,null,null,null,null,null,null,null,null,0,0,0,0,0,0,0,0,0]
[219,null,null,null,null,null,null,null,null,null,null,null,null,null,null,null,null,null,null,0,0,0,0,0,0,0,0,0]
[220,null,null,null,null,null,null,null,null,null,null,null,null,null,null,null,null,null,null,0,0,0,0,0,0,0,0,0]
[221,null,null,null,null,null,null,null,null,null,null,null,null,null,null,null,null,null,null,0,0,0,0,0,0,0,0,0]
[222,null,null,null,null,null,null,null,null,null,null,null,null,null,null,null,null,null,null,0,0,0,0,0,0,0,0,0]
[223,null,null,null,null,null,null,null,null,null,null,null,null,null,null,null,null,null,null,0,0,0,0,0,0,0,0,0]
[224,null,null,null,null,null,null,null,null,null,null,null,null,null,null,null,null,null,null,0,0,0,0,0,0,0,0,0]
[225,null,null,null,null,null,null,null,null,null,null,null,null,null,null,null,null,null,null,0,{"$f":"((((IF($G245=U$20,$G245*$C245,\"0\"))+(IF($H245=U$20,$H245*$C245,\"0\"))+(IF($I245=U$20,$I245*$D245,\"0\"))+(IF($J245=U$20,$J245*$D245,\"0\")))*$E245)/1000)/U$20","v":0},0,0,0,0,0,0,0]
[226,null,null,null,null,null,null,null,null,null,null,null,null,null,null,null,null,null,null,0,0,0,0,0,0,0,0,0]
[227,null,null,null,null,null,null,null,null,null,null,null,null,null,null,null,null,null,null,0,0,0,0,0,0,0,0,0]
[228,null,null,null,null,null,null,null,null,null,null,null,null,null,null,null,null,null,null,0,0,0,0,0,0,0,0,0]
[229,null,null,null,null,null,null,null,null,null,null,null,null,null,null,null,null,null,null,0,0,0,0,0,0,0,0,0]
[230,null,null,null,null,null,null,null,null,null,null,null,null,null,null,null,null,null,null,0,0,0,0,0,0,0,0,0]
[231,null,null,null,null,null,null,null,null,null,null,null,null,null,null,null,null,null,null,0,0,0,0,0,0,0,0,0]
[]
[]
[]
[]
[]
[]
[]
[]
[]
[]
[]
[]
[]
[]
[]
[]
[]
[]
[]
[]
[]
[]
[]
[]
[]
[]
[]
[]
[]
[]
[]
[]
[]
[]
[]
[]
[]
[]
[]
[]
[]
[]
[]
[]
[]
[]
[]
[]
[]
[]
[]
[]
[]
[]
[]
[]
[]
[]
[]
[]
[]
[]
[]
[]
[]
[]
[]
[]
[]
[]
[]
[]
[]
[]
[]
[]
[]
[]
[]
[]
[]
[]
[]
[]
[]
[]
[]
[]
[]
[]
[]
[]
[]
[]
[]
[]
[]
[]
[]
[]
[]
[]
[]
[]
[]
[]
[]
[]
[]
[]
[]
[]
[]
[]
[]
[]
[]
[]
[]
[]
[]
[]
[]
[]
[]
[]
[]
[]
[]
[]
[]
[]
[]
[]
[]
[]
[]
[]
[]
[]
[]
[]
[]
[]
[]
[]
[]
[]
[]
[]
[]
[]
[]
[]
[]
[]
[]
[]
[]
[]
[]
[]
[]
[]
[null,null,null,null,null,null,null,null,null,null,null,null,null,null,null,null,null,null,null,null,"ABS 0,5","ABS 2","ABS 0,5","ABS 2","ABS 1","ABS 42/1","zesilování","sdružené formáty"]
[null,null,null,null,null,null,null,null,null,null,null,null,null,null,null,null,null,null,null,"m2",1,2,3,4,5,6,"m2","m2"]
[]
[null,null,null,null,null,null,null,null,null,null,null,null,null,null,null,null,null,null,null,{"$f":"SUM(T21:T251)","v":0},0,0,0,0,0,0,0,0]
[]
[null,null,null,null,null,null,null,null,null,null,null,null,null,null,null,null,null,null,"výpočet",null,null,null,"plocha","m2",{"$f":"T$419","v":0}]
[null,null,null,null,null,null,null,null,null,null,null,null,null,null,null,null,null,null,null,null,null,null,"ABS 22/0,5","m",{"$f":"U$419","v":0}]
[null,null,null,null,null,null,null,null,null,null,null,null,null,null,null,null,null,null,null,null,null,null,"ABS 22/2","m",{"$f":"V$419","v":0}]
[null,null,null,null,null,null,null,null,null,null,null,null,null,null,null,null,null,null,null,null,null,null,"ABS 42/0,5","m",{"$f":"W$419","v":0}]
[null,null,null,null,null,null,null,null,null,null,null,null,null,null,null,null,null,null,null,null,null,null,"ABS 42/2","m",{"$f":"X$419","v":0}]
[null,null,null,null,null,null,null,null,null,null,null,null,null,null,null,null,null,null,null,null,null,null,"ABS 22/1","m",{"$f":"Y$419","v":0}]
[null,null,null,null,null,null,null,null,null,null,null,null,null,null,null,null,null,null,null,null,null,null,"ABS 42/1","m",{"$f":"Z$419","v":0}]
[]
[]
[null,null,null,null,null,null,null,null,null,null,null,null,null,null,null,null,null,null,null,null,null,null,"počet","KS",{"$f":"SUM(E21:E251)","v":0}]
[null,null,null,null,null,null,null,null,null,null,null,null,null,null,null,null,null,null,null,null,null,null,"plocha zesílení","m2",{"$f":"AA$419","v":0}]
[null,null,null,null,null,null,null,null,null,null,null,null,null,null,null,null,null,null,null,null,null,null,"plocha celkem","m2",{"$f":"T419+Y431","v":0}]
[null,null,null,null,null,null,null,null,null,null,null,null,null,null,null,null,null,null,null,null,null,null,"plocha SF","m2",{"$f":"AB$419","v":0}]

{"sheet":"Materiál_3","index":2,"n_rows":433,"n_cols":28,"rows_kept":433,"cut":false,"hidden":false,"merged":[[431,24,431,25],[432,24,432,25],[425,24,425,25],[426,24,426,25],[427,24,427,25],[428,24,428,25],[429,24,429,25],[430,24,430,25],[16,2,16,9],[16,13,16,14],[18,0,19,0],[19,6,19,9],[420,18,432,21],[420,24,420,25],[421,24,421,25],[422,24,422,25],[423,24,423,25],[424,24,424,25],[12,2,12,3],[12,4,12,9],[12,13,12,15],[13,2,13,3],[13,4,13,9],[13,13,13,15],[10,6,10,14],[1,0,1,15],[3,0,3,15],[7,6,7,14],[8,6,8,14],[9,6,9,14]]}
[]
["!!! UVÁDĚJTE ROZMĚRY VČ. HRAN, PŘIČEMŽ DODRŽTE ZNAČENÍ UVEDENÉ VEDLE TABULKY !!!"]
[]
["!!! STANDARTNĚ OLEPUJEME TRANSPARENTNÍM POLYURETANOVÝM LEPIDLEM !!!"]
[]
[]
[null,null,null,null,null,null,null,null,null,null,null,null,null,null,null,null,null,1,"znamená ABS 0,5"]
[null,"Dodavatel:",null,null,null,null,"Označení zakázky:",null,null,null,null,null,null,null,null,{"$f":"IF(Materiál_1!P8=\"\",\"\",Materiál_1!P8)","v":""},null,2,"znamená ABS 2"]
[null,{"$f":"Materiál_1!B9","v":"NODO ART, s.r.o."},null,null,null,null,"Odběratel:",null,null,null,null,null,null,null,null,{"$f":"IF(Materiál_1!P9=\"\",\"\",Materiál_1!P9)","v":""},{"$f":"IF(Materiál_1!Q9=\"\",\"\",Materiál_1!Q9)","v":""},{"$f":"IF(Materiál_1!R9=\"\",\"\",Materiál_1!R9)","v":3},{"$f":"IF(Materiál_1!S9=\"\",\"\",Materiál_1!S9)","v":"znamená ABS 42/0,5"},{"$f":"IF(Materiál_1!T9=\"\",\"\",Materiál_1!T9)","v":""},{"$f":"IF(Materiál_1!U9=\"\",\"\",Materiál_1!U9)","v":""}]
[null,{"$f":"Materiál_1!B10","v":"tel. +420 773 236 200"},null,null,null,null,"tel:",null,null,null,null,null,null,null,null,{"$f":"IF(Materiál_1!P10=\"\",\"\",Materiál_1!P10)","v":""},null,4,"znamená ABS 42/2"]
[null,{"$f":"Materiál_1!B11","v":"e-mail: dubovecky@nodo.cz"},null,null,null,null,"e - mail :",null,null,null,null,null,null,null,null,{"$f":"IF(Materiál_1!P11=\"\",\"\",Materiál_1!P11)","v":""},null,5,"znamená ABS 22/1"]
[null,null,null,null,null,null,null,null,null,null,null,null,null,null,null,null,null,6,"znamená ABS 42/1"]
[null,"OBYČEJNÉ LEPIDLO \"EVA\"","DOPRAVA          \"ZÁVOZ\"",null,"NEBALIT NA PALETU",null,null,null,null,null,null,null,null,"UVOLŇOVACÍ ŘEZ"]
[null,{"$f":"IF(Materiál_1!B14=\"\",\"\",Materiál_1!B14)","v":""},{"$f":"IF(Materiál_1!C14=\"\",\"\",Materiál_1!C14)","v":""},{"$f":"IF(Materiál_1!D14=\"\",\"\",Materiál_1!D14)","v":""},{"$f":"IF(Materiál_1!E14=\"\",\"\",Materiál_1!E14)","v":""},{"$f":"IF(Materiál_1!F14=\"\",\"\",Materiál_1!F14)","v":""},{"$f":"IF(Materiál_1!G14=\"\",\"\",Materiál_1!G14)","v":""},{"$f":"IF(Materiál_1!H14=\"\",\"\",Materiál_1!H14)","v":""},{"$f":"IF(Materiál_1!I14=\"\",\"\",Materiál_1!I14)","v":""},{"$f":"IF(Materiál_1!J14=\"\",\"\",Materiál_1!J14)","v":""}]
[]
[]
[null,"Druh materiálu:",null,null,null,null,null,null,null,null,null,null,null,null,null,"BÍLÉ LEPIDLO"]
[]
["P.č.",null,"X1, X2","Y1, Y2",null,null,"X1","X2","Y1","Y2",null,null,null,null,null,null,null,null,null,null,"ABS 0,5","ABS 2","ABS 0,5","ABS 2","ABS 1","ABS 42/1","zesilování","sdružené formáty"]
[null,"Název","délka                             (po vláknech) (mm)","šířka                                        (napříč vláknům) (mm)","počet (ks)","orientace lét","olepování",null,null,null,null,null,null,"zesilování","sdružené formáty","Poznámka",null,null,null,"m2",1,2,3,4,5,6,"m2","m2"]
[1,null,null,null,null,null,null,null,null,null,null,null,null,null,null,null,null,null,null,{"$f":"(C21*D21*E21)/1000000","v":0},{"$f":"((((IF($G21=U$20,$G21*$C21,\"0\"))+(IF($H21=U$20,$H21*$C21,\"0\"))+(IF($I21=U$20,$I21*$D21,\"0\"))+(IF($J21=U$20,$J21*$D21,\"0\")))*$E21)/1000)/U$20","v":0},0,0,0,0,0,{"$f":"IF(N21=\"\",0,(C21*D21*E21)/1000000)","v":0},{"$f":"IF(O21=\"\",0,(C21*D21*E21)/1000000)","v":0}]
[2,null,null,null,null,null,null,null,null,null,null,null,null,null,null,null,null,null,null,0,0,0,0,0,0,0,{"$f":"IF(N22=\"\",0,(C22*D22*E22)/1000000)","v":0},{"$f":"IF(O22=\"\",0,(C22*D22*E22)/1000000)","v":0}]
[3,null,null,null,null,null,null,null,null,null,null,null,null,null,null,null,null,null,null,0,0,0,0,0,0,0,0,0]
[4,null,null,null,null,null,null,null,null,null,null,null,null,null,null,null,null,null,null,0,0,0,0,0,0,0,0,0]
[5,null,null,null,null,null,null,null,null,null,null,null,null,null,null,null,null,null,null,0,0,0,0,0,0,0,0,0]
[6,null,null,null,null,null,null,null,null,null,null,null,null,null,null,null,null,null,null,0,0,0,0,0,0,0,0,0]
[7,null,null,null,null,null,null,null,null,null,null,null,null,null,null,null,null,null,null,0,0,0,0,0,0,0,0,0]
[8,null,null,null,null,null,null,null,null,null,null,null,null,null,null,null,null,null,null,0,0,0,0,0,0,0,0,0]
[9,null,null,null,null,null,null,null,null,null,null,null,null,null,null,null,null,null,null,0,0,0,0,0,0,0,0,0]
[10,null,null,null,null,null,null,null,null,null,null,null,null,null,null,null,null,null,null,0,0,0,0,0,0,0,0,0]
[11,null,null,null,null,null,null,null,null,null,null,null,null,null,null,null,null,null,null,0,0,0,0,0,0,0,0,0]
[12,null,null,null,null,null,null,null,null,null,null,null,null,null,null,null,null,null,null,0,0,0,0,0,0,0,0,0]
[13,null,null,null,null,null,null,null,null,null,null,null,null,null,null,null,null,null,null,0,0,0,0,0,0,0,0,0]
[14,null,null,null,null,null,null,null,null,null,null,null,null,null,null,null,null,null,null,0,0,0,0,0,0,0,0,0]
[15,null,null,null,null,null,null,null,null,null,null,null,null,null,null,null,null,null,null,0,0,0,0,0,0,0,0,0]
[16,null,null,null,null,null,null,null,null,null,null,null,null,null,null,null,null,null,null,0,0,0,0,0,0,0,0,0]
[17,null,null,null,null,null,null,null,null,null,null,null,null,null,null,null,null,null,null,0,{"$f":"((((IF($G37=U$20,$G37*$C37,\"0\"))+(IF($H37=U$20,$H37*$C37,\"0\"))+(IF($I37=U$20,$I37*$D37,\"0\"))+(IF($J37=U$20,$J37*$D37,\"0\")))*$E37)/1000)/U$20","v":0},0,0,0,0,0,0,0]
[18,null,null,null,null,null,null,null,null,null,null,null,null,null,null,null,null,null,null,0,0,0,0,0,0,0,0,0]
[19,null,null,null,null,null,null,null,null,null,null,null,null,null,null,null,null,null,null,0,0,0,0,0,0,0,0,0]
[20,null,null,null,null,null,null,null,null,null,null,null,null,null,null,null,null,null,null,0,0,0,0,0,0,0,0,0]
[21,null,null,null,null,null,null,null,null,null,null,null,null,null,null,null,null,null,null,0,0,0,0,0,0,0,0,0]
[22,null,null,null,null,null,null,null,null,null,null,null,null,null,null,null,null,null,null,0,0,0,0,0,0,0,0,0]
[23,null,null,null,null,null,null,null,null,null,null,null,null,null,null,null,null,null,null,0,0,0,0,0,0,0,0,0]
[24,null,null,null,null,null,null,null,null,null,null,null,null,null,null,null,null,null,null,0,0,0,0,0,0,0,0,0]
[25,null,null,null,null,null,null,null,null,null,null,null,null,null,null,null,null,null,null,0,0,0,0,0,0,0,0,0]
[26,null,null,null,null,null,null,null,null,null,null,null,null,null,null,null,null,null,null,0,0,0,0,0,0,0,0,0]
[27,null,null,null,null,null,null,null,null,null,null,null,null,null,null,null,null,null,null,0,0,0,0,0,0,0,0,0]
[28,null,null,null,null,null,null,null,null,null,null,null,null,null,null,null,null,null,null,0,0,0,0,0,0,0,0,0]
[29,null,null,null,null,null,null,null,null,null,null,null,null,null,null,null,null,null,null,0,0,0,0,0,0,0,0,0]
[30,null,null,null,null,null,null,null,null,null,null,null,null,null,null,null,null,null,null,0,0,0,0,0,0,0,0,0]
[31,null,null,null,null,null,null,null,null,null,null,null,null,null,null,null,null,null,null,0,0,0,0,0,0,0,0,0]
[32,null,null,null,null,null,null,null,null,null,null,null,null,null,null,null,null,null,null,0,0,0,0,0,0,0,0,0]
[33,null,null,null,null,null,null,null,null,null,null,null,null,null,null,null,null,null,null,0,{"$f":"((((IF($G53=U$20,$G53*$C53,\"0\"))+(IF($H53=U$20,$H53*$C53,\"0\"))+(IF($I53=U$20,$I53*$D53,\"0\"))+(IF($J53=U$20,$J53*$D53,\"0\")))*$E53)/1000)/U$20","v":0},0,0,0,0,0,0,0]
[34,null,null,null,null,null,null,null,null,null,null,null,null,null,null,null,null,null,null,0,0,0,0,0,0,0,0,0]
[35,null,null,null,null,null,null,null,null,null,null,null,null,null,null,null,null,null,null,0,0,0,0,0,0,0,0,0]
[36,null,null,null,null,null,null,null,null,null,null,null,null,null,null,null,null,null,null,0,0,0,0,0,0,0,0,0]
[37,null,null,null,null,null,null,null,null,null,null,null,null,null,null,null,null,null,null,0,0,0,0,0,0,0,0,0]
[38,null,null,null,null,null,null,null,null,null,null,null,null,null,null,null,null,null,null,0,0,0,0,0,0,0,0,0]
[39,null,null,null,null,null,null,null,null,null,null,null,null,null,null,null,null,null,null,0,0,0,0,0,0,0,0,0]
[40,null,null,null,null,null,null,null,null,null,null,null,null,null,null,null,null,null,null,0,0,0,0,0,0,0,0,0]
[41,null,null,null,null,null,null,null,null,null,null,null,null,null,null,null,null,null,null,0,0,0,0,0,0,0,0,0]
[42,null,null,null,null,null,null,null,null,null,null,null,null,null,null,null,null,null,null,0,0,0,0,0,0,0,0,0]
[43,null,null,null,null,null,null,null,null,null,null,null,null,null,null,null,null,null,null,0,0,0,0,0,0,0,0,0]
[44,null,null,null,null,null,null,null,null,null,null,null,null,null,null,null,null,null,null,0,0,0,0,0,0,0,0,0]
[45,null,null,null,null,null,null,null,null,null,null,null,null,null,null,null,null,null,null,0,0,0,0,0,0,0,0,0]
[46,null,null,null,null,null,null,null,null,null,null,null,null,null,null,null,null,null,null,0,0,0,0,0,0,0,0,0]
[47,null,null,null,null,null,null,null,null,null,null,null,null,null,null,null,null,null,null,0,0,0,0,0,0,0,0,0]
[48,null,null,null,null,null,null,null,null,null,null,null,null,null,null,null,null,null,null,0,0,0,0,0,0,0,0,0]
[49,null,null,null,null,null,null,null,null,null,null,null,null,null,null,null,null,null,null,0,{"$f":"((((IF($G69=U$20,$G69*$C69,\"0\"))+(IF($H69=U$20,$H69*$C69,\"0\"))+(IF($I69=U$20,$I69*$D69,\"0\"))+(IF($J69=U$20,$J69*$D69,\"0\")))*$E69)/1000)/U$20","v":0},0,0,0,0,0,0,0]
[50,null,null,null,null,null,null,null,null,null,null,null,null,null,null,null,null,null,null,0,0,0,0,0,0,0,0,0]
[51,null,null,null,null,null,null,null,null,null,null,null,null,null,null,null,null,null,null,0,0,0,0,0,0,0,0,0]
[52,null,null,null,null,null,null,null,null,null,null,null,null,null,null,null,null,null,null,0,0,0,0,0,0,0,0,0]
[53,null,null,null,null,null,null,null,null,null,null,null,null,null,null,null,null,null,null,0,0,0,0,0,0,0,0,0]
[54,null,null,null,null,null,null,null,null,null,null,null,null,null,null,null,null,null,null,0,0,0,0,0,0,0,0,0]
[55,null,null,null,null,null,null,null,null,null,null,null,null,null,null,null,null,null,null,0,0,0,0,0,0,0,0,0]
[56,null,null,null,null,null,null,null,null,null,null,null,null,null,null,null,null,null,null,0,0,0,0,0,0,0,0,0]
[57,null,null,null,null,null,null,null,null,null,null,null,null,null,null,null,null,null,null,0,0,0,0,0,0,0,0,0]
[58,null,null,null,null,null,null,null,null,null,null,null,null,null,null,null,null,null,null,0,0,0,0,0,0,0,0,0]
[59,null,null,null,null,null,null,null,null,null,null,null,null,null,null,null,null,null,null,0,0,0,0,0,0,0,0,0]
[60,null,null,null,null,null,null,null,null,null,null,null,null,null,null,null,null,null,null,0,0,0,0,0,0,0,0,0]
[61,null,null,null,null,null,null,null,null,null,null,null,null,null,null,null,null,null,null,0,0,0,0,0,0,0,0,0]
[62,null,null,null,null,null,null,null,null,null,null,null,null,null,null,null,null,null,null,0,0,0,0,0,0,0,0,0]
[63,null,null,null,null,null,null,null,null,null,null,null,null,null,null,null,null,null,null,0,0,0,0,0,0,0,0,0]
[64,null,null,null,null,null,null,null,null,null,null,null,null,null,null,null,null,null,null,0,0,0,0,0,0,0,0,0]
[65,null,null,null,null,null,null,null,null,null,null,null,null,null,null,null,null,null,null,{"$f":"(C85*D85*E85)/1000000","v":0},{"$f":"((((IF($G85=U$20,$G85*$C85,\"0\"))+(IF($H85=U$20,$H85*$C85,\"0\"))+(IF($I85=U$20,$I85*$D85,\"0\"))+(IF($J85=U$20,$J85*$D85,\"0\")))*$E85)/1000)/U$20","v":0},0,0,0,0,0,0,0]
[66,null,null,null,null,null,null,null,null,null,null,null,null,null,null,null,null,null,null,0,0,0,0,0,0,0,{"$f":"IF(N86=\"\",0,(C86*D86*E86)/1000000)","v":0},{"$f":"IF(O86=\"\",0,(C86*D86*E86)/1000000)","v":0}]
[67,null,null,null,null,null,null,null,null,null,null,null,null,null,null,null,null,null,null,0,0,0,0,0,0,0,0,0]
[68,null,null,null,null,null,null,null,null,null,null,null,null,null,null,null,null,null,null,0,0,0,0,0,0,0,0,0]
[69,null,null,null,null,null,null,null,null,null,null,null,null,null,null,null,null,null,null,0,0,0,0,0,0,0,0,0]
[70,null,null,null,null,null,null,null,null,null,null,null,null,null,null,null,null,null,null,0,0,0,0,0,0,0,0,0]
[71,null,null,null,null,null,null,null,null,null,null,null,null,null,null,null,null,null,null,0,0,0,0,0,0,0,0,0]
[72,null,null,null,null,null,null,null,null,null,null,null,null,null,null,null,null,null,null,0,0,0,0,0,0,0,0,0]
[73,null,null,null,null,null,null,null,null,null,null,null,null,null,null,null,null,null,null,0,0,0,0,0,0,0,0,0]
[74,null,null,null,null,null,null,null,null,null,null,null,null,null,null,null,null,null,null,0,0,0,0,0,0,0,0,0]
[75,null,null,null,null,null,null,null,null,null,null,null,null,null,null,null,null,null,null,0,0,0,0,0,0,0,0,0]
[76,null,null,null,null,null,null,null,null,null,null,null,null,null,null,null,null,null,null,0,0,0,0,0,0,0,0,0]
[77,null,null,null,null,null,null,null,null,null,null,null,null,null,null,null,null,null,null,0,0,0,0,0,0,0,0,0]
[78,null,null,null,null,null,null,null,null,null,null,null,null,null,null,null,null,null,null,0,0,0,0,0,0,0,0,0]
[79,null,null,null,null,null,null,null,null,null,null,null,null,null,null,null,null,null,null,0,0,0,0,0,0,0,0,0]
[80,null,null,null,null,null,null,null,null,null,null,null,null,null,null,null,null,null,null,0,0,0,0,0,0,0,0,0]
[81,null,null,null,null,null,null,null,null,null,null,null,null,null,null,null,null,null,null,0,{"$f":"((((IF($G101=U$20,$G101*$C101,\"0\"))+(IF($H101=U$20,$H101*$C101,\"0\"))+(IF($I101=U$20,$I101*$D101,\"0\"))+(IF($J101=U$20,$J101*$D101,\"0\")))*$E101)/1000)/U$20","v":0},0,0,0,0,0,0,0]
[82,null,null,null,null,null,null,null,null,null,null,null,null,null,null,null,null,null,null,0,0,0,0,0,0,0,0,0]
[83,null,null,null,null,null,null,null,null,null,null,null,null,null,null,null,null,null,null,0,0,0,0,0,0,0,0,0]
[84,null,null,null,null,null,null,null,null,null,null,null,null,null,null,null,null,null,null,0,0,0,0,0,0,0,0,0]
[85,null,null,null,null,null,null,null,null,null,null,null,null,null,null,null,null,null,null,0,0,0,0,0,0,0,0,0]
[86,null,null,null,null,null,null,null,null,null,null,null,null,null,null,null,null,null,null,0,0,0,0,0,0,0,0,0]
[87,null,null,null,null,null,null,null,null,null,null,null,null,null,null,null,null,null,null,0,0,0,0,0,0,0,0,0]
[88,null,null,null,null,null,null,null,null,null,null,null,null,null,null,null,null,null,null,0,0,0,0,0,0,0,0,0]
[89,null,null,null,null,null,null,null,null,null,null,null,null,null,null,null,null,null,null,0,0,0,0,0,0,0,0,0]
[90,null,null,null,null,null,null,null,null,null,null,null,null,null,null,null,null,null,null,0,0,0,0,0,0,0,0,0]
[91,null,null,null,null,null,null,null,null,null,null,null,null,null,null,null,null,null,null,0,0,0,0,0,0,0,0,0]
[92,null,null,null,null,null,null,null,null,null,null,null,null,null,null,null,null,null,null,0,0,0,0,0,0,0,0,0]
[93,null,null,null,null,null,null,null,null,null,null,null,null,null,null,null,null,null,null,0,0,0,0,0,0,0,0,0]
[94,null,null,null,null,null,null,null,null,null,null,null,null,null,null,null,null,null,null,0,0,0,0,0,0,0,0,0]
[95,null,null,null,null,null,null,null,null,null,null,null,null,null,null,null,null,null,null,0,0,0,0,0,0,0,0,0]
[96,null,null,null,null,null,null,null,null,null,null,null,null,null,null,null,null,null,null,0,0,0,0,0,0,0,0,0]
[97,null,null,null,null,null,null,null,null,null,null,null,null,null,null,null,null,null,null,0,{"$f":"((((IF($G117=U$20,$G117*$C117,\"0\"))+(IF($H117=U$20,$H117*$C117,\"0\"))+(IF($I117=U$20,$I117*$D117,\"0\"))+(IF($J117=U$20,$J117*$D117,\"0\")))*$E117)/1000)/U$20","v":0},0,0,0,0,0,0,0]
[98,null,null,null,null,null,null,null,null,null,null,null,null,null,null,null,null,null,null,0,0,0,0,0,0,0,0,0]
[99,null,null,null,null,null,null,null,null,null,null,null,null,null,null,null,null,null,null,0,0,0,0,0,0,0,0,0]
[100,null,null,null,null,null,null,null,null,null,null,null,null,null,null,null,null,null,null,0,0,0,0,0,0,0,0,0]
[101,null,null,null,null,null,null,null,null,null,null,null,null,null,null,null,null,null,null,0,0,0,0,0,0,0,0,0]
[102,null,null,null,null,null,null,null,null,null,null,null,null,null,null,null,null,null,null,0,0,0,0,0,0,0,0,0]
[103,null,null,null,null,null,null,null,null,null,null,null,null,null,null,null,null,null,null,0,0,0,0,0,0,0,0,0]
[104,null,null,null,null,null,null,null,null,null,null,null,null,null,null,null,null,null,null,0,0,0,0,0,0,0,0,0]
[105,null,null,null,null,null,null,null,null,null,null,null,null,null,null,null,null,null,null,0,0,0,0,0,0,0,0,0]
[106,null,null,null,null,null,null,null,null,null,null,null,null,null,null,null,null,null,null,0,0,0,0,0,0,0,0,0]
[107,null,null,null,null,null,null,null,null,null,null,null,null,null,null,null,null,null,null,0,0,0,0,0,0,0,0,0]
[108,null,null,null,null,null,null,null,null,null,null,null,null,null,null,null,null,null,null,0,0,0,0,0,0,0,0,0]
[109,null,null,null,null,null,null,null,null,null,null,null,null,null,null,null,null,null,null,0,0,0,0,0,0,0,0,0]
[110,null,null,null,null,null,null,null,null,null,null,null,null,null,null,null,null,null,null,0,0,0,0,0,0,0,0,0]
[111,null,null,null,null,null,null,null,null,null,null,null,null,null,null,null,null,null,null,0,0,0,0,0,0,0,0,0]
[112,null,null,null,null,null,null,null,null,null,null,null,null,null,null,null,null,null,null,0,0,0,0,0,0,0,0,0]
[113,null,null,null,null,null,null,null,null,null,null,null,null,null,null,null,null,null,null,0,{"$f":"((((IF($G133=U$20,$G133*$C133,\"0\"))+(IF($H133=U$20,$H133*$C133,\"0\"))+(IF($I133=U$20,$I133*$D133,\"0\"))+(IF($J133=U$20,$J133*$D133,\"0\")))*$E133)/1000)/U$20","v":0},0,0,0,0,0,0,0]
[114,null,null,null,null,null,null,null,null,null,null,null,null,null,null,null,null,null,null,0,0,0,0,0,0,0,0,0]
[115,null,null,null,null,null,null,null,null,null,null,null,null,null,null,null,null,null,null,0,0,0,0,0,0,0,0,0]
[116,null,null,null,null,null,null,null,null,null,null,null,null,null,null,null,null,null,null,0,0,0,0,0,0,0,0,0]
[117,null,null,null,null,null,null,null,null,null,null,null,null,null,null,null,null,null,null,0,0,0,0,0,0,0,0,0]
[118,null,null,null,null,null,null,null,null,null,null,null,null,null,null,null,null,null,null,0,0,0,0,0,0,0,0,0]
[119,null,null,null,null,null,null,null,null,null,null,null,null,null,null,null,null,null,null,0,0,0,0,0,0,0,0,0]
[120,null,null,null,null,null,null,null,null,null,null,null,null,null,null,null,null,null,null,0,0,0,0,0,0,0,0,0]
[121,null,null,null,null,null,null,null,null,null,null,null,null,null,null,null,null,null,null,0,0,0,0,0,0,0,0,0]
[122,null,null,null,null,null,null,null,null,null,null,null,null,null,null,null,null,null,null,0,0,0,0,0,0,0,0,0]
[123,null,null,null,null,null,null,null,null,null,null,null,null,null,null,null,null,null,null,0,0,0,0,0,0,0,0,0]
[124,null,null,null,null,null,null,null,null,null,null,null,null,null,null,null,null,null,null,0,0,0,0,0,0,0,0,0]
[125,null,null,null,null,null,null,null,null,null,null,null,null,null,null,null,null,null,null,0,0,0,0,0,0,0,0,0]
[126,null,null,null,null,null,null,null,null,null,null,null,null,null,null,null,null,null,null,0,0,0,0,0,0,0,0,0]
[127,null,null,null,null,null,null,null,null,null,null,null,null,null,null,null,null,null,null,0,0,0,0,0,0,0,0,0]
[128,null,null,null,null,null,null,null,null,null,null,null,null,null,null,null,null,null,null,0,0,0,0,0,0,0,0,0]
[129,null,null,null,null,null,null,null,null,null,null,null,null,null,null,null,null,null,null,{"$f":"(C149*D149*E149)/1000000","v":0},{"$f":"((((IF($G149=U$20,$G149*$C149,\"0\"))+(IF($H149=U$20,$H149*$C149,\"0\"))+(IF($I149=U$20,$I149*$D149,\"0\"))+(IF($J149=U$20,$J149*$D149,\"0\")))*$E149)/1000)/U$20","v":0},0,0,0,0,0,0,0]
[130,null,null,null,null,null,null,null,null,null,null,null,null,null,null,null,null,null,null,0,0,0,0,0,0,0,{"$f":"IF(N150=\"\",0,(C150*D150*E150)/1000000)","v":0},{"$f":"IF(O150=\"\",0,(C150*D150*E150)/1000000)","v":0}]
[131,null,null,null,null,null,null,null,null,null,null,null,null,null,null,null,null,null,null,0,0,0,0,0,0,0,0,0]
[132,null,null,null,null,null,null,null,null,null,null,null,null,null,null,null,null,null,null,0,0,0,0,0,0,0,0,0]
[133,null,null,null,null,null,null,null,null,null,null,null,null,null,null,null,null,null,null,0,0,0,0,0,0,0,0,0]
[134,null,null,null,null,null,null,null,null,null,null,null,null,null,null,null,null,null,null,0,0,0,0,0,0,0,0,0]
[135,null,null,null,null,null,null,null,null,null,null,null,null,null,null,null,null,null,null,0,0,0,0,0,0,0,0,0]
[136,null,null,null,null,null,null,null,null,null,null,null,null,null,null,null,null,null,null,0,0,0,0,0,0,0,0,0]
[137,null,null,null,null,null,null,null,null,null,null,null,null,null,null,null,null,null,null,0,0,0,0,0,0,0,0,0]
[138,null,null,null,null,null,null,null,null,null,null,null,null,null,null,null,null,null,null,0,0,0,0,0,0,0,0,0]
[139,null,null,null,null,null,null,null,null,null,null,null,null,null,null,null,null,null,null,0,0,0,0,0,0,0,0,0]
[140,null,null,null,null,null,null,null,null,null,null,null,null,null,null,null,null,null,null,0,0,0,0,0,0,0,0,0]
[141,null,null,null,null,null,null,null,null,null,null,null,null,null,null,null,null,null,null,0,0,0,0,0,0,0,0,0]
[142,null,null,null,null,null,null,null,null,null,null,null,null,null,null,null,null,null,null,0,0,0,0,0,0,0,0,0]
[143,null,null,null,null,null,null,null,null,null,null,null,null,null,null,null,null,null,null,0,0,0,0,0,0,0,0,0]
[144,null,null,null,null,null,null,null,null,null,null,null,null,null,null,null,null,null,null,0,0,0,0,0,0,0,0,0]
[145,null,null,null,null,null,null,null,null,null,null,null,null,null,null,null,null,null,null,0,{"$f":"((((IF($G165=U$20,$G165*$C165,\"0\"))+(IF($H165=U$20,$H165*$C165,\"0\"))+(IF($I165=U$20,$I165*$D165,\"0\"))+(IF($J165=U$20,$J165*$D165,\"0\")))*$E165)/1000)/U$20","v":0},0,0,0,0,0,0,0]
[146,null,null,null,null,null,null,null,null,null,null,null,null,null,null,null,null,null,null,0,0,0,0,0,0,0,0,0]
[147,null,null,null,null,null,null,null,null,null,null,null,null,null,null,null,null,null,null,0,0,0,0,0,0,0,0,0]
[148,null,null,null,null,null,null,null,null,null,null,null,null,null,null,null,null,null,null,0,0,0,0,0,0,0,0,0]
[149,null,null,null,null,null,null,null,null,null,null,null,null,null,null,null,null,null,null,0,0,0,0,0,0,0,0,0]
[150,null,null,null,null,null,null,null,null,null,null,null,null,null,null,null,null,null,null,0,0,0,0,0,0,0,0,0]
[151,null,null,null,null,null,null,null,null,null,null,null,null,null,null,null,null,null,null,0,0,0,0,0,0,0,0,0]
[152,null,null,null,null,null,null,null,null,null,null,null,null,null,null,null,null,null,null,0,0,0,0,0,0,0,0,0]
[153,null,null,null,null,null,null,null,null,null,null,null,null,null,null,null,null,null,null,0,0,0,0,0,0,0,0,0]
[154,null,null,null,null,null,null,null,null,null,null,null,null,null,null,null,null,null,null,0,0,0,0,0,0,0,0,0]
[155,null,null,null,null,null,null,null,null,null,null,null,null,null,null,null,null,null,null,0,0,0,0,0,0,0,0,0]
[156,null,null,null,null,null,null,null,null,null,null,null,null,null,null,null,null,null,null,0,0,0,0,0,0,0,0,0]
[157,null,null,null,null,null,null,null,null,null,null,null,null,null,null,null,null,null,null,0,0,0,0,0,0,0,0,0]
[158,null,null,null,null,null,null,null,null,null,null,null,null,null,null,null,null,null,null,0,0,0,0,0,0,0,0,0]
[159,null,null,null,null,null,null,null,null,null,null,null,null,null,null,null,null,null,null,0,0,0,0,0,0,0,0,0]
[160,null,null,null,null,null,null,null,null,null,null,null,null,null,null,null,null,null,null,0,0,0,0,0,0,0,0,0]
[161,null,null,null,null,null,null,null,null,null,null,null,null,null,null,null,null,null,null,0,{"$f":"((((IF($G181=U$20,$G181*$C181,\"0\"))+(IF($H181=U$20,$H181*$C181,\"0\"))+(IF($I181=U$20,$I181*$D181,\"0\"))+(IF($J181=U$20,$J181*$D181,\"0\")))*$E181)/1000)/U$20","v":0},0,0,0,0,0,0,0]
[162,null,null,null,null,null,null,null,null,null,null,null,null,null,null,null,null,null,null,0,0,0,0,0,0,0,0,0]
[163,null,null,null,null,null,null,null,null,null,null,null,null,null,null,null,null,null,null,0,0,0,0,0,0,0,0,0]
[164,null,null,null,null,null,null,null,null,null,null,null,null,null,null,null,null,null,null,0,0,0,0,0,0,0,0,0]
[165,null,null,null,null,null,null,null,null,null,null,null,null,null,null,null,null,null,null,0,0,0,0,0,0,0,0,0]
[166,null,null,null,null,null,null,null,null,null,null,null,null,null,null,null,null,null,null,0,0,0,0,0,0,0,0,0]
[167,null,null,null,null,null,null,null,null,null,null,null,null,null,null,null,null,null,null,0,0,0,0,0,0,0,0,0]
[168,null,null,null,null,null,null,null,null,null,null,null,null,null,null,null,null,null,null,0,0,0,0,0,0,0,0,0]
[169,null,null,null,null,null,null,null,null,null,null,null,null,null,null,null,null,null,null,0,0,0,0,0,0,0,0,0]
[170,null,null,null,null,null,null,null,null,null,null,null,null,null,null,null,null,null,null,0,0,0,0,0,0,0,0,0]
[171,null,null,null,null,null,null,null,null,null,null,null,null,null,null,null,null,null,null,0,0,0,0,0,0,0,0,0]
[172,null,null,null,null,null,null,null,null,null,null,null,null,null,null,null,null,null,null,0,0,0,0,0,0,0,0,0]
[173,null,null,null,null,null,null,null,null,null,null,null,null,null,null,null,null,null,null,0,0,0,0,0,0,0,0,0]
[174,null,null,null,null,null,null,null,null,null,null,null,null,null,null,null,null,null,null,0,0,0,0,0,0,0,0,0]
[175,null,null,null,null,null,null,null,null,null,null,null,null,null,null,null,null,null,null,0,0,0,0,0,0,0,0,0]
[176,null,null,null,null,null,null,null,null,null,null,null,null,null,null,null,null,null,null,0,0,0,0,0,0,0,0,0]
[177,null,null,null,null,null,null,null,null,null,null,null,null,null,null,null,null,null,null,0,{"$f":"((((IF($G197=U$20,$G197*$C197,\"0\"))+(IF($H197=U$20,$H197*$C197,\"0\"))+(IF($I197=U$20,$I197*$D197,\"0\"))+(IF($J197=U$20,$J197*$D197,\"0\")))*$E197)/1000)/U$20","v":0},0,0,0,0,0,0,0]
[178,null,null,null,null,null,null,null,null,null,null,null,null,null,null,null,null,null,null,0,0,0,0,0,0,0,0,0]
[179,null,null,null,null,null,null,null,null,null,null,null,null,null,null,null,null,null,null,0,0,0,0,0,0,0,0,0]
[180,null,null,null,null,null,null,null,null,null,null,null,null,null,null,null,null,null,null,0,0,0,0,0,0,0,0,0]
[181,null,null,null,null,null,null,null,null,null,null,null,null,null,null,null,null,null,null,0,0,0,0,0,0,0,0,0]
[182,null,null,null,null,null,null,null,null,null,null,null,null,null,null,null,null,null,null,0,0,0,0,0,0,0,0,0]
[183,null,null,null,null,null,null,null,null,null,null,null,null,null,null,null,null,null,null,0,0,0,0,0,0,0,0,0]
[184,null,null,null,null,null,null,null,null,null,null,null,null,null,null,null,null,null,null,0,0,0,0,0,0,0,0,0]
[185,null,null,null,null,null,null,null,null,null,null,null,null,null,null,null,null,null,null,0,0,0,0,0,0,0,0,0]
[186,null,null,null,null,null,null,null,null,null,null,null,null,null,null,null,null,null,null,0,0,0,0,0,0,0,0,0]
[187,null,null,null,null,null,null,null,null,null,null,null,null,null,null,null,null,null,null,0,0,0,0,0,0,0,0,0]
[188,null,null,null,null,null,null,null,null,null,null,null,null,null,null,null,null,null,null,0,0,0,0,0,0,0,0,0]
[189,null,null,null,null,null,null,null,null,null,null,null,null,null,null,null,null,null,null,0,0,0,0,0,0,0,0,0]
[190,null,null,null,null,null,null,null,null,null,null,null,null,null,null,null,null,null,null,0,0,0,0,0,0,0,0,0]
[191,null,null,null,null,null,null,null,null,null,null,null,null,null,null,null,null,null,null,0,0,0,0,0,0,0,0,0]
[192,null,null,null,null,null,null,null,null,null,null,null,null,null,null,null,null,null,null,0,0,0,0,0,0,0,0,0]
[193,null,null,null,null,null,null,null,null,null,null,null,null,null,null,null,null,null,null,{"$f":"(C213*D213*E213)/1000000","v":0},{"$f":"((((IF($G213=U$20,$G213*$C213,\"0\"))+(IF($H213=U$20,$H213*$C213,\"0\"))+(IF($I213=U$20,$I213*$D213,\"0\"))+(IF($J213=U$20,$J213*$D213,\"0\")))*$E213)/1000)/U$20","v":0},0,0,0,0,0,0,0]
[194,null,null,null,null,null,null,null,null,null,null,null,null,null,null,null,null,null,null,0,0,0,0,0,0,0,{"$f":"IF(N214=\"\",0,(C214*D214*E214)/1000000)","v":0},{"$f":"IF(O214=\"\",0,(C214*D214*E214)/1000000)","v":0}]
[195,null,null,null,null,null,null,null,null,null,null,null,null,null,null,null,null,null,null,0,0,0,0,0,0,0,0,0]
[196,null,null,null,null,null,null,null,null,null,null,null,null,null,null,null,null,null,null,0,0,0,0,0,0,0,0,0]
[197,null,null,null,null,null,null,null,null,null,null,null,null,null,null,null,null,null,null,0,0,0,0,0,0,0,0,0]
[198,null,null,null,null,null,null,null,null,null,null,null,null,null,null,null,null,null,null,0,0,0,0,0,0,0,0,0]
[199,null,null,null,null,null,null,null,null,null,null,null,null,null,null,null,null,null,null,0,0,0,0,0,0,0,0,0]
[200,null,null,null,null,null,null,null,null,null,null,null,null,null,null,null,null,null,null,0,0,0,0,0,0,0,0,0]
[201,null,null,null,null,null,null,null,null,null,null,null,null,null,null,null,null,null,null,0,0,0,0,0,0,0,0,0]
[202,null,null,null,null,null,null,null,null,null,null,null,null,null,null,null,null,null,null,0,0,0,0,0,0,0,0,0]
[203,null,null,null,null,null,null,null,null,null,null,null,null,null,null,null,null,null,null,0,0,0,0,0,0,0,0,0]
[204,null,null,null,null,null,null,null,null,null,null,null,null,null,null,null,null,null,null,0,0,0,0,0,0,0,0,0]
[205,null,null,null,null,null,null,null,null,null,null,null,null,null,null,null,null,null,null,0,0,0,0,0,0,0,0,0]
[206,null,null,null,null,null,null,null,null,null,null,null,null,null,null,null,null,null,null,0,0,0,0,0,0,0,0,0]
[207,null,null,null,null,null,null,null,null,null,null,null,null,null,null,null,null,null,null,0,0,0,0,0,0,0,0,0]
[208,null,null,null,null,null,null,null,null,null,null,null,null,null,null,null,null,null,null,0,0,0,0,0,0,0,0,0]
[209,null,null,null,null,null,null,null,null,null,null,null,null,null,null,null,null,null,null,0,{"$f":"((((IF($G229=U$20,$G229*$C229,\"0\"))+(IF($H229=U$20,$H229*$C229,\"0\"))+(IF($I229=U$20,$I229*$D229,\"0\"))+(IF($J229=U$20,$J229*$D229,\"0\")))*$E229)/1000)/U$20","v":0},0,0,0,0,0,0,0]
[210,null,null,null,null,null,null,null,null,null,null,null,null,null,null,null,null,null,null,0,0,0,0,0,0,0,0,0]
[211,null,null,null,null,null,null,null,null,null,null,null,null,null,null,null,null,null,null,0,0,0,0,0,0,0,0,0]
[212,null,null,null,null,null,null,null,null,null,null,null,null,null,null,null,null,null,null,0,0,0,0,0,0,0,0,0]
[213,null,null,null,null,null,null,null,null,null,null,null,null,null,null,null,null,null,null,0,0,0,0,0,0,0,0,0]
[214,null,null,null,null,null,null,null,null,null,null,null,null,null,null,null,null,null,null,0,0,0,0,0,0,0,0,0]
[215,null,null,null,null,null,null,null,null,null,null,null,null,null,null,null,null,null,null,0,0,0,0,0,0,0,0,0]
[216,null,null,null,null,null,null,null,null,null,null,null,null,null,null,null,null,null,null,0,0,0,0,0,0,0,0,0]
[217,null,null,null,null,null,null,null,null,null,null,null,null,null,null,null,null,null,null,0,0,0,0,0,0,0,0,0]
[218,null,null,null,null,null,null,null,null,null,null,null,null,null,null,null,null,null,null,0,0,0,0,0,0,0,0,0]
[219,null,null,null,null,null,null,null,null,null,null,null,null,null,null,null,null,null,null,0,0,0,0,0,0,0,0,0]
[220,null,null,null,null,null,null,null,null,null,null,null,null,null,null,null,null,null,null,0,0,0,0,0,0,0,0,0]
[221,null,null,null,null,null,null,null,null,null,null,null,null,null,null,null,null,null,null,0,0,0,0,0,0,0,0,0]
[222,null,null,null,null,null,null,null,null,null,null,null,null,null,null,null,null,null,null,0,0,0,0,0,0,0,0,0]
[223,null,null,null,null,null,null,null,null,null,null,null,null,null,null,null,null,null,null,0,0,0,0,0,0,0,0,0]
[224,null,null,null,null,null,null,null,null,null,null,null,null,null,null,null,null,null,null,0,0,0,0,0,0,0,0,0]
[225,null,null,null,null,null,null,null,null,null,null,null,null,null,null,null,null,null,null,0,{"$f":"((((IF($G245=U$20,$G245*$C245,\"0\"))+(IF($H245=U$20,$H245*$C245,\"0\"))+(IF($I245=U$20,$I245*$D245,\"0\"))+(IF($J245=U$20,$J245*$D245,\"0\")))*$E245)/1000)/U$20","v":0},0,0,0,0,0,0,0]
[226,null,null,null,null,null,null,null,null,null,null,null,null,null,null,null,null,null,null,0,0,0,0,0,0,0,0,0]
[227,null,null,null,null,null,null,null,null,null,null,null,null,null,null,null,null,null,null,0,0,0,0,0,0,0,0,0]
[228,null,null,null,null,null,null,null,null,null,null,null,null,null,null,null,null,null,null,0,0,0,0,0,0,0,0,0]
[229,null,null,null,null,null,null,null,null,null,null,null,null,null,null,null,null,null,null,0,0,0,0,0,0,0,0,0]
[230,null,null,null,null,null,null,null,null,null,null,null,null,null,null,null,null,null,null,0,0,0,0,0,0,0,0,0]
[231,null,null,null,null,null,null,null,null,null,null,null,null,null,null,null,null,null,null,0,0,0,0,0,0,0,0,0]
[]
[]
[]
[]
[]
[]
[]
[]
[]
[]
[]
[]
[]
[]
[]
[]
[]
[]
[]
[]
[]
[]
[]
[]
[]
[]
[]
[]
[]
[]
[]
[]
[]
[]
[]
[]
[]
[]
[]
[]
[]
[]
[]
[]
[]
[]
[]
[]
[]
[]
[]
[]
[]
[]
[]
[]
[]
[]
[]
[]
[]
[]
[]
[]
[]
[]
[]
[]
[]
[]
[]
[]
[]
[]
[]
[]
[]
[]
[]
[]
[]
[]
[]
[]
[]
[]
[]
[]
[]
[]
[]
[]
[]
[]
[]
[]
[]
[]
[]
[]
[]
[]
[]
[]
[]
[]
[]
[]
[]
[]
[]
[]
[]
[]
[]
[]
[]
[]
[]
[]
[]
[]
[]
[]
[]
[]
[]
[]
[]
[]
[]
[]
[]
[]
[]
[]
[]
[]
[]
[]
[]
[]
[]
[]
[]
[]
[]
[]
[]
[]
[]
[]
[]
[]
[]
[]
[]
[]
[]
[]
[]
[]
[]
[]
[null,null,null,null,null,null,null,null,null,null,null,null,null,null,null,null,null,null,null,null,"ABS 0,5","ABS 2","ABS 0,5","ABS 2","ABS 1","ABS 42/1","zesilování","sdružené formáty"]
[null,null,null,null,null,null,null,null,null,null,null,null,null,null,null,null,null,null,null,"m2",1,2,3,4,5,6,"m2","m2"]
[]
[null,null,null,null,null,null,null,null,null,null,null,null,null,null,null,null,null,null,null,{"$f":"SUM(T21:T251)","v":0},0,0,0,0,0,0,0,0]
[]
[null,null,null,null,null,null,null,null,null,null,null,null,null,null,null,null,null,null,"výpočet",null,null,null,"plocha","m2",{"$f":"T$419","v":0}]
[null,null,null,null,null,null,null,null,null,null,null,null,null,null,null,null,null,null,null,null,null,null,"ABS 22/0,5","m",{"$f":"U$419","v":0}]
[null,null,null,null,null,null,null,null,null,null,null,null,null,null,null,null,null,null,null,null,null,null,"ABS 22/2","m",{"$f":"V$419","v":0}]
[null,null,null,null,null,null,null,null,null,null,null,null,null,null,null,null,null,null,null,null,null,null,"ABS 42/0,5","m",{"$f":"W$419","v":0}]
[null,null,null,null,null,null,null,null,null,null,null,null,null,null,null,null,null,null,null,null,null,null,"ABS 42/2","m",{"$f":"X$419","v":0}]
[null,null,null,null,null,null,null,null,null,null,null,null,null,null,null,null,null,null,null,null,null,null,"ABS 22/1","m",{"$f":"Y$419","v":0}]
[null,null,null,null,null,null,null,null,null,null,null,null,null,null,null,null,null,null,null,null,null,null,"ABS 42/1","m",{"$f":"Z$419","v":0}]
[]
[]
[null,null,null,null,null,null,null,null,null,null,null,null,null,null,null,null,null,null,null,null,null,null,"počet","KS",{"$f":"SUM(E21:E251)","v":0}]
[null,null,null,null,null,null,null,null,null,null,null,null,null,null,null,null,null,null,null,null,null,null,"plocha zesílení","m2",{"$f":"AA$419","v":0}]
[null,null,null,null,null,null,null,null,null,null,null,null,null,null,null,null,null,null,null,null,null,null,"plocha celkem","m2",{"$f":"T419+Y431","v":0}]
[null,null,null,null,null,null,null,null,null,null,null,null,null,null,null,null,null,null,null,null,null,null,"plocha SF","m2",{"$f":"AB$419","v":0}]

{"sheet":"Materiál_4","index":3,"n_rows":433,"n_cols":28,"rows_kept":433,"cut":false,"hidden":false,"merged":[[431,24,431,25],[432,24,432,25],[425,24,425,25],[426,24,426,25],[427,24,427,25],[428,24,428,25],[429,24,429,25],[430,24,430,25],[16,2,16,9],[16,13,16,14],[18,0,19,0],[19,6,19,9],[420,18,432,21],[420,24,420,25],[421,24,421,25],[422,24,422,25],[423,24,423,25],[424,24,424,25],[12,2,12,3],[12,4,12,9],[12,13,12,15],[13,2,13,3],[13,4,13,9],[13,13,13,15],[10,6,10,14],[1,0,1,15],[3,0,3,15],[7,6,7,14],[8,6,8,14],[9,6,9,14]]}
[]
["!!! UVÁDĚJTE ROZMĚRY VČ. HRAN, PŘIČEMŽ DODRŽTE ZNAČENÍ UVEDENÉ VEDLE TABULKY !!!"]
[]
["!!! STANDARTNĚ OLEPUJEME TRANSPARENTNÍM POLYURETANOVÝM LEPIDLEM !!!"]
[]
[]
[null,null,null,null,null,null,null,null,null,null,null,null,null,null,null,null,null,1,"znamená ABS 0,5"]
[null,"Dodavatel:",null,null,null,null,"Označení zakázky:",null,null,null,null,null,null,null,null,{"$f":"IF(Materiál_1!P8=\"\",\"\",Materiál_1!P8)","v":""},null,2,"znamená ABS 2"]
[null,{"$f":"Materiál_1!B9","v":"NODO ART, s.r.o."},null,null,null,null,"Odběratel:",null,null,null,null,null,null,null,null,{"$f":"IF(Materiál_1!P9=\"\",\"\",Materiál_1!P9)","v":""},{"$f":"IF(Materiál_1!Q9=\"\",\"\",Materiál_1!Q9)","v":""},{"$f":"IF(Materiál_1!R9=\"\",\"\",Materiál_1!R9)","v":3},{"$f":"IF(Materiál_1!S9=\"\",\"\",Materiál_1!S9)","v":"znamená ABS 42/0,5"},{"$f":"IF(Materiál_1!T9=\"\",\"\",Materiál_1!T9)","v":""},{"$f":"IF(Materiál_1!U9=\"\",\"\",Materiál_1!U9)","v":""}]
[null,{"$f":"Materiál_1!B10","v":"tel. +420 773 236 200"},null,null,null,null,"tel:",null,null,null,null,null,null,null,null,{"$f":"IF(Materiál_1!P10=\"\",\"\",Materiál_1!P10)","v":""},null,4,"znamená ABS 42/2"]
[null,{"$f":"Materiál_1!B11","v":"e-mail: dubovecky@nodo.cz"},null,null,null,null,"e - mail :",null,null,null,null,null,null,null,null,{"$f":"IF(Materiál_1!P11=\"\",\"\",Materiál_1!P11)","v":""},null,5,"znamená ABS 22/1"]
[null,null,null,null,null,null,null,null,null,null,null,null,null,null,null,null,null,6,"znamená ABS 42/1"]
[null,"OBYČEJNÉ LEPIDLO \"EVA\"","DOPRAVA          \"ZÁVOZ\"",null,"NEBALIT NA PALETU",null,null,null,null,null,null,null,null,"UVOLŇOVACÍ ŘEZ"]
[null,{"$f":"IF(Materiál_1!B14=\"\",\"\",Materiál_1!B14)","v":""},{"$f":"IF(Materiál_1!C14=\"\",\"\",Materiál_1!C14)","v":""},{"$f":"IF(Materiál_1!D14=\"\",\"\",Materiál_1!D14)","v":""},{"$f":"IF(Materiál_1!E14=\"\",\"\",Materiál_1!E14)","v":""},{"$f":"IF(Materiál_1!F14=\"\",\"\",Materiál_1!F14)","v":""},{"$f":"IF(Materiál_1!G14=\"\",\"\",Materiál_1!G14)","v":""},{"$f":"IF(Materiál_1!H14=\"\",\"\",Materiál_1!H14)","v":""},{"$f":"IF(Materiál_1!I14=\"\",\"\",Materiál_1!I14)","v":""},{"$f":"IF(Materiál_1!J14=\"\",\"\",Materiál_1!J14)","v":""}]
[]
[]
[null,"Druh materiálu:",null,null,null,null,null,null,null,null,null,null,null,null,null,"BÍLÉ LEPIDLO"]
[]
["P.č.",null,"X1, X2","Y1, Y2",null,null,"X1","X2","Y1","Y2",null,null,null,null,null,null,null,null,null,null,"ABS 0,5","ABS 2","ABS 0,5","ABS 2","ABS 1","ABS 42/1","zesilování","sdružené formáty"]
[null,"Název","délka                             (po vláknech) (mm)","šířka                                        (napříč vláknům) (mm)","počet (ks)","orientace lét","olepování",null,null,null,null,null,null,"zesilování","sdružené formáty","Poznámka",null,null,null,"m2",1,2,3,4,5,6,"m2","m2"]
[1,null,null,null,null,null,null,null,null,null,null,null,null,null,null,null,null,null,null,{"$f":"(C21*D21*E21)/1000000","v":0},{"$f":"((((IF($G21=U$20,$G21*$C21,\"0\"))+(IF($H21=U$20,$H21*$C21,\"0\"))+(IF($I21=U$20,$I21*$D21,\"0\"))+(IF($J21=U$20,$J21*$D21,\"0\")))*$E21)/1000)/U$20","v":0},0,0,0,0,0,{"$f":"IF(N21=\"\",0,(C21*D21*E21)/1000000)","v":0},{"$f":"IF(O21=\"\",0,(C21*D21*E21)/1000000)","v":0}]
[2,null,null,null,null,null,null,null,null,null,null,null,null,null,null,null,null,null,null,0,0,0,0,0,0,0,{"$f":"IF(N22=\"\",0,(C22*D22*E22)/1000000)","v":0},{"$f":"IF(O22=\"\",0,(C22*D22*E22)/1000000)","v":0}]
[3,null,null,null,null,null,null,null,null,null,null,null,null,null,null,null,null,null,null,0,0,0,0,0,0,0,0,0]
[4,null,null,null,null,null,null,null,null,null,null,null,null,null,null,null,null,null,null,0,0,0,0,0,0,0,0,0]
[5,null,null,null,null,null,null,null,null,null,null,null,null,null,null,null,null,null,null,0,0,0,0,0,0,0,0,0]
[6,null,null,null,null,null,null,null,null,null,null,null,null,null,null,null,null,null,null,0,0,0,0,0,0,0,0,0]
[7,null,null,null,null,null,null,null,null,null,null,null,null,null,null,null,null,null,null,0,0,0,0,0,0,0,0,0]
[8,null,null,null,null,null,null,null,null,null,null,null,null,null,null,null,null,null,null,0,0,0,0,0,0,0,0,0]
[9,null,null,null,null,null,null,null,null,null,null,null,null,null,null,null,null,null,null,0,0,0,0,0,0,0,0,0]
[10,null,null,null,null,null,null,null,null,null,null,null,null,null,null,null,null,null,null,0,0,0,0,0,0,0,0,0]
[11,null,null,null,null,null,null,null,null,null,null,null,null,null,null,null,null,null,null,0,0,0,0,0,0,0,0,0]
[12,null,null,null,null,null,null,null,null,null,null,null,null,null,null,null,null,null,null,0,0,0,0,0,0,0,0,0]
[13,null,null,null,null,null,null,null,null,null,null,null,null,null,null,null,null,null,null,0,0,0,0,0,0,0,0,0]
[14,null,null,null,null,null,null,null,null,null,null,null,null,null,null,null,null,null,null,0,0,0,0,0,0,0,0,0]
[15,null,null,null,null,null,null,null,null,null,null,null,null,null,null,null,null,null,null,0,0,0,0,0,0,0,0,0]
[16,null,null,null,null,null,null,null,null,null,null,null,null,null,null,null,null,null,null,0,0,0,0,0,0,0,0,0]
[17,null,null,null,null,null,null,null,null,null,null,null,null,null,null,null,null,null,null,0,{"$f":"((((IF($G37=U$20,$G37*$C37,\"0\"))+(IF($H37=U$20,$H37*$C37,\"0\"))+(IF($I37=U$20,$I37*$D37,\"0\"))+(IF($J37=U$20,$J37*$D37,\"0\")))*$E37)/1000)/U$20","v":0},0,0,0,0,0,0,0]
[18,null,null,null,null,null,null,null,null,null,null,null,null,null,null,null,null,null,null,0,0,0,0,0,0,0,0,0]
[19,null,null,null,null,null,null,null,null,null,null,null,null,null,null,null,null,null,null,0,0,0,0,0,0,0,0,0]
[20,null,null,null,null,null,null,null,null,null,null,null,null,null,null,null,null,null,null,0,0,0,0,0,0,0,0,0]
[21,null,null,null,null,null,null,null,null,null,null,null,null,null,null,null,null,null,null,0,0,0,0,0,0,0,0,0]
[22,null,null,null,null,null,null,null,null,null,null,null,null,null,null,null,null,null,null,0,0,0,0,0,0,0,0,0]
[23,null,null,null,null,null,null,null,null,null,null,null,null,null,null,null,null,null,null,0,0,0,0,0,0,0,0,0]
[24,null,null,null,null,null,null,null,null,null,null,null,null,null,null,null,null,null,null,0,0,0,0,0,0,0,0,0]
[25,null,null,null,null,null,null,null,null,null,null,null,null,null,null,null,null,null,null,0,0,0,0,0,0,0,0,0]
[26,null,null,null,null,null,null,null,null,null,null,null,null,null,null,null,null,null,null,0,0,0,0,0,0,0,0,0]
[27,null,null,null,null,null,null,null,null,null,null,null,null,null,null,null,null,null,null,0,0,0,0,0,0,0,0,0]
[28,null,null,null,null,null,null,null,null,null,null,null,null,null,null,null,null,null,null,0,0,0,0,0,0,0,0,0]
[29,null,null,null,null,null,null,null,null,null,null,null,null,null,null,null,null,null,null,0,0,0,0,0,0,0,0,0]
[30,null,null,null,null,null,null,null,null,null,null,null,null,null,null,null,null,null,null,0,0,0,0,0,0,0,0,0]
[31,null,null,null,null,null,null,null,null,null,null,null,null,null,null,null,null,null,null,0,0,0,0,0,0,0,0,0]
[32,null,null,null,null,null,null,null,null,null,null,null,null,null,null,null,null,null,null,0,0,0,0,0,0,0,0,0]
[33,null,null,null,null,null,null,null,null,null,null,null,null,null,null,null,null,null,null,0,{"$f":"((((IF($G53=U$20,$G53*$C53,\"0\"))+(IF($H53=U$20,$H53*$C53,\"0\"))+(IF($I53=U$20,$I53*$D53,\"0\"))+(IF($J53=U$20,$J53*$D53,\"0\")))*$E53)/1000)/U$20","v":0},0,0,0,0,0,0,0]
[34,null,null,null,null,null,null,null,null,null,null,null,null,null,null,null,null,null,null,0,0,0,0,0,0,0,0,0]
[35,null,null,null,null,null,null,null,null,null,null,null,null,null,null,null,null,null,null,0,0,0,0,0,0,0,0,0]
[36,null,null,null,null,null,null,null,null,null,null,null,null,null,null,null,null,null,null,0,0,0,0,0,0,0,0,0]
[37,null,null,null,null,null,null,null,null,null,null,null,null,null,null,null,null,null,null,0,0,0,0,0,0,0,0,0]
[38,null,null,null,null,null,null,null,null,null,null,null,null,null,null,null,null,null,null,0,0,0,0,0,0,0,0,0]
[39,null,null,null,null,null,null,null,null,null,null,null,null,null,null,null,null,null,null,0,0,0,0,0,0,0,0,0]
[40,null,null,null,null,null,null,null,null,null,null,null,null,null,null,null,null,null,null,0,0,0,0,0,0,0,0,0]
[41,null,null,null,null,null,null,null,null,null,null,null,null,null,null,null,null,null,null,0,0,0,0,0,0,0,0,0]
[42,null,null,null,null,null,null,null,null,null,null,null,null,null,null,null,null,null,null,0,0,0,0,0,0,0,0,0]
[43,null,null,null,null,null,null,null,null,null,null,null,null,null,null,null,null,null,null,0,0,0,0,0,0,0,0,0]
[44,null,null,null,null,null,null,null,null,null,null,null,null,null,null,null,null,null,null,0,0,0,0,0,0,0,0,0]
[45,null,null,null,null,null,null,null,null,null,null,null,null,null,null,null,null,null,null,0,0,0,0,0,0,0,0,0]
[46,null,null,null,null,null,null,null,null,null,null,null,null,null,null,null,null,null,null,0,0,0,0,0,0,0,0,0]
[47,null,null,null,null,null,null,null,null,null,null,null,null,null,null,null,null,null,null,0,0,0,0,0,0,0,0,0]
[48,null,null,null,null,null,null,null,null,null,null,null,null,null,null,null,null,null,null,0,0,0,0,0,0,0,0,0]
[49,null,null,null,null,null,null,null,null,null,null,null,null,null,null,null,null,null,null,0,{"$f":"((((IF($G69=U$20,$G69*$C69,\"0\"))+(IF($H69=U$20,$H69*$C69,\"0\"))+(IF($I69=U$20,$I69*$D69,\"0\"))+(IF($J69=U$20,$J69*$D69,\"0\")))*$E69)/1000)/U$20","v":0},0,0,0,0,0,0,0]
[50,null,null,null,null,null,null,null,null,null,null,null,null,null,null,null,null,null,null,0,0,0,0,0,0,0,0,0]
[51,null,null,null,null,null,null,null,null,null,null,null,null,null,null,null,null,null,null,0,0,0,0,0,0,0,0,0]
[52,null,null,null,null,null,null,null,null,null,null,null,null,null,null,null,null,null,null,0,0,0,0,0,0,0,0,0]
[53,null,null,null,null,null,null,null,null,null,null,null,null,null,null,null,null,null,null,0,0,0,0,0,0,0,0,0]
[54,null,null,null,null,null,null,null,null,null,null,null,null,null,null,null,null,null,null,0,0,0,0,0,0,0,0,0]
[55,null,null,null,null,null,null,null,null,null,null,null,null,null,null,null,null,null,null,0,0,0,0,0,0,0,0,0]
[56,null,null,null,null,null,null,null,null,null,null,null,null,null,null,null,null,null,null,0,0,0,0,0,0,0,0,0]
[57,null,null,null,null,null,null,null,null,null,null,null,null,null,null,null,null,null,null,0,0,0,0,0,0,0,0,0]
[58,null,null,null,null,null,null,null,null,null,null,null,null,null,null,null,null,null,null,0,0,0,0,0,0,0,0,0]
[59,null,null,null,null,null,null,null,null,null,null,null,null,null,null,null,null,null,null,0,0,0,0,0,0,0,0,0]
[60,null,null,null,null,null,null,null,null,null,null,null,null,null,null,null,null,null,null,0,0,0,0,0,0,0,0,0]
[61,null,null,null,null,null,null,null,null,null,null,null,null,null,null,null,null,null,null,0,0,0,0,0,0,0,0,0]
[62,null,null,null,null,null,null,null,null,null,null,null,null,null,null,null,null,null,null,0,0,0,0,0,0,0,0,0]
[63,null,null,null,null,null,null,null,null,null,null,null,null,null,null,null,null,null,null,0,0,0,0,0,0,0,0,0]
[64,null,null,null,null,null,null,null,null,null,null,null,null,null,null,null,null,null,null,0,0,0,0,0,0,0,0,0]
[65,null,null,null,null,null,null,null,null,null,null,null,null,null,null,null,null,null,null,{"$f":"(C85*D85*E85)/1000000","v":0},{"$f":"((((IF($G85=U$20,$G85*$C85,\"0\"))+(IF($H85=U$20,$H85*$C85,\"0\"))+(IF($I85=U$20,$I85*$D85,\"0\"))+(IF($J85=U$20,$J85*$D85,\"0\")))*$E85)/1000)/U$20","v":0},0,0,0,0,0,0,0]
[66,null,null,null,null,null,null,null,null,null,null,null,null,null,null,null,null,null,null,0,0,0,0,0,0,0,{"$f":"IF(N86=\"\",0,(C86*D86*E86)/1000000)","v":0},{"$f":"IF(O86=\"\",0,(C86*D86*E86)/1000000)","v":0}]
[67,null,null,null,null,null,null,null,null,null,null,null,null,null,null,null,null,null,null,0,0,0,0,0,0,0,0,0]
[68,null,null,null,null,null,null,null,null,null,null,null,null,null,null,null,null,null,null,0,0,0,0,0,0,0,0,0]
[69,null,null,null,null,null,null,null,null,null,null,null,null,null,null,null,null,null,null,0,0,0,0,0,0,0,0,0]
[70,null,null,null,null,null,null,null,null,null,null,null,null,null,null,null,null,null,null,0,0,0,0,0,0,0,0,0]
[71,null,null,null,null,null,null,null,null,null,null,null,null,null,null,null,null,null,null,0,0,0,0,0,0,0,0,0]
[72,null,null,null,null,null,null,null,null,null,null,null,null,null,null,null,null,null,null,0,0,0,0,0,0,0,0,0]
[73,null,null,null,null,null,null,null,null,null,null,null,null,null,null,null,null,null,null,0,0,0,0,0,0,0,0,0]
[74,null,null,null,null,null,null,null,null,null,null,null,null,null,null,null,null,null,null,0,0,0,0,0,0,0,0,0]
[75,null,null,null,null,null,null,null,null,null,null,null,null,null,null,null,null,null,null,0,0,0,0,0,0,0,0,0]
[76,null,null,null,null,null,null,null,null,null,null,null,null,null,null,null,null,null,null,0,0,0,0,0,0,0,0,0]
[77,null,null,null,null,null,null,null,null,null,null,null,null,null,null,null,null,null,null,0,0,0,0,0,0,0,0,0]
[78,null,null,null,null,null,null,null,null,null,null,null,null,null,null,null,null,null,null,0,0,0,0,0,0,0,0,0]
[79,null,null,null,null,null,null,null,null,null,null,null,null,null,null,null,null,null,null,0,0,0,0,0,0,0,0,0]
[80,null,null,null,null,null,null,null,null,null,null,null,null,null,null,null,null,null,null,0,0,0,0,0,0,0,0,0]
[81,null,null,null,null,null,null,null,null,null,null,null,null,null,null,null,null,null,null,0,{"$f":"((((IF($G101=U$20,$G101*$C101,\"0\"))+(IF($H101=U$20,$H101*$C101,\"0\"))+(IF($I101=U$20,$I101*$D101,\"0\"))+(IF($J101=U$20,$J101*$D101,\"0\")))*$E101)/1000)/U$20","v":0},0,0,0,0,0,0,0]
[82,null,null,null,null,null,null,null,null,null,null,null,null,null,null,null,null,null,null,0,0,0,0,0,0,0,0,0]
[83,null,null,null,null,null,null,null,null,null,null,null,null,null,null,null,null,null,null,0,0,0,0,0,0,0,0,0]
[84,null,null,null,null,null,null,null,null,null,null,null,null,null,null,null,null,null,null,0,0,0,0,0,0,0,0,0]
[85,null,null,null,null,null,null,null,null,null,null,null,null,null,null,null,null,null,null,0,0,0,0,0,0,0,0,0]
[86,null,null,null,null,null,null,null,null,null,null,null,null,null,null,null,null,null,null,0,0,0,0,0,0,0,0,0]
[87,null,null,null,null,null,null,null,null,null,null,null,null,null,null,null,null,null,null,0,0,0,0,0,0,0,0,0]
[88,null,null,null,null,null,null,null,null,null,null,null,null,null,null,null,null,null,null,0,0,0,0,0,0,0,0,0]
[89,null,null,null,null,null,null,null,null,null,null,null,null,null,null,null,null,null,null,0,0,0,0,0,0,0,0,0]
[90,null,null,null,null,null,null,null,null,null,null,null,null,null,null,null,null,null,null,0,0,0,0,0,0,0,0,0]
[91,null,null,null,null,null,null,null,null,null,null,null,null,null,null,null,null,null,null,0,0,0,0,0,0,0,0,0]
[92,null,null,null,null,null,null,null,null,null,null,null,null,null,null,null,null,null,null,0,0,0,0,0,0,0,0,0]
[93,null,null,null,null,null,null,null,null,null,null,null,null,null,null,null,null,null,null,0,0,0,0,0,0,0,0,0]
[94,null,null,null,null,null,null,null,null,null,null,null,null,null,null,null,null,null,null,0,0,0,0,0,0,0,0,0]
[95,null,null,null,null,null,null,null,null,null,null,null,null,null,null,null,null,null,null,0,0,0,0,0,0,0,0,0]
[96,null,null,null,null,null,null,null,null,null,null,null,null,null,null,null,null,null,null,0,0,0,0,0,0,0,0,0]
[97,null,null,null,null,null,null,null,null,null,null,null,null,null,null,null,null,null,null,0,{"$f":"((((IF($G117=U$20,$G117*$C117,\"0\"))+(IF($H117=U$20,$H117*$C117,\"0\"))+(IF($I117=U$20,$I117*$D117,\"0\"))+(IF($J117=U$20,$J117*$D117,\"0\")))*$E117)/1000)/U$20","v":0},0,0,0,0,0,0,0]
[98,null,null,null,null,null,null,null,null,null,null,null,null,null,null,null,null,null,null,0,0,0,0,0,0,0,0,0]
[99,null,null,null,null,null,null,null,null,null,null,null,null,null,null,null,null,null,null,0,0,0,0,0,0,0,0,0]
[100,null,null,null,null,null,null,null,null,null,null,null,null,null,null,null,null,null,null,0,0,0,0,0,0,0,0,0]
[101,null,null,null,null,null,null,null,null,null,null,null,null,null,null,null,null,null,null,0,0,0,0,0,0,0,0,0]
[102,null,null,null,null,null,null,null,null,null,null,null,null,null,null,null,null,null,null,0,0,0,0,0,0,0,0,0]
[103,null,null,null,null,null,null,null,null,null,null,null,null,null,null,null,null,null,null,0,0,0,0,0,0,0,0,0]
[104,null,null,null,null,null,null,null,null,null,null,null,null,null,null,null,null,null,null,0,0,0,0,0,0,0,0,0]
[105,null,null,null,null,null,null,null,null,null,null,null,null,null,null,null,null,null,null,0,0,0,0,0,0,0,0,0]
[106,null,null,null,null,null,null,null,null,null,null,null,null,null,null,null,null,null,null,0,0,0,0,0,0,0,0,0]
[107,null,null,null,null,null,null,null,null,null,null,null,null,null,null,null,null,null,null,0,0,0,0,0,0,0,0,0]
[108,null,null,null,null,null,null,null,null,null,null,null,null,null,null,null,null,null,null,0,0,0,0,0,0,0,0,0]
[109,null,null,null,null,null,null,null,null,null,null,null,null,null,null,null,null,null,null,0,0,0,0,0,0,0,0,0]
[110,null,null,null,null,null,null,null,null,null,null,null,null,null,null,null,null,null,null,0,0,0,0,0,0,0,0,0]
[111,null,null,null,null,null,null,null,null,null,null,null,null,null,null,null,null,null,null,0,0,0,0,0,0,0,0,0]
[112,null,null,null,null,null,null,null,null,null,null,null,null,null,null,null,null,null,null,0,0,0,0,0,0,0,0,0]
[113,null,null,null,null,null,null,null,null,null,null,null,null,null,null,null,null,null,null,0,{"$f":"((((IF($G133=U$20,$G133*$C133,\"0\"))+(IF($H133=U$20,$H133*$C133,\"0\"))+(IF($I133=U$20,$I133*$D133,\"0\"))+(IF($J133=U$20,$J133*$D133,\"0\")))*$E133)/1000)/U$20","v":0},0,0,0,0,0,0,0]
[114,null,null,null,null,null,null,null,null,null,null,null,null,null,null,null,null,null,null,0,0,0,0,0,0,0,0,0]
[115,null,null,null,null,null,null,null,null,null,null,null,null,null,null,null,null,null,null,0,0,0,0,0,0,0,0,0]
[116,null,null,null,null,null,null,null,null,null,null,null,null,null,null,null,null,null,null,0,0,0,0,0,0,0,0,0]
[117,null,null,null,null,null,null,null,null,null,null,null,null,null,null,null,null,null,null,0,0,0,0,0,0,0,0,0]
[118,null,null,null,null,null,null,null,null,null,null,null,null,null,null,null,null,null,null,0,0,0,0,0,0,0,0,0]
[119,null,null,null,null,null,null,null,null,null,null,null,null,null,null,null,null,null,null,0,0,0,0,0,0,0,0,0]
[120,null,null,null,null,null,null,null,null,null,null,null,null,null,null,null,null,null,null,0,0,0,0,0,0,0,0,0]
[121,null,null,null,null,null,null,null,null,null,null,null,null,null,null,null,null,null,null,0,0,0,0,0,0,0,0,0]
[122,null,null,null,null,null,null,null,null,null,null,null,null,null,null,null,null,null,null,0,0,0,0,0,0,0,0,0]
[123,null,null,null,null,null,null,null,null,null,null,null,null,null,null,null,null,null,null,0,0,0,0,0,0,0,0,0]
[124,null,null,null,null,null,null,null,null,null,null,null,null,null,null,null,null,null,null,0,0,0,0,0,0,0,0,0]
[125,null,null,null,null,null,null,null,null,null,null,null,null,null,null,null,null,null,null,0,0,0,0,0,0,0,0,0]
[126,null,null,null,null,null,null,null,null,null,null,null,null,null,null,null,null,null,null,0,0,0,0,0,0,0,0,0]
[127,null,null,null,null,null,null,null,null,null,null,null,null,null,null,null,null,null,null,0,0,0,0,0,0,0,0,0]
[128,null,null,null,null,null,null,null,null,null,null,null,null,null,null,null,null,null,null,0,0,0,0,0,0,0,0,0]
[129,null,null,null,null,null,null,null,null,null,null,null,null,null,null,null,null,null,null,{"$f":"(C149*D149*E149)/1000000","v":0},{"$f":"((((IF($G149=U$20,$G149*$C149,\"0\"))+(IF($H149=U$20,$H149*$C149,\"0\"))+(IF($I149=U$20,$I149*$D149,\"0\"))+(IF($J149=U$20,$J149*$D149,\"0\")))*$E149)/1000)/U$20","v":0},0,0,0,0,0,0,0]
[130,null,null,null,null,null,null,null,null,null,null,null,null,null,null,null,null,null,null,0,0,0,0,0,0,0,{"$f":"IF(N150=\"\",0,(C150*D150*E150)/1000000)","v":0},{"$f":"IF(O150=\"\",0,(C150*D150*E150)/1000000)","v":0}]
[131,null,null,null,null,null,null,null,null,null,null,null,null,null,null,null,null,null,null,0,0,0,0,0,0,0,0,0]
[132,null,null,null,null,null,null,null,null,null,null,null,null,null,null,null,null,null,null,0,0,0,0,0,0,0,0,0]
[133,null,null,null,null,null,null,null,null,null,null,null,null,null,null,null,null,null,null,0,0,0,0,0,0,0,0,0]
[134,null,null,null,null,null,null,null,null,null,null,null,null,null,null,null,null,null,null,0,0,0,0,0,0,0,0,0]
[135,null,null,null,null,null,null,null,null,null,null,null,null,null,null,null,null,null,null,0,0,0,0,0,0,0,0,0]
[136,null,null,null,null,null,null,null,null,null,null,null,null,null,null,null,null,null,null,0,0,0,0,0,0,0,0,0]
[137,null,null,null,null,null,null,null,null,null,null,null,null,null,null,null,null,null,null,0,0,0,0,0,0,0,0,0]
[138,null,null,null,null,null,null,null,null,null,null,null,null,null,null,null,null,null,null,0,0,0,0,0,0,0,0,0]
[139,null,null,null,null,null,null,null,null,null,null,null,null,null,null,null,null,null,null,0,0,0,0,0,0,0,0,0]
[140,null,null,null,null,null,null,null,null,null,null,null,null,null,null,null,null,null,null,0,0,0,0,0,0,0,0,0]
[141,null,null,null,null,null,null,null,null,null,null,null,null,null,null,null,null,null,null,0,0,0,0,0,0,0,0,0]
[142,null,null,null,null,null,null,null,null,null,null,null,null,null,null,null,null,null,null,0,0,0,0,0,0,0,0,0]
[143,null,null,null,null,null,null,null,null,null,null,null,null,null,null,null,null,null,null,0,0,0,0,0,0,0,0,0]
[144,null,null,null,null,null,null,null,null,null,null,null,null,null,null,null,null,null,null,0,0,0,0,0,0,0,0,0]
[145,null,null,null,null,null,null,null,null,null,null,null,null,null,null,null,null,null,null,0,{"$f":"((((IF($G165=U$20,$G165*$C165,\"0\"))+(IF($H165=U$20,$H165*$C165,\"0\"))+(IF($I165=U$20,$I165*$D165,\"0\"))+(IF($J165=U$20,$J165*$D165,\"0\")))*$E165)/1000)/U$20","v":0},0,0,0,0,0,0,0]
[146,null,null,null,null,null,null,null,null,null,null,null,null,null,null,null,null,null,null,0,0,0,0,0,0,0,0,0]
[147,null,null,null,null,null,null,null,null,null,null,null,null,null,null,null,null,null,null,0,0,0,0,0,0,0,0,0]
[148,null,null,null,null,null,null,null,null,null,null,null,null,null,null,null,null,null,null,0,0,0,0,0,0,0,0,0]
[149,null,null,null,null,null,null,null,null,null,null,null,null,null,null,null,null,null,null,0,0,0,0,0,0,0,0,0]
[150,null,null,null,null,null,null,null,null,null,null,null,null,null,null,null,null,null,null,0,0,0,0,0,0,0,0,0]
[151,null,null,null,null,null,null,null,null,null,null,null,null,null,null,null,null,null,null,0,0,0,0,0,0,0,0,0]
[152,null,null,null,null,null,null,null,null,null,null,null,null,null,null,null,null,null,null,0,0,0,0,0,0,0,0,0]
[153,null,null,null,null,null,null,null,null,null,null,null,null,null,null,null,null,null,null,0,0,0,0,0,0,0,0,0]
[154,null,null,null,null,null,null,null,null,null,null,null,null,null,null,null,null,null,null,0,0,0,0,0,0,0,0,0]
[155,null,null,null,null,null,null,null,null,null,null,null,null,null,null,null,null,null,null,0,0,0,0,0,0,0,0,0]
[156,null,null,null,null,null,null,null,null,null,null,null,null,null,null,null,null,null,null,0,0,0,0,0,0,0,0,0]
[157,null,null,null,null,null,null,null,null,null,null,null,null,null,null,null,null,null,null,0,0,0,0,0,0,0,0,0]
[158,null,null,null,null,null,null,null,null,null,null,null,null,null,null,null,null,null,null,0,0,0,0,0,0,0,0,0]
[159,null,null,null,null,null,null,null,null,null,null,null,null,null,null,null,null,null,null,0,0,0,0,0,0,0,0,0]
[160,null,null,null,null,null,null,null,null,null,null,null,null,null,null,null,null,null,null,0,0,0,0,0,0,0,0,0]
[161,null,null,null,null,null,null,null,null,null,null,null,null,null,null,null,null,null,null,0,{"$f":"((((IF($G181=U$20,$G181*$C181,\"0\"))+(IF($H181=U$20,$H181*$C181,\"0\"))+(IF($I181=U$20,$I181*$D181,\"0\"))+(IF($J181=U$20,$J181*$D181,\"0\")))*$E181)/1000)/U$20","v":0},0,0,0,0,0,0,0]
[162,null,null,null,null,null,null,null,null,null,null,null,null,null,null,null,null,null,null,0,0,0,0,0,0,0,0,0]
[163,null,null,null,null,null,null,null,null,null,null,null,null,null,null,null,null,null,null,0,0,0,0,0,0,0,0,0]
[164,null,null,null,null,null,null,null,null,null,null,null,null,null,null,null,null,null,null,0,0,0,0,0,0,0,0,0]
[165,null,null,null,null,null,null,null,null,null,null,null,null,null,null,null,null,null,null,0,0,0,0,0,0,0,0,0]
[166,null,null,null,null,null,null,null,null,null,null,null,null,null,null,null,null,null,null,0,0,0,0,0,0,0,0,0]
[167,null,null,null,null,null,null,null,null,null,null,null,null,null,null,null,null,null,null,0,0,0,0,0,0,0,0,0]
[168,null,null,null,null,null,null,null,null,null,null,null,null,null,null,null,null,null,null,0,0,0,0,0,0,0,0,0]
[169,null,null,null,null,null,null,null,null,null,null,null,null,null,null,null,null,null,null,0,0,0,0,0,0,0,0,0]
[170,null,null,null,null,null,null,null,null,null,null,null,null,null,null,null,null,null,null,0,0,0,0,0,0,0,0,0]
[171,null,null,null,null,null,null,null,null,null,null,null,null,null,null,null,null,null,null,0,0,0,0,0,0,0,0,0]
[172,null,null,null,null,null,null,null,null,null,null,null,null,null,null,null,null,null,null,0,0,0,0,0,0,0,0,0]
[173,null,null,null,null,null,null,null,null,null,null,null,null,null,null,null,null,null,null,0,0,0,0,0,0,0,0,0]
[174,null,null,null,null,null,null,null,null,null,null,null,null,null,null,null,null,null,null,0,0,0,0,0,0,0,0,0]
[175,null,null,null,null,null,null,null,null,null,null,null,null,null,null,null,null,null,null,0,0,0,0,0,0,0,0,0]
[176,null,null,null,null,null,null,null,null,null,null,null,null,null,null,null,null,null,null,0,0,0,0,0,0,0,0,0]
[177,null,null,null,null,null,null,null,null,null,null,null,null,null,null,null,null,null,null,0,{"$f":"((((IF($G197=U$20,$G197*$C197,\"0\"))+(IF($H197=U$20,$H197*$C197,\"0\"))+(IF($I197=U$20,$I197*$D197,\"0\"))+(IF($J197=U$20,$J197*$D197,\"0\")))*$E197)/1000)/U$20","v":0},0,0,0,0,0,0,0]
[178,null,null,null,null,null,null,null,null,null,null,null,null,null,null,null,null,null,null,0,0,0,0,0,0,0,0,0]
[179,null,null,null,null,null,null,null,null,null,null,null,null,null,null,null,null,null,null,0,0,0,0,0,0,0,0,0]
[180,null,null,null,null,null,null,null,null,null,null,null,null,null,null,null,null,null,null,0,0,0,0,0,0,0,0,0]
[181,null,null,null,null,null,null,null,null,null,null,null,null,null,null,null,null,null,null,0,0,0,0,0,0,0,0,0]
[182,null,null,null,null,null,null,null,null,null,null,null,null,null,null,null,null,null,null,0,0,0,0,0,0,0,0,0]
[183,null,null,null,null,null,null,null,null,null,null,null,null,null,null,null,null,null,null,0,0,0,0,0,0,0,0,0]
[184,null,null,null,null,null,null,null,null,null,null,null,null,null,null,null,null,null,null,0,0,0,0,0,0,0,0,0]
[185,null,null,null,null,null,null,null,null,null,null,null,null,null,null,null,null,null,null,0,0,0,0,0,0,0,0,0]
[186,null,null,null,null,null,null,null,null,null,null,null,null,null,null,null,null,null,null,0,0,0,0,0,0,0,0,0]
[187,null,null,null,null,null,null,null,null,null,null,null,null,null,null,null,null,null,null,0,0,0,0,0,0,0,0,0]
[188,null,null,null,null,null,null,null,null,null,null,null,null,null,null,null,null,null,null,0,0,0,0,0,0,0,0,0]
[189,null,null,null,null,null,null,null,null,null,null,null,null,null,null,null,null,null,null,0,0,0,0,0,0,0,0,0]
[190,null,null,null,null,null,null,null,null,null,null,null,null,null,null,null,null,null,null,0,0,0,0,0,0,0,0,0]
[191,null,null,null,null,null,null,null,null,null,null,null,null,null,null,null,null,null,null,0,0,0,0,0,0,0,0,0]
[192,null,null,null,null,null,null,null,null,null,null,null,null,null,null,null,null,null,null,0,0,0,0,0,0,0,0,0]
[193,null,null,null,null,null,null,null,null,null,null,null,null,null,null,null,null,null,null,{"$f":"(C213*D213*E213)/1000000","v":0},{"$f":"((((IF($G213=U$20,$G213*$C213,\"0\"))+(IF($H213=U$20,$H213*$C213,\"0\"))+(IF($I213=U$20,$I213*$D213,\"0\"))+(IF($J213=U$20,$J213*$D213,\"0\")))*$E213)/1000)/U$20","v":0},0,0,0,0,0,0,0]
[194,null,null,null,null,null,null,null,null,null,null,null,null,null,null,null,null,null,null,0,0,0,0,0,0,0,{"$f":"IF(N214=\"\",0,(C214*D214*E214)/1000000)","v":0},{"$f":"IF(O214=\"\",0,(C214*D214*E214)/1000000)","v":0}]
[195,null,null,null,null,null,null,null,null,null,null,null,null,null,null,null,null,null,null,0,0,0,0,0,0,0,0,0]
[196,null,null,null,null,null,null,null,null,null,null,null,null,null,null,null,null,null,null,0,0,0,0,0,0,0,0,0]
[197,null,null,null,null,null,null,null,null,null,null,null,null,null,null,null,null,null,null,0,0,0,0,0,0,0,0,0]
[198,null,null,null,null,null,null,null,null,null,null,null,null,null,null,null,null,null,null,0,0,0,0,0,0,0,0,0]
[199,null,null,null,null,null,null,null,null,null,null,null,null,null,null,null,null,null,null,0,0,0,0,0,0,0,0,0]
[200,null,null,null,null,null,null,null,null,null,null,null,null,null,null,null,null,null,null,0,0,0,0,0,0,0,0,0]
[201,null,null,null,null,null,null,null,null,null,null,null,null,null,null,null,null,null,null,0,0,0,0,0,0,0,0,0]
[202,null,null,null,null,null,null,null,null,null,null,null,null,null,null,null,null,null,null,0,0,0,0,0,0,0,0,0]
[203,null,null,null,null,null,null,null,null,null,null,null,null,null,null,null,null,null,null,0,0,0,0,0,0,0,0,0]
[204,null,null,null,null,null,null,null,null,null,null,null,null,null,null,null,null,null,null,0,0,0,0,0,0,0,0,0]
[205,null,null,null,null,null,null,null,null,null,null,null,null,null,null,null,null,null,null,0,0,0,0,0,0,0,0,0]
[206,null,null,null,null,null,null,null,null,null,null,null,null,null,null,null,null,null,null,0,0,0,0,0,0,0,0,0]
[207,null,null,null,null,null,null,null,null,null,null,null,null,null,null,null,null,null,null,0,0,0,0,0,0,0,0,0]
[208,null,null,null,null,null,null,null,null,null,null,null,null,null,null,null,null,null,null,0,0,0,0,0,0,0,0,0]
[209,null,null,null,null,null,null,null,null,null,null,null,null,null,null,null,null,null,null,0,{"$f":"((((IF($G229=U$20,$G229*$C229,\"0\"))+(IF($H229=U$20,$H229*$C229,\"0\"))+(IF($I229=U$20,$I229*$D229,\"0\"))+(IF($J229=U$20,$J229*$D229,\"0\")))*$E229)/1000)/U$20","v":0},0,0,0,0,0,0,0]
[210,null,null,null,null,null,null,null,null,null,null,null,null,null,null,null,null,null,null,0,0,0,0,0,0,0,0,0]
[211,null,null,null,null,null,null,null,null,null,null,null,null,null,null,null,null,null,null,0,0,0,0,0,0,0,0,0]
[212,null,null,null,null,null,null,null,null,null,null,null,null,null,null,null,null,null,null,0,0,0,0,0,0,0,0,0]
[213,null,null,null,null,null,null,null,null,null,null,null,null,null,null,null,null,null,null,0,0,0,0,0,0,0,0,0]
[214,null,null,null,null,null,null,null,null,null,null,null,null,null,null,null,null,null,null,0,0,0,0,0,0,0,0,0]
[215,null,null,null,null,null,null,null,null,null,null,null,null,null,null,null,null,null,null,0,0,0,0,0,0,0,0,0]
[216,null,null,null,null,null,null,null,null,null,null,null,null,null,null,null,null,null,null,0,0,0,0,0,0,0,0,0]
[217,null,null,null,null,null,null,null,null,null,null,null,null,null,null,null,null,null,null,0,0,0,0,0,0,0,0,0]
[218,null,null,null,null,null,null,null,null,null,null,null,null,null,null,null,null,null,null,0,0,0,0,0,0,0,0,0]
[219,null,null,null,null,null,null,null,null,null,null,null,null,null,null,null,null,null,null,0,0,0,0,0,0,0,0,0]
[220,null,null,null,null,null,null,null,null,null,null,null,null,null,null,null,null,null,null,0,0,0,0,0,0,0,0,0]
[221,null,null,null,null,null,null,null,null,null,null,null,null,null,null,null,null,null,null,0,0,0,0,0,0,0,0,0]
[222,null,null,null,null,null,null,null,null,null,null,null,null,null,null,null,null,null,null,0,0,0,0,0,0,0,0,0]
[223,null,null,null,null,null,null,null,null,null,null,null,null,null,null,null,null,null,null,0,0,0,0,0,0,0,0,0]
[224,null,null,null,null,null,null,null,null,null,null,null,null,null,null,null,null,null,null,0,0,0,0,0,0,0,0,0]
[225,null,null,null,null,null,null,null,null,null,null,null,null,null,null,null,null,null,null,0,{"$f":"((((IF($G245=U$20,$G245*$C245,\"0\"))+(IF($H245=U$20,$H245*$C245,\"0\"))+(IF($I245=U$20,$I245*$D245,\"0\"))+(IF($J245=U$20,$J245*$D245,\"0\")))*$E245)/1000)/U$20","v":0},0,0,0,0,0,0,0]
[226,null,null,null,null,null,null,null,null,null,null,null,null,null,null,null,null,null,null,0,0,0,0,0,0,0,0,0]
[227,null,null,null,null,null,null,null,null,null,null,null,null,null,null,null,null,null,null,0,0,0,0,0,0,0,0,0]
[228,null,null,null,null,null,null,null,null,null,null,null,null,null,null,null,null,null,null,0,0,0,0,0,0,0,0,0]
[229,null,null,null,null,null,null,null,null,null,null,null,null,null,null,null,null,null,null,0,0,0,0,0,0,0,0,0]
[230,null,null,null,null,null,null,null,null,null,null,null,null,null,null,null,null,null,null,0,0,0,0,0,0,0,0,0]
[231,null,null,null,null,null,null,null,null,null,null,null,null,null,null,null,null,null,null,0,0,0,0,0,0,0,0,0]
[]
[]
[]
[]
[]
[]
[]
[]
[]
[]
[]
[]
[]
[]
[]
[]
[]
[]
[]
[]
[]
[]
[]
[]
[]
[]
[]
[]
[]
[]
[]
[]
[]
[]
[]
[]
[]
[]
[]
[]
[]
[]
[]
[]
[]
[]
[]
[]
[]
[]
[]
[]
[]
[]
[]
[]
[]
[]
[]
[]
[]
[]
[]
[]
[]
[]
[]
[]
[]
[]
[]
[]
[]
[]
[]
[]
[]
[]
[]
[]
[]
[]
[]
[]
[]
[]
[]
[]
[]
[]
[]
[]
[]
[]
[]
[]
[]
[]
[]
[]
[]
[]
[]
[]
[]
[]
[]
[]
[]
[]
[]
[]
[]
[]
[]
[]
[]
[]
[]
[]
[]
[]
[]
[]
[]
[]
[]
[]
[]
[]
[]
[]
[]
[]
[]
[]
[]
[]
[]
[]
[]
[]
[]
[]
[]
[]
[]
[]
[]
[]
[]
[]
[]
[]
[]
[]
[]
[]
[]
[]
[]
[]
[]
[]
[null,null,null,null,null,null,null,null,null,null,null,null,null,null,null,null,null,null,null,null,"ABS 0,5","ABS 2","ABS 0,5","ABS 2","ABS 1","ABS 42/1","zesilování","sdružené formáty"]
[null,null,null,null,null,null,null,null,null,null,null,null,null,null,null,null,null,null,null,"m2",1,2,3,4,5,6,"m2","m2"]
[]
[null,null,null,null,null,null,null,null,null,null,null,null,null,null,null,null,null,null,null,{"$f":"SUM(T21:T251)","v":0},0,0,0,0,0,0,0,0]
[]
[null,null,null,null,null,null,null,null,null,null,null,null,null,null,null,null,null,null,"výpočet",null,null,null,"plocha","m2",{"$f":"T$419","v":0}]
[null,null,null,null,null,null,null,null,null,null,null,null,null,null,null,null,null,null,null,null,null,null,"ABS 22/0,5","m",{"$f":"U$419","v":0}]
[null,null,null,null,null,null,null,null,null,null,null,null,null,null,null,null,null,null,null,null,null,null,"ABS 22/2","m",{"$f":"V$419","v":0}]
[null,null,null,null,null,null,null,null,null,null,null,null,null,null,null,null,null,null,null,null,null,null,"ABS 42/0,5","m",{"$f":"W$419","v":0}]
[null,null,null,null,null,null,null,null,null,null,null,null,null,null,null,null,null,null,null,null,null,null,"ABS 42/2","m",{"$f":"X$419","v":0}]
[null,null,null,null,null,null,null,null,null,null,null,null,null,null,null,null,null,null,null,null,null,null,"ABS 22/1","m",{"$f":"Y$419","v":0}]
[null,null,null,null,null,null,null,null,null,null,null,null,null,null,null,null,null,null,null,null,null,null,"ABS 42/1","m",{"$f":"Z$419","v":0}]
[]
[]
[null,null,null,null,null,null,null,null,null,null,null,null,null,null,null,null,null,null,null,null,null,null,"počet","KS",{"$f":"SUM(E21:E251)","v":0}]
[null,null,null,null,null,null,null,null,null,null,null,null,null,null,null,null,null,null,null,null,null,null,"plocha zesílení","m2",{"$f":"AA$419","v":0}]
[null,null,null,null,null,null,null,null,null,null,null,null,null,null,null,null,null,null,null,null,null,null,"plocha celkem","m2",{"$f":"T419+Y431","v":0}]
[null,null,null,null,null,null,null,null,null,null,null,null,null,null,null,null,null,null,null,null,null,null,"plocha SF","m2",{"$f":"AB$419","v":0}]

{"sheet":"Materiál_5","index":4,"n_rows":433,"n_cols":28,"rows_kept":433,"cut":false,"hidden":false,"merged":[[431,24,431,25],[432,24,432,25],[425,24,425,25],[426,24,426,25],[427,24,427,25],[428,24,428,25],[429,24,429,25],[430,24,430,25],[16,2,16,9],[16,13,16,14],[18,0,19,0],[19,6,19,9],[420,18,432,21],[420,24,420,25],[421,24,421,25],[422,24,422,25],[423,24,423,25],[424,24,424,25],[12,2,12,3],[12,4,12,9],[12,13,12,15],[13,2,13,3],[13,4,13,9],[13,13,13,15],[10,6,10,14],[1,0,1,15],[3,0,3,15],[7,6,7,14],[8,6,8,14],[9,6,9,14]]}
[]
["!!! UVÁDĚJTE ROZMĚRY VČ. HRAN, PŘIČEMŽ DODRŽTE ZNAČENÍ UVEDENÉ VEDLE TABULKY !!!"]
[]
["!!! STANDARTNĚ OLEPUJEME TRANSPARENTNÍM POLYURETANOVÝM LEPIDLEM !!!"]
[]
[]
[null,null,null,null,null,null,null,null,null,null,null,null,null,null,null,null,null,1,"znamená ABS 0,5"]
[null,"Dodavatel:",null,null,null,null,"Označení zakázky:",null,null,null,null,null,null,null,null,{"$f":"IF(Materiál_1!P8=\"\",\"\",Materiál_1!P8)","v":""},null,2,"znamená ABS 2"]
[null,{"$f":"Materiál_1!B9","v":"NODO ART, s.r.o."},null,null,null,null,"Odběratel:",null,null,null,null,null,null,null,null,{"$f":"IF(Materiál_1!P9=\"\",\"\",Materiál_1!P9)","v":""},{"$f":"IF(Materiál_1!Q9=\"\",\"\",Materiál_1!Q9)","v":""},{"$f":"IF(Materiál_1!R9=\"\",\"\",Materiál_1!R9)","v":3},{"$f":"IF(Materiál_1!S9=\"\",\"\",Materiál_1!S9)","v":"znamená ABS 42/0,5"},{"$f":"IF(Materiál_1!T9=\"\",\"\",Materiál_1!T9)","v":""},{"$f":"IF(Materiál_1!U9=\"\",\"\",Materiál_1!U9)","v":""}]
[null,{"$f":"Materiál_1!B10","v":"tel. +420 773 236 200"},null,null,null,null,"tel:",null,null,null,null,null,null,null,null,{"$f":"IF(Materiál_1!P10=\"\",\"\",Materiál_1!P10)","v":""},null,4,"znamená ABS 42/2"]
[null,{"$f":"Materiál_1!B11","v":"e-mail: dubovecky@nodo.cz"},null,null,null,null,"e - mail :",null,null,null,null,null,null,null,null,{"$f":"IF(Materiál_1!P11=\"\",\"\",Materiál_1!P11)","v":""},null,5,"znamená ABS 22/1"]
[null,null,null,null,null,null,null,null,null,null,null,null,null,null,null,null,null,6,"znamená ABS 42/1"]
[null,"OBYČEJNÉ LEPIDLO \"EVA\"","DOPRAVA          \"ZÁVOZ\"",null,"NEBALIT NA PALETU",null,null,null,null,null,null,null,null,"UVOLŇOVACÍ ŘEZ"]
[null,{"$f":"IF(Materiál_1!B14=\"\",\"\",Materiál_1!B14)","v":""},{"$f":"IF(Materiál_1!C14=\"\",\"\",Materiál_1!C14)","v":""},{"$f":"IF(Materiál_1!D14=\"\",\"\",Materiál_1!D14)","v":""},{"$f":"IF(Materiál_1!E14=\"\",\"\",Materiál_1!E14)","v":""},{"$f":"IF(Materiál_1!F14=\"\",\"\",Materiál_1!F14)","v":""},{"$f":"IF(Materiál_1!G14=\"\",\"\",Materiál_1!G14)","v":""},{"$f":"IF(Materiál_1!H14=\"\",\"\",Materiál_1!H14)","v":""},{"$f":"IF(Materiál_1!I14=\"\",\"\",Materiál_1!I14)","v":""},{"$f":"IF(Materiál_1!J14=\"\",\"\",Materiál_1!J14)","v":""}]
[]
[]
[null,"Druh materiálu:",null,null,null,null,null,null,null,null,null,null,null,null,null,"BÍLÉ LEPIDLO"]
[]
["P.č.",null,"X1, X2","Y1, Y2",null,null,"X1","X2","Y1","Y2",null,null,null,null,null,null,null,null,null,null,"ABS 0,5","ABS 2","ABS 0,5","ABS 2","ABS 1","ABS 42/1","zesilování","sdružené formáty"]
[null,"Název","délka                             (po vláknech) (mm)","šířka                                        (napříč vláknům) (mm)","počet (ks)","orientace lét","olepování",null,null,null,null,null,null,"zesilování","sdružené formáty","Poznámka",null,null,null,"m2",1,2,3,4,5,6,"m2","m2"]
[1,null,null,null,null,null,null,null,null,null,null,null,null,null,null,null,null,null,null,{"$f":"(C21*D21*E21)/1000000","v":0},{"$f":"((((IF($G21=U$20,$G21*$C21,\"0\"))+(IF($H21=U$20,$H21*$C21,\"0\"))+(IF($I21=U$20,$I21*$D21,\"0\"))+(IF($J21=U$20,$J21*$D21,\"0\")))*$E21)/1000)/U$20","v":0},0,0,0,0,0,{"$f":"IF(N21=\"\",0,(C21*D21*E21)/1000000)","v":0},{"$f":"IF(O21=\"\",0,(C21*D21*E21)/1000000)","v":0}]
[2,null,null,null,null,null,null,null,null,null,null,null,null,null,null,null,null,null,null,0,0,0,0,0,0,0,{"$f":"IF(N22=\"\",0,(C22*D22*E22)/1000000)","v":0},{"$f":"IF(O22=\"\",0,(C22*D22*E22)/1000000)","v":0}]
[3,null,null,null,null,null,null,null,null,null,null,null,null,null,null,null,null,null,null,0,0,0,0,0,0,0,0,0]
[4,null,null,null,null,null,null,null,null,null,null,null,null,null,null,null,null,null,null,0,0,0,0,0,0,0,0,0]
[5,null,null,null,null,null,null,null,null,null,null,null,null,null,null,null,null,null,null,0,0,0,0,0,0,0,0,0]
[6,null,null,null,null,null,null,null,null,null,null,null,null,null,null,null,null,null,null,0,0,0,0,0,0,0,0,0]
[7,null,null,null,null,null,null,null,null,null,null,null,null,null,null,null,null,null,null,0,0,0,0,0,0,0,0,0]
[8,null,null,null,null,null,null,null,null,null,null,null,null,null,null,null,null,null,null,0,0,0,0,0,0,0,0,0]
[9,null,null,null,null,null,null,null,null,null,null,null,null,null,null,null,null,null,null,0,0,0,0,0,0,0,0,0]
[10,null,null,null,null,null,null,null,null,null,null,null,null,null,null,null,null,null,null,0,0,0,0,0,0,0,0,0]
[11,null,null,null,null,null,null,null,null,null,null,null,null,null,null,null,null,null,null,0,0,0,0,0,0,0,0,0]
[12,null,null,null,null,null,null,null,null,null,null,null,null,null,null,null,null,null,null,0,0,0,0,0,0,0,0,0]
[13,null,null,null,null,null,null,null,null,null,null,null,null,null,null,null,null,null,null,0,0,0,0,0,0,0,0,0]
[14,null,null,null,null,null,null,null,null,null,null,null,null,null,null,null,null,null,null,0,0,0,0,0,0,0,0,0]
[15,null,null,null,null,null,null,null,null,null,null,null,null,null,null,null,null,null,null,0,0,0,0,0,0,0,0,0]
[16,null,null,null,null,null,null,null,null,null,null,null,null,null,null,null,null,null,null,0,0,0,0,0,0,0,0,0]
[17,null,null,null,null,null,null,null,null,null,null,null,null,null,null,null,null,null,null,0,{"$f":"((((IF($G37=U$20,$G37*$C37,\"0\"))+(IF($H37=U$20,$H37*$C37,\"0\"))+(IF($I37=U$20,$I37*$D37,\"0\"))+(IF($J37=U$20,$J37*$D37,\"0\")))*$E37)/1000)/U$20","v":0},0,0,0,0,0,0,0]
[18,null,null,null,null,null,null,null,null,null,null,null,null,null,null,null,null,null,null,0,0,0,0,0,0,0,0,0]
[19,null,null,null,null,null,null,null,null,null,null,null,null,null,null,null,null,null,null,0,0,0,0,0,0,0,0,0]
[20,null,null,null,null,null,null,null,null,null,null,null,null,null,null,null,null,null,null,0,0,0,0,0,0,0,0,0]
[21,null,null,null,null,null,null,null,null,null,null,null,null,null,null,null,null,null,null,0,0,0,0,0,0,0,0,0]
[22,null,null,null,null,null,null,null,null,null,null,null,null,null,null,null,null,null,null,0,0,0,0,0,0,0,0,0]
[23,null,null,null,null,null,null,null,null,null,null,null,null,null,null,null,null,null,null,0,0,0,0,0,0,0,0,0]
[24,null,null,null,null,null,null,null,null,null,null,null,null,null,null,null,null,null,null,0,0,0,0,0,0,0,0,0]
[25,null,null,null,null,null,null,null,null,null,null,null,null,null,null,null,null,null,null,0,0,0,0,0,0,0,0,0]
[26,null,null,null,null,null,null,null,null,null,null,null,null,null,null,null,null,null,null,0,0,0,0,0,0,0,0,0]
[27,null,null,null,null,null,null,null,null,null,null,null,null,null,null,null,null,null,null,0,0,0,0,0,0,0,0,0]
[28,null,null,null,null,null,null,null,null,null,null,null,null,null,null,null,null,null,null,0,0,0,0,0,0,0,0,0]
[29,null,null,null,null,null,null,null,null,null,null,null,null,null,null,null,null,null,null,0,0,0,0,0,0,0,0,0]
[30,null,null,null,null,null,null,null,null,null,null,null,null,null,null,null,null,null,null,0,0,0,0,0,0,0,0,0]
[31,null,null,null,null,null,null,null,null,null,null,null,null,null,null,null,null,null,null,0,0,0,0,0,0,0,0,0]
[32,null,null,null,null,null,null,null,null,null,null,null,null,null,null,null,null,null,null,0,0,0,0,0,0,0,0,0]
[33,null,null,null,null,null,null,null,null,null,null,null,null,null,null,null,null,null,null,0,{"$f":"((((IF($G53=U$20,$G53*$C53,\"0\"))+(IF($H53=U$20,$H53*$C53,\"0\"))+(IF($I53=U$20,$I53*$D53,\"0\"))+(IF($J53=U$20,$J53*$D53,\"0\")))*$E53)/1000)/U$20","v":0},0,0,0,0,0,0,0]
[34,null,null,null,null,null,null,null,null,null,null,null,null,null,null,null,null,null,null,0,0,0,0,0,0,0,0,0]
[35,null,null,null,null,null,null,null,null,null,null,null,null,null,null,null,null,null,null,0,0,0,0,0,0,0,0,0]
[36,null,null,null,null,null,null,null,null,null,null,null,null,null,null,null,null,null,null,0,0,0,0,0,0,0,0,0]
[37,null,null,null,null,null,null,null,null,null,null,null,null,null,null,null,null,null,null,0,0,0,0,0,0,0,0,0]
[38,null,null,null,null,null,null,null,null,null,null,null,null,null,null,null,null,null,null,0,0,0,0,0,0,0,0,0]
[39,null,null,null,null,null,null,null,null,null,null,null,null,null,null,null,null,null,null,0,0,0,0,0,0,0,0,0]
[40,null,null,null,null,null,null,null,null,null,null,null,null,null,null,null,null,null,null,0,0,0,0,0,0,0,0,0]
[41,null,null,null,null,null,null,null,null,null,null,null,null,null,null,null,null,null,null,0,0,0,0,0,0,0,0,0]
[42,null,null,null,null,null,null,null,null,null,null,null,null,null,null,null,null,null,null,0,0,0,0,0,0,0,0,0]
[43,null,null,null,null,null,null,null,null,null,null,null,null,null,null,null,null,null,null,0,0,0,0,0,0,0,0,0]
[44,null,null,null,null,null,null,null,null,null,null,null,null,null,null,null,null,null,null,0,0,0,0,0,0,0,0,0]
[45,null,null,null,null,null,null,null,null,null,null,null,null,null,null,null,null,null,null,0,0,0,0,0,0,0,0,0]
[46,null,null,null,null,null,null,null,null,null,null,null,null,null,null,null,null,null,null,0,0,0,0,0,0,0,0,0]
[47,null,null,null,null,null,null,null,null,null,null,null,null,null,null,null,null,null,null,0,0,0,0,0,0,0,0,0]
[48,null,null,null,null,null,null,null,null,null,null,null,null,null,null,null,null,null,null,0,0,0,0,0,0,0,0,0]
[49,null,null,null,null,null,null,null,null,null,null,null,null,null,null,null,null,null,null,0,{"$f":"((((IF($G69=U$20,$G69*$C69,\"0\"))+(IF($H69=U$20,$H69*$C69,\"0\"))+(IF($I69=U$20,$I69*$D69,\"0\"))+(IF($J69=U$20,$J69*$D69,\"0\")))*$E69)/1000)/U$20","v":0},0,0,0,0,0,0,0]
[50,null,null,null,null,null,null,null,null,null,null,null,null,null,null,null,null,null,null,0,0,0,0,0,0,0,0,0]
[51,null,null,null,null,null,null,null,null,null,null,null,null,null,null,null,null,null,null,0,0,0,0,0,0,0,0,0]
[52,null,null,null,null,null,null,null,null,null,null,null,null,null,null,null,null,null,null,0,0,0,0,0,0,0,0,0]
[53,null,null,null,null,null,null,null,null,null,null,null,null,null,null,null,null,null,null,0,0,0,0,0,0,0,0,0]
[54,null,null,null,null,null,null,null,null,null,null,null,null,null,null,null,null,null,null,0,0,0,0,0,0,0,0,0]
[55,null,null,null,null,null,null,null,null,null,null,null,null,null,null,null,null,null,null,0,0,0,0,0,0,0,0,0]
[56,null,null,null,null,null,null,null,null,null,null,null,null,null,null,null,null,null,null,0,0,0,0,0,0,0,0,0]
[57,null,null,null,null,null,null,null,null,null,null,null,null,null,null,null,null,null,null,0,0,0,0,0,0,0,0,0]
[58,null,null,null,null,null,null,null,null,null,null,null,null,null,null,null,null,null,null,0,0,0,0,0,0,0,0,0]
[59,null,null,null,null,null,null,null,null,null,null,null,null,null,null,null,null,null,null,0,0,0,0,0,0,0,0,0]
[60,null,null,null,null,null,null,null,null,null,null,null,null,null,null,null,null,null,null,0,0,0,0,0,0,0,0,0]
[61,null,null,null,null,null,null,null,null,null,null,null,null,null,null,null,null,null,null,0,0,0,0,0,0,0,0,0]
[62,null,null,null,null,null,null,null,null,null,null,null,null,null,null,null,null,null,null,0,0,0,0,0,0,0,0,0]
[63,null,null,null,null,null,null,null,null,null,null,null,null,null,null,null,null,null,null,0,0,0,0,0,0,0,0,0]
[64,null,null,null,null,null,null,null,null,null,null,null,null,null,null,null,null,null,null,0,0,0,0,0,0,0,0,0]
[65,null,null,null,null,null,null,null,null,null,null,null,null,null,null,null,null,null,null,{"$f":"(C85*D85*E85)/1000000","v":0},{"$f":"((((IF($G85=U$20,$G85*$C85,\"0\"))+(IF($H85=U$20,$H85*$C85,\"0\"))+(IF($I85=U$20,$I85*$D85,\"0\"))+(IF($J85=U$20,$J85*$D85,\"0\")))*$E85)/1000)/U$20","v":0},0,0,0,0,0,0,0]
[66,null,null,null,null,null,null,null,null,null,null,null,null,null,null,null,null,null,null,0,0,0,0,0,0,0,{"$f":"IF(N86=\"\",0,(C86*D86*E86)/1000000)","v":0},{"$f":"IF(O86=\"\",0,(C86*D86*E86)/1000000)","v":0}]
[67,null,null,null,null,null,null,null,null,null,null,null,null,null,null,null,null,null,null,0,0,0,0,0,0,0,0,0]
[68,null,null,null,null,null,null,null,null,null,null,null,null,null,null,null,null,null,null,0,0,0,0,0,0,0,0,0]
[69,null,null,null,null,null,null,null,null,null,null,null,null,null,null,null,null,null,null,0,0,0,0,0,0,0,0,0]
[70,null,null,null,null,null,null,null,null,null,null,null,null,null,null,null,null,null,null,0,0,0,0,0,0,0,0,0]
[71,null,null,null,null,null,null,null,null,null,null,null,null,null,null,null,null,null,null,0,0,0,0,0,0,0,0,0]
[72,null,null,null,null,null,null,null,null,null,null,null,null,null,null,null,null,null,null,0,0,0,0,0,0,0,0,0]
[73,null,null,null,null,null,null,null,null,null,null,null,null,null,null,null,null,null,null,0,0,0,0,0,0,0,0,0]
[74,null,null,null,null,null,null,null,null,null,null,null,null,null,null,null,null,null,null,0,0,0,0,0,0,0,0,0]
[75,null,null,null,null,null,null,null,null,null,null,null,null,null,null,null,null,null,null,0,0,0,0,0,0,0,0,0]
[76,null,null,null,null,null,null,null,null,null,null,null,null,null,null,null,null,null,null,0,0,0,0,0,0,0,0,0]
[77,null,null,null,null,null,null,null,null,null,null,null,null,null,null,null,null,null,null,0,0,0,0,0,0,0,0,0]
[78,null,null,null,null,null,null,null,null,null,null,null,null,null,null,null,null,null,null,0,0,0,0,0,0,0,0,0]
[79,null,null,null,null,null,null,null,null,null,null,null,null,null,null,null,null,null,null,0,0,0,0,0,0,0,0,0]
[80,null,null,null,null,null,null,null,null,null,null,null,null,null,null,null,null,null,null,0,0,0,0,0,0,0,0,0]
[81,null,null,null,null,null,null,null,null,null,null,null,null,null,null,null,null,null,null,0,{"$f":"((((IF($G101=U$20,$G101*$C101,\"0\"))+(IF($H101=U$20,$H101*$C101,\"0\"))+(IF($I101=U$20,$I101*$D101,\"0\"))+(IF($J101=U$20,$J101*$D101,\"0\")))*$E101)/1000)/U$20","v":0},0,0,0,0,0,0,0]
[82,null,null,null,null,null,null,null,null,null,null,null,null,null,null,null,null,null,null,0,0,0,0,0,0,0,0,0]
[83,null,null,null,null,null,null,null,null,null,null,null,null,null,null,null,null,null,null,0,0,0,0,0,0,0,0,0]
[84,null,null,null,null,null,null,null,null,null,null,null,null,null,null,null,null,null,null,0,0,0,0,0,0,0,0,0]
[85,null,null,null,null,null,null,null,null,null,null,null,null,null,null,null,null,null,null,0,0,0,0,0,0,0,0,0]
[86,null,null,null,null,null,null,null,null,null,null,null,null,null,null,null,null,null,null,0,0,0,0,0,0,0,0,0]
[87,null,null,null,null,null,null,null,null,null,null,null,null,null,null,null,null,null,null,0,0,0,0,0,0,0,0,0]
[88,null,null,null,null,null,null,null,null,null,null,null,null,null,null,null,null,null,null,0,0,0,0,0,0,0,0,0]
[89,null,null,null,null,null,null,null,null,null,null,null,null,null,null,null,null,null,null,0,0,0,0,0,0,0,0,0]
[90,null,null,null,null,null,null,null,null,null,null,null,null,null,null,null,null,null,null,0,0,0,0,0,0,0,0,0]
[91,null,null,null,null,null,null,null,null,null,null,null,null,null,null,null,null,null,null,0,0,0,0,0,0,0,0,0]
[92,null,null,null,null,null,null,null,null,null,null,null,null,null,null,null,null,null,null,0,0,0,0,0,0,0,0,0]
[93,null,null,null,null,null,null,null,null,null,null,null,null,null,null,null,null,null,null,0,0,0,0,0,0,0,0,0]
[94,null,null,null,null,null,null,null,null,null,null,null,null,null,null,null,null,null,null,0,0,0,0,0,0,0,0,0]
[95,null,null,null,null,null,null,null,null,null,null,null,null,null,null,null,null,null,null,0,0,0,0,0,0,0,0,0]
[96,null,null,null,null,null,null,null,null,null,null,null,null,null,null,null,null,null,null,0,0,0,0,0,0,0,0,0]
[97,null,null,null,null,null,null,null,null,null,null,null,null,null,null,null,null,null,null,0,{"$f":"((((IF($G117=U$20,$G117*$C117,\"0\"))+(IF($H117=U$20,$H117*$C117,\"0\"))+(IF($I117=U$20,$I117*$D117,\"0\"))+(IF($J117=U$20,$J117*$D117,\"0\")))*$E117)/1000)/U$20","v":0},0,0,0,0,0,0,0]
[98,null,null,null,null,null,null,null,null,null,null,null,null,null,null,null,null,null,null,0,0,0,0,0,0,0,0,0]
[99,null,null,null,null,null,null,null,null,null,null,null,null,null,null,null,null,null,null,0,0,0,0,0,0,0,0,0]
[100,null,null,null,null,null,null,null,null,null,null,null,null,null,null,null,null,null,null,0,0,0,0,0,0,0,0,0]
[101,null,null,null,null,null,null,null,null,null,null,null,null,null,null,null,null,null,null,0,0,0,0,0,0,0,0,0]
[102,null,null,null,null,null,null,null,null,null,null,null,null,null,null,null,null,null,null,0,0,0,0,0,0,0,0,0]
[103,null,null,null,null,null,null,null,null,null,null,null,null,null,null,null,null,null,null,0,0,0,0,0,0,0,0,0]
[104,null,null,null,null,null,null,null,null,null,null,null,null,null,null,null,null,null,null,0,0,0,0,0,0,0,0,0]
[105,null,null,null,null,null,null,null,null,null,null,null,null,null,null,null,null,null,null,0,0,0,0,0,0,0,0,0]
[106,null,null,null,null,null,null,null,null,null,null,null,null,null,null,null,null,null,null,0,0,0,0,0,0,0,0,0]
[107,null,null,null,null,null,null,null,null,null,null,null,null,null,null,null,null,null,null,0,0,0,0,0,0,0,0,0]
[108,null,null,null,null,null,null,null,null,null,null,null,null,null,null,null,null,null,null,0,0,0,0,0,0,0,0,0]
[109,null,null,null,null,null,null,null,null,null,null,null,null,null,null,null,null,null,null,0,0,0,0,0,0,0,0,0]
[110,null,null,null,null,null,null,null,null,null,null,null,null,null,null,null,null,null,null,0,0,0,0,0,0,0,0,0]
[111,null,null,null,null,null,null,null,null,null,null,null,null,null,null,null,null,null,null,0,0,0,0,0,0,0,0,0]
[112,null,null,null,null,null,null,null,null,null,null,null,null,null,null,null,null,null,null,0,0,0,0,0,0,0,0,0]
[113,null,null,null,null,null,null,null,null,null,null,null,null,null,null,null,null,null,null,0,{"$f":"((((IF($G133=U$20,$G133*$C133,\"0\"))+(IF($H133=U$20,$H133*$C133,\"0\"))+(IF($I133=U$20,$I133*$D133,\"0\"))+(IF($J133=U$20,$J133*$D133,\"0\")))*$E133)/1000)/U$20","v":0},0,0,0,0,0,0,0]
[114,null,null,null,null,null,null,null,null,null,null,null,null,null,null,null,null,null,null,0,0,0,0,0,0,0,0,0]
[115,null,null,null,null,null,null,null,null,null,null,null,null,null,null,null,null,null,null,0,0,0,0,0,0,0,0,0]
[116,null,null,null,null,null,null,null,null,null,null,null,null,null,null,null,null,null,null,0,0,0,0,0,0,0,0,0]
[117,null,null,null,null,null,null,null,null,null,null,null,null,null,null,null,null,null,null,0,0,0,0,0,0,0,0,0]
[118,null,null,null,null,null,null,null,null,null,null,null,null,null,null,null,null,null,null,0,0,0,0,0,0,0,0,0]
[119,null,null,null,null,null,null,null,null,null,null,null,null,null,null,null,null,null,null,0,0,0,0,0,0,0,0,0]
[120,null,null,null,null,null,null,null,null,null,null,null,null,null,null,null,null,null,null,0,0,0,0,0,0,0,0,0]
[121,null,null,null,null,null,null,null,null,null,null,null,null,null,null,null,null,null,null,0,0,0,0,0,0,0,0,0]
[122,null,null,null,null,null,null,null,null,null,null,null,null,null,null,null,null,null,null,0,0,0,0,0,0,0,0,0]
[123,null,null,null,null,null,null,null,null,null,null,null,null,null,null,null,null,null,null,0,0,0,0,0,0,0,0,0]
[124,null,null,null,null,null,null,null,null,null,null,null,null,null,null,null,null,null,null,0,0,0,0,0,0,0,0,0]
[125,null,null,null,null,null,null,null,null,null,null,null,null,null,null,null,null,null,null,0,0,0,0,0,0,0,0,0]
[126,null,null,null,null,null,null,null,null,null,null,null,null,null,null,null,null,null,null,0,0,0,0,0,0,0,0,0]
[127,null,null,null,null,null,null,null,null,null,null,null,null,null,null,null,null,null,null,0,0,0,0,0,0,0,0,0]
[128,null,null,null,null,null,null,null,null,null,null,null,null,null,null,null,null,null,null,0,0,0,0,0,0,0,0,0]
[129,null,null,null,null,null,null,null,null,null,null,null,null,null,null,null,null,null,null,{"$f":"(C149*D149*E149)/1000000","v":0},{"$f":"((((IF($G149=U$20,$G149*$C149,\"0\"))+(IF($H149=U$20,$H149*$C149,\"0\"))+(IF($I149=U$20,$I149*$D149,\"0\"))+(IF($J149=U$20,$J149*$D149,\"0\")))*$E149)/1000)/U$20","v":0},0,0,0,0,0,0,0]
[130,null,null,null,null,null,null,null,null,null,null,null,null,null,null,null,null,null,null,0,0,0,0,0,0,0,{"$f":"IF(N150=\"\",0,(C150*D150*E150)/1000000)","v":0},{"$f":"IF(O150=\"\",0,(C150*D150*E150)/1000000)","v":0}]
[131,null,null,null,null,null,null,null,null,null,null,null,null,null,null,null,null,null,null,0,0,0,0,0,0,0,0,0]
[132,null,null,null,null,null,null,null,null,null,null,null,null,null,null,null,null,null,null,0,0,0,0,0,0,0,0,0]
[133,null,null,null,null,null,null,null,null,null,null,null,null,null,null,null,null,null,null,0,0,0,0,0,0,0,0,0]
[134,null,null,null,null,null,null,null,null,null,null,null,null,null,null,null,null,null,null,0,0,0,0,0,0,0,0,0]
[135,null,null,null,null,null,null,null,null,null,null,null,null,null,null,null,null,null,null,0,0,0,0,0,0,0,0,0]
[136,null,null,null,null,null,null,null,null,null,null,null,null,null,null,null,null,null,null,0,0,0,0,0,0,0,0,0]
[137,null,null,null,null,null,null,null,null,null,null,null,null,null,null,null,null,null,null,0,0,0,0,0,0,0,0,0]
[138,null,null,null,null,null,null,null,null,null,null,null,null,null,null,null,null,null,null,0,0,0,0,0,0,0,0,0]
[139,null,null,null,null,null,null,null,null,null,null,null,null,null,null,null,null,null,null,0,0,0,0,0,0,0,0,0]
[140,null,null,null,null,null,null,null,null,null,null,null,null,null,null,null,null,null,null,0,0,0,0,0,0,0,0,0]
[141,null,null,null,null,null,null,null,null,null,null,null,null,null,null,null,null,null,null,0,0,0,0,0,0,0,0,0]
[142,null,null,null,null,null,null,null,null,null,null,null,null,null,null,null,null,null,null,0,0,0,0,0,0,0,0,0]
[143,null,null,null,null,null,null,null,null,null,null,null,null,null,null,null,null,null,null,0,0,0,0,0,0,0,0,0]
[144,null,null,null,null,null,null,null,null,null,null,null,null,null,null,null,null,null,null,0,0,0,0,0,0,0,0,0]
[145,null,null,null,null,null,null,null,null,null,null,null,null,null,null,null,null,null,null,0,{"$f":"((((IF($G165=U$20,$G165*$C165,\"0\"))+(IF($H165=U$20,$H165*$C165,\"0\"))+(IF($I165=U$20,$I165*$D165,\"0\"))+(IF($J165=U$20,$J165*$D165,\"0\")))*$E165)/1000)/U$20","v":0},0,0,0,0,0,0,0]
[146,null,null,null,null,null,null,null,null,null,null,null,null,null,null,null,null,null,null,0,0,0,0,0,0,0,0,0]
[147,null,null,null,null,null,null,null,null,null,null,null,null,null,null,null,null,null,null,0,0,0,0,0,0,0,0,0]
[148,null,null,null,null,null,null,null,null,null,null,null,null,null,null,null,null,null,null,0,0,0,0,0,0,0,0,0]
[149,null,null,null,null,null,null,null,null,null,null,null,null,null,null,null,null,null,null,0,0,0,0,0,0,0,0,0]
[150,null,null,null,null,null,null,null,null,null,null,null,null,null,null,null,null,null,null,0,0,0,0,0,0,0,0,0]
[151,null,null,null,null,null,null,null,null,null,null,null,null,null,null,null,null,null,null,0,0,0,0,0,0,0,0,0]
[152,null,null,null,null,null,null,null,null,null,null,null,null,null,null,null,null,null,null,0,0,0,0,0,0,0,0,0]
[153,null,null,null,null,null,null,null,null,null,null,null,null,null,null,null,null,null,null,0,0,0,0,0,0,0,0,0]
[154,null,null,null,null,null,null,null,null,null,null,null,null,null,null,null,null,null,null,0,0,0,0,0,0,0,0,0]
[155,null,null,null,null,null,null,null,null,null,null,null,null,null,null,null,null,null,null,0,0,0,0,0,0,0,0,0]
[156,null,null,null,null,null,null,null,null,null,null,null,null,null,null,null,null,null,null,0,0,0,0,0,0,0,0,0]
[157,null,null,null,null,null,null,null,null,null,null,null,null,null,null,null,null,null,null,0,0,0,0,0,0,0,0,0]
[158,null,null,null,null,null,null,null,null,null,null,null,null,null,null,null,null,null,null,0,0,0,0,0,0,0,0,0]
[159,null,null,null,null,null,null,null,null,null,null,null,null,null,null,null,null,null,null,0,0,0,0,0,0,0,0,0]
[160,null,null,null,null,null,null,null,null,null,null,null,null,null,null,null,null,null,null,0,0,0,0,0,0,0,0,0]
[161,null,null,null,null,null,null,null,null,null,null,null,null,null,null,null,null,null,null,0,{"$f":"((((IF($G181=U$20,$G181*$C181,\"0\"))+(IF($H181=U$20,$H181*$C181,\"0\"))+(IF($I181=U$20,$I181*$D181,\"0\"))+(IF($J181=U$20,$J181*$D181,\"0\")))*$E181)/1000)/U$20","v":0},0,0,0,0,0,0,0]
[162,null,null,null,null,null,null,null,null,null,null,null,null,null,null,null,null,null,null,0,0,0,0,0,0,0,0,0]
[163,null,null,null,null,null,null,null,null,null,null,null,null,null,null,null,null,null,null,0,0,0,0,0,0,0,0,0]
[164,null,null,null,null,null,null,null,null,null,null,null,null,null,null,null,null,null,null,0,0,0,0,0,0,0,0,0]
[165,null,null,null,null,null,null,null,null,null,null,null,null,null,null,null,null,null,null,0,0,0,0,0,0,0,0,0]
[166,null,null,null,null,null,null,null,null,null,null,null,null,null,null,null,null,null,null,0,0,0,0,0,0,0,0,0]
[167,null,null,null,null,null,null,null,null,null,null,null,null,null,null,null,null,null,null,0,0,0,0,0,0,0,0,0]
[168,null,null,null,null,null,null,null,null,null,null,null,null,null,null,null,null,null,null,0,0,0,0,0,0,0,0,0]
[169,null,null,null,null,null,null,null,null,null,null,null,null,null,null,null,null,null,null,0,0,0,0,0,0,0,0,0]
[170,null,null,null,null,null,null,null,null,null,null,null,null,null,null,null,null,null,null,0,0,0,0,0,0,0,0,0]
[171,null,null,null,null,null,null,null,null,null,null,null,null,null,null,null,null,null,null,0,0,0,0,0,0,0,0,0]
[172,null,null,null,null,null,null,null,null,null,null,null,null,null,null,null,null,null,null,0,0,0,0,0,0,0,0,0]
[173,null,null,null,null,null,null,null,null,null,null,null,null,null,null,null,null,null,null,0,0,0,0,0,0,0,0,0]
[174,null,null,null,null,null,null,null,null,null,null,null,null,null,null,null,null,null,null,0,0,0,0,0,0,0,0,0]
[175,null,null,null,null,null,null,null,null,null,null,null,null,null,null,null,null,null,null,0,0,0,0,0,0,0,0,0]
[176,null,null,null,null,null,null,null,null,null,null,null,null,null,null,null,null,null,null,0,0,0,0,0,0,0,0,0]
[177,null,null,null,null,null,null,null,null,null,null,null,null,null,null,null,null,null,null,0,{"$f":"((((IF($G197=U$20,$G197*$C197,\"0\"))+(IF($H197=U$20,$H197*$C197,\"0\"))+(IF($I197=U$20,$I197*$D197,\"0\"))+(IF($J197=U$20,$J197*$D197,\"0\")))*$E197)/1000)/U$20","v":0},0,0,0,0,0,0,0]
[178,null,null,null,null,null,null,null,null,null,null,null,null,null,null,null,null,null,null,0,0,0,0,0,0,0,0,0]
[179,null,null,null,null,null,null,null,null,null,null,null,null,null,null,null,null,null,null,0,0,0,0,0,0,0,0,0]
[180,null,null,null,null,null,null,null,null,null,null,null,null,null,null,null,null,null,null,0,0,0,0,0,0,0,0,0]
[181,null,null,null,null,null,null,null,null,null,null,null,null,null,null,null,null,null,null,0,0,0,0,0,0,0,0,0]
[182,null,null,null,null,null,null,null,null,null,null,null,null,null,null,null,null,null,null,0,0,0,0,0,0,0,0,0]
[183,null,null,null,null,null,null,null,null,null,null,null,null,null,null,null,null,null,null,0,0,0,0,0,0,0,0,0]
[184,null,null,null,null,null,null,null,null,null,null,null,null,null,null,null,null,null,null,0,0,0,0,0,0,0,0,0]
[185,null,null,null,null,null,null,null,null,null,null,null,null,null,null,null,null,null,null,0,0,0,0,0,0,0,0,0]
[186,null,null,null,null,null,null,null,null,null,null,null,null,null,null,null,null,null,null,0,0,0,0,0,0,0,0,0]
[187,null,null,null,null,null,null,null,null,null,null,null,null,null,null,null,null,null,null,0,0,0,0,0,0,0,0,0]
[188,null,null,null,null,null,null,null,null,null,null,null,null,null,null,null,null,null,null,0,0,0,0,0,0,0,0,0]
[189,null,null,null,null,null,null,null,null,null,null,null,null,null,null,null,null,null,null,0,0,0,0,0,0,0,0,0]
[190,null,null,null,null,null,null,null,null,null,null,null,null,null,null,null,null,null,null,0,0,0,0,0,0,0,0,0]
[191,null,null,null,null,null,null,null,null,null,null,null,null,null,null,null,null,null,null,0,0,0,0,0,0,0,0,0]
[192,null,null,null,null,null,null,null,null,null,null,null,null,null,null,null,null,null,null,0,0,0,0,0,0,0,0,0]
[193,null,null,null,null,null,null,null,null,null,null,null,null,null,null,null,null,null,null,{"$f":"(C213*D213*E213)/1000000","v":0},{"$f":"((((IF($G213=U$20,$G213*$C213,\"0\"))+(IF($H213=U$20,$H213*$C213,\"0\"))+(IF($I213=U$20,$I213*$D213,\"0\"))+(IF($J213=U$20,$J213*$D213,\"0\")))*$E213)/1000)/U$20","v":0},0,0,0,0,0,0,0]
[194,null,null,null,null,null,null,null,null,null,null,null,null,null,null,null,null,null,null,0,0,0,0,0,0,0,{"$f":"IF(N214=\"\",0,(C214*D214*E214)/1000000)","v":0},{"$f":"IF(O214=\"\",0,(C214*D214*E214)/1000000)","v":0}]
[195,null,null,null,null,null,null,null,null,null,null,null,null,null,null,null,null,null,null,0,0,0,0,0,0,0,0,0]
[196,null,null,null,null,null,null,null,null,null,null,null,null,null,null,null,null,null,null,0,0,0,0,0,0,0,0,0]
[197,null,null,null,null,null,null,null,null,null,null,null,null,null,null,null,null,null,null,0,0,0,0,0,0,0,0,0]
[198,null,null,null,null,null,null,null,null,null,null,null,null,null,null,null,null,null,null,0,0,0,0,0,0,0,0,0]
[199,null,null,null,null,null,null,null,null,null,null,null,null,null,null,null,null,null,null,0,0,0,0,0,0,0,0,0]
[200,null,null,null,null,null,null,null,null,null,null,null,null,null,null,null,null,null,null,0,0,0,0,0,0,0,0,0]
[201,null,null,null,null,null,null,null,null,null,null,null,null,null,null,null,null,null,null,0,0,0,0,0,0,0,0,0]
[202,null,null,null,null,null,null,null,null,null,null,null,null,null,null,null,null,null,null,0,0,0,0,0,0,0,0,0]
[203,null,null,null,null,null,null,null,null,null,null,null,null,null,null,null,null,null,null,0,0,0,0,0,0,0,0,0]
[204,null,null,null,null,null,null,null,null,null,null,null,null,null,null,null,null,null,null,0,0,0,0,0,0,0,0,0]
[205,null,null,null,null,null,null,null,null,null,null,null,null,null,null,null,null,null,null,0,0,0,0,0,0,0,0,0]
[206,null,null,null,null,null,null,null,null,null,null,null,null,null,null,null,null,null,null,0,0,0,0,0,0,0,0,0]
[207,null,null,null,null,null,null,null,null,null,null,null,null,null,null,null,null,null,null,0,0,0,0,0,0,0,0,0]
[208,null,null,null,null,null,null,null,null,null,null,null,null,null,null,null,null,null,null,0,0,0,0,0,0,0,0,0]
[209,null,null,null,null,null,null,null,null,null,null,null,null,null,null,null,null,null,null,0,{"$f":"((((IF($G229=U$20,$G229*$C229,\"0\"))+(IF($H229=U$20,$H229*$C229,\"0\"))+(IF($I229=U$20,$I229*$D229,\"0\"))+(IF($J229=U$20,$J229*$D229,\"0\")))*$E229)/1000)/U$20","v":0},0,0,0,0,0,0,0]
[210,null,null,null,null,null,null,null,null,null,null,null,null,null,null,null,null,null,null,0,0,0,0,0,0,0,0,0]
[211,null,null,null,null,null,null,null,null,null,null,null,null,null,null,null,null,null,null,0,0,0,0,0,0,0,0,0]
[212,null,null,null,null,null,null,null,null,null,null,null,null,null,null,null,null,null,null,0,0,0,0,0,0,0,0,0]
[213,null,null,null,null,null,null,null,null,null,null,null,null,null,null,null,null,null,null,0,0,0,0,0,0,0,0,0]
[214,null,null,null,null,null,null,null,null,null,null,null,null,null,null,null,null,null,null,0,0,0,0,0,0,0,0,0]
[215,null,null,null,null,null,null,null,null,null,null,null,null,null,null,null,null,null,null,0,0,0,0,0,0,0,0,0]
[216,null,null,null,null,null,null,null,null,null,null,null,null,null,null,null,null,null,null,0,0,0,0,0,0,0,0,0]
[217,null,null,null,null,null,null,null,null,null,null,null,null,null,null,null,null,null,null,0,0,0,0,0,0,0,0,0]
[218,null,null,null,null,null,null,null,null,null,null,null,null,null,null,null,null,null,null,0,0,0,0,0,0,0,0,0]
[219,null,null,null,null,null,null,null,null,null,null,null,null,null,null,null,null,null,null,0,0,0,0,0,0,0,0,0]
[220,null,null,null,null,null,null,null,null,null,null,null,null,null,null,null,null,null,null,0,0,0,0,0,0,0,0,0]
[221,null,null,null,null,null,null,null,null,null,null,null,null,null,null,null,null,null,null,0,0,0,0,0,0,0,0,0]
[222,null,null,null,null,null,null,null,null,null,null,null,null,null,null,null,null,null,null,0,0,0,0,0,0,0,0,0]
[223,null,null,null,null,null,null,null,null,null,null,null,null,null,null,null,null,null,null,0,0,0,0,0,0,0,0,0]
[224,null,null,null,null,null,null,null,null,null,null,null,null,null,null,null,null,null,null,0,0,0,0,0,0,0,0,0]
[225,null,null,null,null,null,null,null,null,null,null,null,null,null,null,null,null,null,null,0,{"$f":"((((IF($G245=U$20,$G245*$C245,\"0\"))+(IF($H245=U$20,$H245*$C245,\"0\"))+(IF($I245=U$20,$I245*$D245,\"0\"))+(IF($J245=U$20,$J245*$D245,\"0\")))*$E245)/1000)/U$20","v":0},0,0,0,0,0,0,0]
[226,null,null,null,null,null,null,null,null,null,null,null,null,null,null,null,null,null,null,0,0,0,0,0,0,0,0,0]
[227,null,null,null,null,null,null,null,null,null,null,null,null,null,null,null,null,null,null,0,0,0,0,0,0,0,0,0]
[228,null,null,null,null,null,null,null,null,null,null,null,null,null,null,null,null,null,null,0,0,0,0,0,0,0,0,0]
[229,null,null,null,null,null,null,null,null,null,null,null,null,null,null,null,null,null,null,0,0,0,0,0,0,0,0,0]
[230,null,null,null,null,null,null,null,null,null,null,null,null,null,null,null,null,null,null,0,0,0,0,0,0,0,0,0]
[231,null,null,null,null,null,null,null,null,null,null,null,null,null,null,null,null,null,null,0,0,0,0,0,0,0,0,0]
[]
[]
[]
[]
[]
[]
[]
[]
[]
[]
[]
[]
[]
[]
[]
[]
[]
[]
[]
[]
[]
[]
[]
[]
[]
[]
[]
[]
[]
[]
[]
[]
[]
[]
[]
[]
[]
[]
[]
[]
[]
[]
[]
[]
[]
[]
[]
[]
[]
[]
[]
[]
[]
[]
[]
[]
[]
[]
[]
[]
[]
[]
[]
[]
[]
[]
[]
[]
[]
[]
[]
[]
[]
[]
[]
[]
[]
[]
[]
[]
[]
[]
[]
[]
[]
[]
[]
[]
[]
[]
[]
[]
[]
[]
[]
[]
[]
[]
[]
[]
[]
[]
[]
[]
[]
[]
[]
[]
[]
[]
[]
[]
[]
[]
[]
[]
[]
[]
[]
[]
[]
[]
[]
[]
[]
[]
[]
[]
[]
[]
[]
[]
[]
[]
[]
[]
[]
[]
[]
[]
[]
[]
[]
[]
[]
[]
[]
[]
[]
[]
[]
[]
[]
[]
[]
[]
[]
[]
[]
[]
[]
[]
[]
[]
[null,null,null,null,null,null,null,null,null,null,null,null,null,null,null,null,null,null,null,null,"ABS 0,5","ABS 2","ABS 0,5","ABS 2","ABS 1","ABS 42/1","zesilování","sdružené formáty"]
[null,null,null,null,null,null,null,null,null,null,null,null,null,null,null,null,null,null,null,"m2",1,2,3,4,5,6,"m2","m2"]
[]
[null,null,null,null,null,null,null,null,null,null,null,null,null,null,null,null,null,null,null,{"$f":"SUM(T21:T251)","v":0},0,0,0,0,0,0,0,0]
[]
[null,null,null,null,null,null,null,null,null,null,null,null,null,null,null,null,null,null,"výpočet",null,null,null,"plocha","m2",{"$f":"T$419","v":0}]
[null,null,null,null,null,null,null,null,null,null,null,null,null,null,null,null,null,null,null,null,null,null,"ABS 22/0,5","m",{"$f":"U$419","v":0}]
[null,null,null,null,null,null,null,null,null,null,null,null,null,null,null,null,null,null,null,null,null,null,"ABS 22/2","m",{"$f":"V$419","v":0}]
[null,null,null,null,null,null,null,null,null,null,null,null,null,null,null,null,null,null,null,null,null,null,"ABS 42/0,5","m",{"$f":"W$419","v":0}]
[null,null,null,null,null,null,null,null,null,null,null,null,null,null,null,null,null,null,null,null,null,null,"ABS 42/2","m",{"$f":"X$419","v":0}]
[null,null,null,null,null,null,null,null,null,null,null,null,null,null,null,null,null,null,null,null,null,null,"ABS 22/1","m",{"$f":"Y$419","v":0}]
[null,null,null,null,null,null,null,null,null,null,null,null,null,null,null,null,null,null,null,null,null,null,"ABS 42/1","m",{"$f":"Z$419","v":0}]
[]
[]
[null,null,null,null,null,null,null,null,null,null,null,null,null,null,null,null,null,null,null,null,null,null,"počet","KS",{"$f":"SUM(E21:E251)","v":0}]
[null,null,null,null,null,null,null,null,null,null,null,null,null,null,null,null,null,null,null,null,null,null,"plocha zesílení","m2",{"$f":"AA$419","v":0}]
[null,null,null,null,null,null,null,null,null,null,null,null,null,null,null,null,null,null,null,null,null,null,"plocha celkem","m2",{"$f":"T419+Y431","v":0}]
[null,null,null,null,null,null,null,null,null,null,null,null,null,null,null,null,null,null,null,null,null,null,"plocha SF","m2",{"$f":"AB$419","v":0}]

{"sheet":"Materiál_6","index":5,"n_rows":433,"n_cols":28,"rows_kept":433,"cut":false,"hidden":false,"merged":[[431,24,431,25],[432,24,432,25],[425,24,425,25],[426,24,426,25],[427,24,427,25],[428,24,428,25],[429,24,429,25],[430,24,430,25],[16,2,16,9],[16,13,16,14],[18,0,19,0],[19,6,19,9],[420,18,432,21],[420,24,420,25],[421,24,421,25],[422,24,422,25],[423,24,423,25],[424,24,424,25],[12,2,12,3],[12,4,12,9],[12,13,12,15],[13,2,13,3],[13,4,13,9],[13,13,13,15],[10,6,10,14],[1,0,1,15],[3,0,3,15],[7,6,7,14],[8,6,8,14],[9,6,9,14]]}
[]
["!!! UVÁDĚJTE ROZMĚRY VČ. HRAN, PŘIČEMŽ DODRŽTE ZNAČENÍ UVEDENÉ VEDLE TABULKY !!!"]
[]
["!!! STANDARTNĚ OLEPUJEME TRANSPARENTNÍM POLYURETANOVÝM LEPIDLEM !!!"]
[]
[]
[null,null,null,null,null,null,null,null,null,null,null,null,null,null,null,null,null,1,"znamená ABS 0,5"]
[null,"Dodavatel:",null,null,null,null,"Označení zakázky:",null,null,null,null,null,null,null,null,{"$f":"IF(Materiál_1!P8=\"\",\"\",Materiál_1!P8)","v":""},null,2,"znamená ABS 2"]
[null,{"$f":"Materiál_1!B9","v":"NODO ART, s.r.o."},null,null,null,null,"Odběratel:",null,null,null,null,null,null,null,null,{"$f":"IF(Materiál_1!P9=\"\",\"\",Materiál_1!P9)","v":""},{"$f":"IF(Materiál_1!Q9=\"\",\"\",Materiál_1!Q9)","v":""},{"$f":"IF(Materiál_1!R9=\"\",\"\",Materiál_1!R9)","v":3},{"$f":"IF(Materiál_1!S9=\"\",\"\",Materiál_1!S9)","v":"znamená ABS 42/0,5"},{"$f":"IF(Materiál_1!T9=\"\",\"\",Materiál_1!T9)","v":""},{"$f":"IF(Materiál_1!U9=\"\",\"\",Materiál_1!U9)","v":""}]
[null,{"$f":"Materiál_1!B10","v":"tel. +420 773 236 200"},null,null,null,null,"tel:",null,null,null,null,null,null,null,null,{"$f":"IF(Materiál_1!P10=\"\",\"\",Materiál_1!P10)","v":""},null,4,"znamená ABS 42/2"]
[null,{"$f":"Materiál_1!B11","v":"e-mail: dubovecky@nodo.cz"},null,null,null,null,"e - mail :",null,null,null,null,null,null,null,null,{"$f":"IF(Materiál_1!P11=\"\",\"\",Materiál_1!P11)","v":""},null,5,"znamená ABS 22/1"]
[null,null,null,null,null,null,null,null,null,null,null,null,null,null,null,null,null,6,"znamená ABS 42/1"]
[null,"OBYČEJNÉ LEPIDLO \"EVA\"","DOPRAVA          \"ZÁVOZ\"",null,"NEBALIT NA PALETU",null,null,null,null,null,null,null,null,"UVOLŇOVACÍ ŘEZ"]
[null,{"$f":"IF(Materiál_1!B14=\"\",\"\",Materiál_1!B14)","v":""},{"$f":"IF(Materiál_1!C14=\"\",\"\",Materiál_1!C14)","v":""},{"$f":"IF(Materiál_1!D14=\"\",\"\",Materiál_1!D14)","v":""},{"$f":"IF(Materiál_1!E14=\"\",\"\",Materiál_1!E14)","v":""},{"$f":"IF(Materiál_1!F14=\"\",\"\",Materiál_1!F14)","v":""},{"$f":"IF(Materiál_1!G14=\"\",\"\",Materiál_1!G14)","v":""},{"$f":"IF(Materiál_1!H14=\"\",\"\",Materiál_1!H14)","v":""},{"$f":"IF(Materiál_1!I14=\"\",\"\",Materiál_1!I14)","v":""},{"$f":"IF(Materiál_1!J14=\"\",\"\",Materiál_1!J14)","v":""}]
[]
[]
[null,"Druh materiálu:",null,null,null,null,null,null,null,null,null,null,null,null,null,"BÍLÉ LEPIDLO"]
[]
["P.č.",null,"X1, X2","Y1, Y2",null,null,"X1","X2","Y1","Y2",null,null,null,null,null,null,null,null,null,null,"ABS 0,5","ABS 2","ABS 0,5","ABS 2","ABS 1","ABS 42/1","zesilování","sdružené formáty"]
[null,"Název","délka                             (po vláknech) (mm)","šířka                                        (napříč vláknům) (mm)","počet (ks)","orientace lét","olepování",null,null,null,null,null,null,"zesilování","sdružené formáty","Poznámka",null,null,null,"m2",1,2,3,4,5,6,"m2","m2"]
[1,null,null,null,null,null,null,null,null,null,null,null,null,null,null,null,null,null,null,{"$f":"(C21*D21*E21)/1000000","v":0},{"$f":"((((IF($G21=U$20,$G21*$C21,\"0\"))+(IF($H21=U$20,$H21*$C21,\"0\"))+(IF($I21=U$20,$I21*$D21,\"0\"))+(IF($J21=U$20,$J21*$D21,\"0\")))*$E21)/1000)/U$20","v":0},0,0,0,0,0,{"$f":"IF(N21=\"\",0,(C21*D21*E21)/1000000)","v":0},{"$f":"IF(O21=\"\",0,(C21*D21*E21)/1000000)","v":0}]
[2,null,null,null,null,null,null,null,null,null,null,null,null,null,null,null,null,null,null,0,0,0,0,0,0,0,{"$f":"IF(N22=\"\",0,(C22*D22*E22)/1000000)","v":0},{"$f":"IF(O22=\"\",0,(C22*D22*E22)/1000000)","v":0}]
[3,null,null,null,null,null,null,null,null,null,null,null,null,null,null,null,null,null,null,0,0,0,0,0,0,0,0,0]
[4,null,null,null,null,null,null,null,null,null,null,null,null,null,null,null,null,null,null,0,0,0,0,0,0,0,0,0]
[5,null,null,null,null,null,null,null,null,null,null,null,null,null,null,null,null,null,null,0,0,0,0,0,0,0,0,0]
[6,null,null,null,null,null,null,null,null,null,null,null,null,null,null,null,null,null,null,0,0,0,0,0,0,0,0,0]
[7,null,null,null,null,null,null,null,null,null,null,null,null,null,null,null,null,null,null,0,0,0,0,0,0,0,0,0]
[8,null,null,null,null,null,null,null,null,null,null,null,null,null,null,null,null,null,null,0,0,0,0,0,0,0,0,0]
[9,null,null,null,null,null,null,null,null,null,null,null,null,null,null,null,null,null,null,0,0,0,0,0,0,0,0,0]
[10,null,null,null,null,null,null,null,null,null,null,null,null,null,null,null,null,null,null,0,0,0,0,0,0,0,0,0]
[11,null,null,null,null,null,null,null,null,null,null,null,null,null,null,null,null,null,null,0,0,0,0,0,0,0,0,0]
[12,null,null,null,null,null,null,null,null,null,null,null,null,null,null,null,null,null,null,0,0,0,0,0,0,0,0,0]
[13,null,null,null,null,null,null,null,null,null,null,null,null,null,null,null,null,null,null,0,0,0,0,0,0,0,0,0]
[14,null,null,null,null,null,null,null,null,null,null,null,null,null,null,null,null,null,null,0,0,0,0,0,0,0,0,0]
[15,null,null,null,null,null,null,null,null,null,null,null,null,null,null,null,null,null,null,0,0,0,0,0,0,0,0,0]
[16,null,null,null,null,null,null,null,null,null,null,null,null,null,null,null,null,null,null,0,0,0,0,0,0,0,0,0]
[17,null,null,null,null,null,null,null,null,null,null,null,null,null,null,null,null,null,null,0,{"$f":"((((IF($G37=U$20,$G37*$C37,\"0\"))+(IF($H37=U$20,$H37*$C37,\"0\"))+(IF($I37=U$20,$I37*$D37,\"0\"))+(IF($J37=U$20,$J37*$D37,\"0\")))*$E37)/1000)/U$20","v":0},0,0,0,0,0,0,0]
[18,null,null,null,null,null,null,null,null,null,null,null,null,null,null,null,null,null,null,0,0,0,0,0,0,0,0,0]
[19,null,null,null,null,null,null,null,null,null,null,null,null,null,null,null,null,null,null,0,0,0,0,0,0,0,0,0]
[20,null,null,null,null,null,null,null,null,null,null,null,null,null,null,null,null,null,null,0,0,0,0,0,0,0,0,0]
[21,null,null,null,null,null,null,null,null,null,null,null,null,null,null,null,null,null,null,0,0,0,0,0,0,0,0,0]
[22,null,null,null,null,null,null,null,null,null,null,null,null,null,null,null,null,null,null,0,0,0,0,0,0,0,0,0]
[23,null,null,null,null,null,null,null,null,null,null,null,null,null,null,null,null,null,null,0,0,0,0,0,0,0,0,0]
[24,null,null,null,null,null,null,null,null,null,null,null,null,null,null,null,null,null,null,0,0,0,0,0,0,0,0,0]
[25,null,null,null,null,null,null,null,null,null,null,null,null,null,null,null,null,null,null,0,0,0,0,0,0,0,0,0]
[26,null,null,null,null,null,null,null,null,null,null,null,null,null,null,null,null,null,null,0,0,0,0,0,0,0,0,0]
[27,null,null,null,null,null,null,null,null,null,null,null,null,null,null,null,null,null,null,0,0,0,0,0,0,0,0,0]
[28,null,null,null,null,null,null,null,null,null,null,null,null,null,null,null,null,null,null,0,0,0,0,0,0,0,0,0]
[29,null,null,null,null,null,null,null,null,null,null,null,null,null,null,null,null,null,null,0,0,0,0,0,0,0,0,0]
[30,null,null,null,null,null,null,null,null,null,null,null,null,null,null,null,null,null,null,0,0,0,0,0,0,0,0,0]
[31,null,null,null,null,null,null,null,null,null,null,null,null,null,null,null,null,null,null,0,0,0,0,0,0,0,0,0]
[32,null,null,null,null,null,null,null,null,null,null,null,null,null,null,null,null,null,null,0,0,0,0,0,0,0,0,0]
[33,null,null,null,null,null,null,null,null,null,null,null,null,null,null,null,null,null,null,0,{"$f":"((((IF($G53=U$20,$G53*$C53,\"0\"))+(IF($H53=U$20,$H53*$C53,\"0\"))+(IF($I53=U$20,$I53*$D53,\"0\"))+(IF($J53=U$20,$J53*$D53,\"0\")))*$E53)/1000)/U$20","v":0},0,0,0,0,0,0,0]
[34,null,null,null,null,null,null,null,null,null,null,null,null,null,null,null,null,null,null,0,0,0,0,0,0,0,0,0]
[35,null,null,null,null,null,null,null,null,null,null,null,null,null,null,null,null,null,null,0,0,0,0,0,0,0,0,0]
[36,null,null,null,null,null,null,null,null,null,null,null,null,null,null,null,null,null,null,0,0,0,0,0,0,0,0,0]
[37,null,null,null,null,null,null,null,null,null,null,null,null,null,null,null,null,null,null,0,0,0,0,0,0,0,0,0]
[38,null,null,null,null,null,null,null,null,null,null,null,null,null,null,null,null,null,null,0,0,0,0,0,0,0,0,0]
[39,null,null,null,null,null,null,null,null,null,null,null,null,null,null,null,null,null,null,0,0,0,0,0,0,0,0,0]
[40,null,null,null,null,null,null,null,null,null,null,null,null,null,null,null,null,null,null,0,0,0,0,0,0,0,0,0]
[41,null,null,null,null,null,null,null,null,null,null,null,null,null,null,null,null,null,null,0,0,0,0,0,0,0,0,0]
[42,null,null,null,null,null,null,null,null,null,null,null,null,null,null,null,null,null,null,0,0,0,0,0,0,0,0,0]
[43,null,null,null,null,null,null,null,null,null,null,null,null,null,null,null,null,null,null,0,0,0,0,0,0,0,0,0]
[44,null,null,null,null,null,null,null,null,null,null,null,null,null,null,null,null,null,null,0,0,0,0,0,0,0,0,0]
[45,null,null,null,null,null,null,null,null,null,null,null,null,null,null,null,null,null,null,0,0,0,0,0,0,0,0,0]
[46,null,null,null,null,null,null,null,null,null,null,null,null,null,null,null,null,null,null,0,0,0,0,0,0,0,0,0]
[47,null,null,null,null,null,null,null,null,null,null,null,null,null,null,null,null,null,null,0,0,0,0,0,0,0,0,0]
[48,null,null,null,null,null,null,null,null,null,null,null,null,null,null,null,null,null,null,0,0,0,0,0,0,0,0,0]
[49,null,null,null,null,null,null,null,null,null,null,null,null,null,null,null,null,null,null,0,{"$f":"((((IF($G69=U$20,$G69*$C69,\"0\"))+(IF($H69=U$20,$H69*$C69,\"0\"))+(IF($I69=U$20,$I69*$D69,\"0\"))+(IF($J69=U$20,$J69*$D69,\"0\")))*$E69)/1000)/U$20","v":0},0,0,0,0,0,0,0]
[50,null,null,null,null,null,null,null,null,null,null,null,null,null,null,null,null,null,null,0,0,0,0,0,0,0,0,0]
[51,null,null,null,null,null,null,null,null,null,null,null,null,null,null,null,null,null,null,0,0,0,0,0,0,0,0,0]
[52,null,null,null,null,null,null,null,null,null,null,null,null,null,null,null,null,null,null,0,0,0,0,0,0,0,0,0]
[53,null,null,null,null,null,null,null,null,null,null,null,null,null,null,null,null,null,null,0,0,0,0,0,0,0,0,0]
[54,null,null,null,null,null,null,null,null,null,null,null,null,null,null,null,null,null,null,0,0,0,0,0,0,0,0,0]
[55,null,null,null,null,null,null,null,null,null,null,null,null,null,null,null,null,null,null,0,0,0,0,0,0,0,0,0]
[56,null,null,null,null,null,null,null,null,null,null,null,null,null,null,null,null,null,null,0,0,0,0,0,0,0,0,0]
[57,null,null,null,null,null,null,null,null,null,null,null,null,null,null,null,null,null,null,0,0,0,0,0,0,0,0,0]
[58,null,null,null,null,null,null,null,null,null,null,null,null,null,null,null,null,null,null,0,0,0,0,0,0,0,0,0]
[59,null,null,null,null,null,null,null,null,null,null,null,null,null,null,null,null,null,null,0,0,0,0,0,0,0,0,0]
[60,null,null,null,null,null,null,null,null,null,null,null,null,null,null,null,null,null,null,0,0,0,0,0,0,0,0,0]
[61,null,null,null,null,null,null,null,null,null,null,null,null,null,null,null,null,null,null,0,0,0,0,0,0,0,0,0]
[62,null,null,null,null,null,null,null,null,null,null,null,null,null,null,null,null,null,null,0,0,0,0,0,0,0,0,0]
[63,null,null,null,null,null,null,null,null,null,null,null,null,null,null,null,null,null,null,0,0,0,0,0,0,0,0,0]
[64,null,null,null,null,null,null,null,null,null,null,null,null,null,null,null,null,null,null,0,0,0,0,0,0,0,0,0]
[65,null,null,null,null,null,null,null,null,null,null,null,null,null,null,null,null,null,null,{"$f":"(C85*D85*E85)/1000000","v":0},{"$f":"((((IF($G85=U$20,$G85*$C85,\"0\"))+(IF($H85=U$20,$H85*$C85,\"0\"))+(IF($I85=U$20,$I85*$D85,\"0\"))+(IF($J85=U$20,$J85*$D85,\"0\")))*$E85)/1000)/U$20","v":0},0,0,0,0,0,0,0]
[66,null,null,null,null,null,null,null,null,null,null,null,null,null,null,null,null,null,null,0,0,0,0,0,0,0,{"$f":"IF(N86=\"\",0,(C86*D86*E86)/1000000)","v":0},{"$f":"IF(O86=\"\",0,(C86*D86*E86)/1000000)","v":0}]
[67,null,null,null,null,null,null,null,null,null,null,null,null,null,null,null,null,null,null,0,0,0,0,0,0,0,0,0]
[68,null,null,null,null,null,null,null,null,null,null,null,null,null,null,null,null,null,null,0,0,0,0,0,0,0,0,0]
[69,null,null,null,null,null,null,null,null,null,null,null,null,null,null,null,null,null,null,0,0,0,0,0,0,0,0,0]
[70,null,null,null,null,null,null,null,null,null,null,null,null,null,null,null,null,null,null,0,0,0,0,0,0,0,0,0]
[71,null,null,null,null,null,null,null,null,null,null,null,null,null,null,null,null,null,null,0,0,0,0,0,0,0,0,0]
[72,null,null,null,null,null,null,null,null,null,null,null,null,null,null,null,null,null,null,0,0,0,0,0,0,0,0,0]
[73,null,null,null,null,null,null,null,null,null,null,null,null,null,null,null,null,null,null,0,0,0,0,0,0,0,0,0]
[74,null,null,null,null,null,null,null,null,null,null,null,null,null,null,null,null,null,null,0,0,0,0,0,0,0,0,0]
[75,null,null,null,null,null,null,null,null,null,null,null,null,null,null,null,null,null,null,0,0,0,0,0,0,0,0,0]
[76,null,null,null,null,null,null,null,null,null,null,null,null,null,null,null,null,null,null,0,0,0,0,0,0,0,0,0]
[77,null,null,null,null,null,null,null,null,null,null,null,null,null,null,null,null,null,null,0,0,0,0,0,0,0,0,0]
[78,null,null,null,null,null,null,null,null,null,null,null,null,null,null,null,null,null,null,0,0,0,0,0,0,0,0,0]
[79,null,null,null,null,null,null,null,null,null,null,null,null,null,null,null,null,null,null,0,0,0,0,0,0,0,0,0]
[80,null,null,null,null,null,null,null,null,null,null,null,null,null,null,null,null,null,null,0,0,0,0,0,0,0,0,0]
[81,null,null,null,null,null,null,null,null,null,null,null,null,null,null,null,null,null,null,0,{"$f":"((((IF($G101=U$20,$G101*$C101,\"0\"))+(IF($H101=U$20,$H101*$C101,\"0\"))+(IF($I101=U$20,$I101*$D101,\"0\"))+(IF($J101=U$20,$J101*$D101,\"0\")))*$E101)/1000)/U$20","v":0},0,0,0,0,0,0,0]
[82,null,null,null,null,null,null,null,null,null,null,null,null,null,null,null,null,null,null,0,0,0,0,0,0,0,0,0]
[83,null,null,null,null,null,null,null,null,null,null,null,null,null,null,null,null,null,null,0,0,0,0,0,0,0,0,0]
[84,null,null,null,null,null,null,null,null,null,null,null,null,null,null,null,null,null,null,0,0,0,0,0,0,0,0,0]
[85,null,null,null,null,null,null,null,null,null,null,null,null,null,null,null,null,null,null,0,0,0,0,0,0,0,0,0]
[86,null,null,null,null,null,null,null,null,null,null,null,null,null,null,null,null,null,null,0,0,0,0,0,0,0,0,0]
[87,null,null,null,null,null,null,null,null,null,null,null,null,null,null,null,null,null,null,0,0,0,0,0,0,0,0,0]
[88,null,null,null,null,null,null,null,null,null,null,null,null,null,null,null,null,null,null,0,0,0,0,0,0,0,0,0]
[89,null,null,null,null,null,null,null,null,null,null,null,null,null,null,null,null,null,null,0,0,0,0,0,0,0,0,0]
[90,null,null,null,null,null,null,null,null,null,null,null,null,null,null,null,null,null,null,0,0,0,0,0,0,0,0,0]
[91,null,null,null,null,null,null,null,null,null,null,null,null,null,null,null,null,null,null,0,0,0,0,0,0,0,0,0]
[92,null,null,null,null,null,null,null,null,null,null,null,null,null,null,null,null,null,null,0,0,0,0,0,0,0,0,0]
[93,null,null,null,null,null,null,null,null,null,null,null,null,null,null,null,null,null,null,0,0,0,0,0,0,0,0,0]
[94,null,null,null,null,null,null,null,null,null,null,null,null,null,null,null,null,null,null,0,0,0,0,0,0,0,0,0]
[95,null,null,null,null,null,null,null,null,null,null,null,null,null,null,null,null,null,null,0,0,0,0,0,0,0,0,0]
[96,null,null,null,null,null,null,null,null,null,null,null,null,null,null,null,null,null,null,0,0,0,0,0,0,0,0,0]
[97,null,null,null,null,null,null,null,null,null,null,null,null,null,null,null,null,null,null,0,{"$f":"((((IF($G117=U$20,$G117*$C117,\"0\"))+(IF($H117=U$20,$H117*$C117,\"0\"))+(IF($I117=U$20,$I117*$D117,\"0\"))+(IF($J117=U$20,$J117*$D117,\"0\")))*$E117)/1000)/U$20","v":0},0,0,0,0,0,0,0]
[98,null,null,null,null,null,null,null,null,null,null,null,null,null,null,null,null,null,null,0,0,0,0,0,0,0,0,0]
[99,null,null,null,null,null,null,null,null,null,null,null,null,null,null,null,null,null,null,0,0,0,0,0,0,0,0,0]
[100,null,null,null,null,null,null,null,null,null,null,null,null,null,null,null,null,null,null,0,0,0,0,0,0,0,0,0]
[101,null,null,null,null,null,null,null,null,null,null,null,null,null,null,null,null,null,null,0,0,0,0,0,0,0,0,0]
[102,null,null,null,null,null,null,null,null,null,null,null,null,null,null,null,null,null,null,0,0,0,0,0,0,0,0,0]
[103,null,null,null,null,null,null,null,null,null,null,null,null,null,null,null,null,null,null,0,0,0,0,0,0,0,0,0]
[104,null,null,null,null,null,null,null,null,null,null,null,null,null,null,null,null,null,null,0,0,0,0,0,0,0,0,0]
[105,null,null,null,null,null,null,null,null,null,null,null,null,null,null,null,null,null,null,0,0,0,0,0,0,0,0,0]
[106,null,null,null,null,null,null,null,null,null,null,null,null,null,null,null,null,null,null,0,0,0,0,0,0,0,0,0]
[107,null,null,null,null,null,null,null,null,null,null,null,null,null,null,null,null,null,null,0,0,0,0,0,0,0,0,0]
[108,null,null,null,null,null,null,null,null,null,null,null,null,null,null,null,null,null,null,0,0,0,0,0,0,0,0,0]
[109,null,null,null,null,null,null,null,null,null,null,null,null,null,null,null,null,null,null,0,0,0,0,0,0,0,0,0]
[110,null,null,null,null,null,null,null,null,null,null,null,null,null,null,null,null,null,null,0,0,0,0,0,0,0,0,0]
[111,null,null,null,null,null,null,null,null,null,null,null,null,null,null,null,null,null,null,0,0,0,0,0,0,0,0,0]
[112,null,null,null,null,null,null,null,null,null,null,null,null,null,null,null,null,null,null,0,0,0,0,0,0,0,0,0]
[113,null,null,null,null,null,null,null,null,null,null,null,null,null,null,null,null,null,null,0,{"$f":"((((IF($G133=U$20,$G133*$C133,\"0\"))+(IF($H133=U$20,$H133*$C133,\"0\"))+(IF($I133=U$20,$I133*$D133,\"0\"))+(IF($J133=U$20,$J133*$D133,\"0\")))*$E133)/1000)/U$20","v":0},0,0,0,0,0,0,0]
[114,null,null,null,null,null,null,null,null,null,null,null,null,null,null,null,null,null,null,0,0,0,0,0,0,0,0,0]
[115,null,null,null,null,null,null,null,null,null,null,null,null,null,null,null,null,null,null,0,0,0,0,0,0,0,0,0]
[116,null,null,null,null,null,null,null,null,null,null,null,null,null,null,null,null,null,null,0,0,0,0,0,0,0,0,0]
[117,null,null,null,null,null,null,null,null,null,null,null,null,null,null,null,null,null,null,0,0,0,0,0,0,0,0,0]
[118,null,null,null,null,null,null,null,null,null,null,null,null,null,null,null,null,null,null,0,0,0,0,0,0,0,0,0]
[119,null,null,null,null,null,null,null,null,null,null,null,null,null,null,null,null,null,null,0,0,0,0,0,0,0,0,0]
[120,null,null,null,null,null,null,null,null,null,null,null,null,null,null,null,null,null,null,0,0,0,0,0,0,0,0,0]
[121,null,null,null,null,null,null,null,null,null,null,null,null,null,null,null,null,null,null,0,0,0,0,0,0,0,0,0]
[122,null,null,null,null,null,null,null,null,null,null,null,null,null,null,null,null,null,null,0,0,0,0,0,0,0,0,0]
[123,null,null,null,null,null,null,null,null,null,null,null,null,null,null,null,null,null,null,0,0,0,0,0,0,0,0,0]
[124,null,null,null,null,null,null,null,null,null,null,null,null,null,null,null,null,null,null,0,0,0,0,0,0,0,0,0]
[125,null,null,null,null,null,null,null,null,null,null,null,null,null,null,null,null,null,null,0,0,0,0,0,0,0,0,0]
[126,null,null,null,null,null,null,null,null,null,null,null,null,null,null,null,null,null,null,0,0,0,0,0,0,0,0,0]
[127,null,null,null,null,null,null,null,null,null,null,null,null,null,null,null,null,null,null,0,0,0,0,0,0,0,0,0]
[128,null,null,null,null,null,null,null,null,null,null,null,null,null,null,null,null,null,null,0,0,0,0,0,0,0,0,0]
[129,null,null,null,null,null,null,null,null,null,null,null,null,null,null,null,null,null,null,{"$f":"(C149*D149*E149)/1000000","v":0},{"$f":"((((IF($G149=U$20,$G149*$C149,\"0\"))+(IF($H149=U$20,$H149*$C149,\"0\"))+(IF($I149=U$20,$I149*$D149,\"0\"))+(IF($J149=U$20,$J149*$D149,\"0\")))*$E149)/1000)/U$20","v":0},0,0,0,0,0,0,0]
[130,null,null,null,null,null,null,null,null,null,null,null,null,null,null,null,null,null,null,0,0,0,0,0,0,0,{"$f":"IF(N150=\"\",0,(C150*D150*E150)/1000000)","v":0},{"$f":"IF(O150=\"\",0,(C150*D150*E150)/1000000)","v":0}]
[131,null,null,null,null,null,null,null,null,null,null,null,null,null,null,null,null,null,null,0,0,0,0,0,0,0,0,0]
[132,null,null,null,null,null,null,null,null,null,null,null,null,null,null,null,null,null,null,0,0,0,0,0,0,0,0,0]
[133,null,null,null,null,null,null,null,null,null,null,null,null,null,null,null,null,null,null,0,0,0,0,0,0,0,0,0]
[134,null,null,null,null,null,null,null,null,null,null,null,null,null,null,null,null,null,null,0,0,0,0,0,0,0,0,0]
[135,null,null,null,null,null,null,null,null,null,null,null,null,null,null,null,null,null,null,0,0,0,0,0,0,0,0,0]
[136,null,null,null,null,null,null,null,null,null,null,null,null,null,null,null,null,null,null,0,0,0,0,0,0,0,0,0]
[137,null,null,null,null,null,null,null,null,null,null,null,null,null,null,null,null,null,null,0,0,0,0,0,0,0,0,0]
[138,null,null,null,null,null,null,null,null,null,null,null,null,null,null,null,null,null,null,0,0,0,0,0,0,0,0,0]
[139,null,null,null,null,null,null,null,null,null,null,null,null,null,null,null,null,null,null,0,0,0,0,0,0,0,0,0]
[140,null,null,null,null,null,null,null,null,null,null,null,null,null,null,null,null,null,null,0,0,0,0,0,0,0,0,0]
[141,null,null,null,null,null,null,null,null,null,null,null,null,null,null,null,null,null,null,0,0,0,0,0,0,0,0,0]
[142,null,null,null,null,null,null,null,null,null,null,null,null,null,null,null,null,null,null,0,0,0,0,0,0,0,0,0]
[143,null,null,null,null,null,null,null,null,null,null,null,null,null,null,null,null,null,null,0,0,0,0,0,0,0,0,0]
[144,null,null,null,null,null,null,null,null,null,null,null,null,null,null,null,null,null,null,0,0,0,0,0,0,0,0,0]
[145,null,null,null,null,null,null,null,null,null,null,null,null,null,null,null,null,null,null,0,{"$f":"((((IF($G165=U$20,$G165*$C165,\"0\"))+(IF($H165=U$20,$H165*$C165,\"0\"))+(IF($I165=U$20,$I165*$D165,\"0\"))+(IF($J165=U$20,$J165*$D165,\"0\")))*$E165)/1000)/U$20","v":0},0,0,0,0,0,0,0]
[146,null,null,null,null,null,null,null,null,null,null,null,null,null,null,null,null,null,null,0,0,0,0,0,0,0,0,0]
[147,null,null,null,null,null,null,null,null,null,null,null,null,null,null,null,null,null,null,0,0,0,0,0,0,0,0,0]
[148,null,null,null,null,null,null,null,null,null,null,null,null,null,null,null,null,null,null,0,0,0,0,0,0,0,0,0]
[149,null,null,null,null,null,null,null,null,null,null,null,null,null,null,null,null,null,null,0,0,0,0,0,0,0,0,0]
[150,null,null,null,null,null,null,null,null,null,null,null,null,null,null,null,null,null,null,0,0,0,0,0,0,0,0,0]
[151,null,null,null,null,null,null,null,null,null,null,null,null,null,null,null,null,null,null,0,0,0,0,0,0,0,0,0]
[152,null,null,null,null,null,null,null,null,null,null,null,null,null,null,null,null,null,null,0,0,0,0,0,0,0,0,0]
[153,null,null,null,null,null,null,null,null,null,null,null,null,null,null,null,null,null,null,0,0,0,0,0,0,0,0,0]
[154,null,null,null,null,null,null,null,null,null,null,null,null,null,null,null,null,null,null,0,0,0,0,0,0,0,0,0]
[155,null,null,null,null,null,null,null,null,null,null,null,null,null,null,null,null,null,null,0,0,0,0,0,0,0,0,0]
[156,null,null,null,null,null,null,null,null,null,null,null,null,null,null,null,null,null,null,0,0,0,0,0,0,0,0,0]
[157,null,null,null,null,null,null,null,null,null,null,null,null,null,null,null,null,null,null,0,0,0,0,0,0,0,0,0]
[158,null,null,null,null,null,null,null,null,null,null,null,null,null,null,null,null,null,null,0,0,0,0,0,0,0,0,0]
[159,null,null,null,null,null,null,null,null,null,null,null,null,null,null,null,null,null,null,0,0,0,0,0,0,0,0,0]
[160,null,null,null,null,null,null,null,null,null,null,null,null,null,null,null,null,null,null,0,0,0,0,0,0,0,0,0]
[161,null,null,null,null,null,null,null,null,null,null,null,null,null,null,null,null,null,null,0,{"$f":"((((IF($G181=U$20,$G181*$C181,\"0\"))+(IF($H181=U$20,$H181*$C181,\"0\"))+(IF($I181=U$20,$I181*$D181,\"0\"))+(IF($J181=U$20,$J181*$D181,\"0\")))*$E181)/1000)/U$20","v":0},0,0,0,0,0,0,0]
[162,null,null,null,null,null,null,null,null,null,null,null,null,null,null,null,null,null,null,0,0,0,0,0,0,0,0,0]
[163,null,null,null,null,null,null,null,null,null,null,null,null,null,null,null,null,null,null,0,0,0,0,0,0,0,0,0]
[164,null,null,null,null,null,null,null,null,null,null,null,null,null,null,null,null,null,null,0,0,0,0,0,0,0,0,0]
[165,null,null,null,null,null,null,null,null,null,null,null,null,null,null,null,null,null,null,0,0,0,0,0,0,0,0,0]
[166,null,null,null,null,null,null,null,null,null,null,null,null,null,null,null,null,null,null,0,0,0,0,0,0,0,0,0]
[167,null,null,null,null,null,null,null,null,null,null,null,null,null,null,null,null,null,null,0,0,0,0,0,0,0,0,0]
[168,null,null,null,null,null,null,null,null,null,null,null,null,null,null,null,null,null,null,0,0,0,0,0,0,0,0,0]
[169,null,null,null,null,null,null,null,null,null,null,null,null,null,null,null,null,null,null,0,0,0,0,0,0,0,0,0]
[170,null,null,null,null,null,null,null,null,null,null,null,null,null,null,null,null,null,null,0,0,0,0,0,0,0,0,0]
[171,null,null,null,null,null,null,null,null,null,null,null,null,null,null,null,null,null,null,0,0,0,0,0,0,0,0,0]
[172,null,null,null,null,null,null,null,null,null,null,null,null,null,null,null,null,null,null,0,0,0,0,0,0,0,0,0]
[173,null,null,null,null,null,null,null,null,null,null,null,null,null,null,null,null,null,null,0,0,0,0,0,0,0,0,0]
[174,null,null,null,null,null,null,null,null,null,null,null,null,null,null,null,null,null,null,0,0,0,0,0,0,0,0,0]
[175,null,null,null,null,null,null,null,null,null,null,null,null,null,null,null,null,null,null,0,0,0,0,0,0,0,0,0]
[176,null,null,null,null,null,null,null,null,null,null,null,null,null,null,null,null,null,null,0,0,0,0,0,0,0,0,0]
[177,null,null,null,null,null,null,null,null,null,null,null,null,null,null,null,null,null,null,0,{"$f":"((((IF($G197=U$20,$G197*$C197,\"0\"))+(IF($H197=U$20,$H197*$C197,\"0\"))+(IF($I197=U$20,$I197*$D197,\"0\"))+(IF($J197=U$20,$J197*$D197,\"0\")))*$E197)/1000)/U$20","v":0},0,0,0,0,0,0,0]
[178,null,null,null,null,null,null,null,null,null,null,null,null,null,null,null,null,null,null,0,0,0,0,0,0,0,0,0]
[179,null,null,null,null,null,null,null,null,null,null,null,null,null,null,null,null,null,null,0,0,0,0,0,0,0,0,0]
[180,null,null,null,null,null,null,null,null,null,null,null,null,null,null,null,null,null,null,0,0,0,0,0,0,0,0,0]
[181,null,null,null,null,null,null,null,null,null,null,null,null,null,null,null,null,null,null,0,0,0,0,0,0,0,0,0]
[182,null,null,null,null,null,null,null,null,null,null,null,null,null,null,null,null,null,null,0,0,0,0,0,0,0,0,0]
[183,null,null,null,null,null,null,null,null,null,null,null,null,null,null,null,null,null,null,0,0,0,0,0,0,0,0,0]
[184,null,null,null,null,null,null,null,null,null,null,null,null,null,null,null,null,null,null,0,0,0,0,0,0,0,0,0]
[185,null,null,null,null,null,null,null,null,null,null,null,null,null,null,null,null,null,null,0,0,0,0,0,0,0,0,0]
[186,null,null,null,null,null,null,null,null,null,null,null,null,null,null,null,null,null,null,0,0,0,0,0,0,0,0,0]
[187,null,null,null,null,null,null,null,null,null,null,null,null,null,null,null,null,null,null,0,0,0,0,0,0,0,0,0]
[188,null,null,null,null,null,null,null,null,null,null,null,null,null,null,null,null,null,null,0,0,0,0,0,0,0,0,0]
[189,null,null,null,null,null,null,null,null,null,null,null,null,null,null,null,null,null,null,0,0,0,0,0,0,0,0,0]
[190,null,null,null,null,null,null,null,null,null,null,null,null,null,null,null,null,null,null,0,0,0,0,0,0,0,0,0]
[191,null,null,null,null,null,null,null,null,null,null,null,null,null,null,null,null,null,null,0,0,0,0,0,0,0,0,0]
[192,null,null,null,null,null,null,null,null,null,null,null,null,null,null,null,null,null,null,0,0,0,0,0,0,0,0,0]
[193,null,null,null,null,null,null,null,null,null,null,null,null,null,null,null,null,null,null,{"$f":"(C213*D213*E213)/1000000","v":0},{"$f":"((((IF($G213=U$20,$G213*$C213,\"0\"))+(IF($H213=U$20,$H213*$C213,\"0\"))+(IF($I213=U$20,$I213*$D213,\"0\"))+(IF($J213=U$20,$J213*$D213,\"0\")))*$E213)/1000)/U$20","v":0},0,0,0,0,0,0,0]
[194,null,null,null,null,null,null,null,null,null,null,null,null,null,null,null,null,null,null,0,0,0,0,0,0,0,{"$f":"IF(N214=\"\",0,(C214*D214*E214)/1000000)","v":0},{"$f":"IF(O214=\"\",0,(C214*D214*E214)/1000000)","v":0}]
[195,null,null,null,null,null,null,null,null,null,null,null,null,null,null,null,null,null,null,0,0,0,0,0,0,0,0,0]
[196,null,null,null,null,null,null,null,null,null,null,null,null,null,null,null,null,null,null,0,0,0,0,0,0,0,0,0]
[197,null,null,null,null,null,null,null,null,null,null,null,null,null,null,null,null,null,null,0,0,0,0,0,0,0,0,0]
[198,null,null,null,null,null,null,null,null,null,null,null,null,null,null,null,null,null,null,0,0,0,0,0,0,0,0,0]
[199,null,null,null,null,null,null,null,null,null,null,null,null,null,null,null,null,null,null,0,0,0,0,0,0,0,0,0]
[200,null,null,null,null,null,null,null,null,null,null,null,null,null,null,null,null,null,null,0,0,0,0,0,0,0,0,0]
[201,null,null,null,null,null,null,null,null,null,null,null,null,null,null,null,null,null,null,0,0,0,0,0,0,0,0,0]
[202,null,null,null,null,null,null,null,null,null,null,null,null,null,null,null,null,null,null,0,0,0,0,0,0,0,0,0]
[203,null,null,null,null,null,null,null,null,null,null,null,null,null,null,null,null,null,null,0,0,0,0,0,0,0,0,0]
[204,null,null,null,null,null,null,null,null,null,null,null,null,null,null,null,null,null,null,0,0,0,0,0,0,0,0,0]
[205,null,null,null,null,null,null,null,null,null,null,null,null,null,null,null,null,null,null,0,0,0,0,0,0,0,0,0]
[206,null,null,null,null,null,null,null,null,null,null,null,null,null,null,null,null,null,null,0,0,0,0,0,0,0,0,0]
[207,null,null,null,null,null,null,null,null,null,null,null,null,null,null,null,null,null,null,0,0,0,0,0,0,0,0,0]
[208,null,null,null,null,null,null,null,null,null,null,null,null,null,null,null,null,null,null,0,0,0,0,0,0,0,0,0]
[209,null,null,null,null,null,null,null,null,null,null,null,null,null,null,null,null,null,null,0,{"$f":"((((IF($G229=U$20,$G229*$C229,\"0\"))+(IF($H229=U$20,$H229*$C229,\"0\"))+(IF($I229=U$20,$I229*$D229,\"0\"))+(IF($J229=U$20,$J229*$D229,\"0\")))*$E229)/1000)/U$20","v":0},0,0,0,0,0,0,0]
[210,null,null,null,null,null,null,null,null,null,null,null,null,null,null,null,null,null,null,0,0,0,0,0,0,0,0,0]
[211,null,null,null,null,null,null,null,null,null,null,null,null,null,null,null,null,null,null,0,0,0,0,0,0,0,0,0]
[212,null,null,null,null,null,null,null,null,null,null,null,null,null,null,null,null,null,null,0,0,0,0,0,0,0,0,0]
[213,null,null,null,null,null,null,null,null,null,null,null,null,null,null,null,null,null,null,0,0,0,0,0,0,0,0,0]
[214,null,null,null,null,null,null,null,null,null,null,null,null,null,null,null,null,null,null,0,0,0,0,0,0,0,0,0]
[215,null,null,null,null,null,null,null,null,null,null,null,null,null,null,null,null,null,null,0,0,0,0,0,0,0,0,0]
[216,null,null,null,null,null,null,null,null,null,null,null,null,null,null,null,null,null,null,0,0,0,0,0,0,0,0,0]
[217,null,null,null,null,null,null,null,null,null,null,null,null,null,null,null,null,null,null,0,0,0,0,0,0,0,0,0]
[218,null,null,null,null,null,null,null,null,null,null,null,null,null,null,null,null,null,null,0,0,0,0,0,0,0,0,0]
[219,null,null,null,null,null,null,null,null,null,null,null,null,null,null,null,null,null,null,0,0,0,0,0,0,0,0,0]
[220,null,null,null,null,null,null,null,null,null,null,null,null,null,null,null,null,null,null,0,0,0,0,0,0,0,0,0]
[221,null,null,null,null,null,null,null,null,null,null,null,null,null,null,null,null,null,null,0,0,0,0,0,0,0,0,0]
[222,null,null,null,null,null,null,null,null,null,null,null,null,null,null,null,null,null,null,0,0,0,0,0,0,0,0,0]
[223,null,null,null,null,null,null,null,null,null,null,null,null,null,null,null,null,null,null,0,0,0,0,0,0,0,0,0]
[224,null,null,null,null,null,null,null,null,null,null,null,null,null,null,null,null,null,null,0,0,0,0,0,0,0,0,0]
[225,null,null,null,null,null,null,null,null,null,null,null,null,null,null,null,null,null,null,0,{"$f":"((((IF($G245=U$20,$G245*$C245,\"0\"))+(IF($H245=U$20,$H245*$C245,\"0\"))+(IF($I245=U$20,$I245*$D245,\"0\"))+(IF($J245=U$20,$J245*$D245,\"0\")))*$E245)/1000)/U$20","v":0},0,0,0,0,0,0,0]
[226,null,null,null,null,null,null,null,null,null,null,null,null,null,null,null,null,null,null,0,0,0,0,0,0,0,0,0]
[227,null,null,null,null,null,null,null,null,null,null,null,null,null,null,null,null,null,null,0,0,0,0,0,0,0,0,0]
[228,null,null,null,null,null,null,null,null,null,null,null,null,null,null,null,null,null,null,0,0,0,0,0,0,0,0,0]
[229,null,null,null,null,null,null,null,null,null,null,null,null,null,null,null,null,null,null,0,0,0,0,0,0,0,0,0]
[230,null,null,null,null,null,null,null,null,null,null,null,null,null,null,null,null,null,null,0,0,0,0,0,0,0,0,0]
[231,null,null,null,null,null,null,null,null,null,null,null,null,null,null,null,null,null,null,0,0,0,0,0,0,0,0,0]
[]
[]
[]
[]
[]
[]
[]
[]
[]
[]
[]
[]
[]
[]
[]
[]
[]
[]
[]
[]
[]
[]
[]
[]
[]
[]
[]
[]
[]
[]
[]
[]
[]
[]
[]
[]
[]
[]
[]
[]
[]
[]
[]
[]
[]
[]
[]
[]
[]
[]
[]
[]
[]
[]
[]
[]
[]
[]
[]
[]
[]
[]
[]
[]
[]
[]
[]
[]
[]
[]
[]
[]
[]
[]
[]
[]
[]
[]
[]
[]
[]
[]
[]
[]
[]
[]
[]
[]
[]
[]
[]
[]
[]
[]
[]
[]
[]
[]
[]
[]
[]
[]
[]
[]
[]
[]
[]
[]
[]
[]
[]
[]
[]
[]
[]
[]
[]
[]
[]
[]
[]
[]
[]
[]
[]
[]
[]
[]
[]
[]
[]
[]
[]
[]
[]
[]
[]
[]
[]
[]
[]
[]
[]
[]
[]
[]
[]
[]
[]
[]
[]
[]
[]
[]
[]
[]
[]
[]
[]
[]
[]
[]
[]
[]
[null,null,null,null,null,null,null,null,null,null,null,null,null,null,null,null,null,null,null,null,"ABS 0,5","ABS 2","ABS 0,5","ABS 2","ABS 1","ABS 42/1","zesilování","sdružené formáty"]
[null,null,null,null,null,null,null,null,null,null,null,null,null,null,null,null,null,null,null,"m2",1,2,3,4,5,6,"m2","m2"]
[]
[null,null,null,null,null,null,null,null,null,null,null,null,null,null,null,null,null,null,null,{"$f":"SUM(T21:T251)","v":0},0,0,0,0,0,0,0,0]
[]
[null,null,null,null,null,null,null,null,null,null,null,null,null,null,null,null,null,null,"výpočet",null,null,null,"plocha","m2",{"$f":"T$419","v":0}]
[null,null,null,null,null,null,null,null,null,null,null,null,null,null,null,null,null,null,null,null,null,null,"ABS 22/0,5","m",{"$f":"U$419","v":0}]
[null,null,null,null,null,null,null,null,null,null,null,null,null,null,null,null,null,null,null,null,null,null,"ABS 22/2","m",{"$f":"V$419","v":0}]
[null,null,null,null,null,null,null,null,null,null,null,null,null,null,null,null,null,null,null,null,null,null,"ABS 42/0,5","m",{"$f":"W$419","v":0}]
[null,null,null,null,null,null,null,null,null,null,null,null,null,null,null,null,null,null,null,null,null,null,"ABS 42/2","m",{"$f":"X$419","v":0}]
[null,null,null,null,null,null,null,null,null,null,null,null,null,null,null,null,null,null,null,null,null,null,"ABS 22/1","m",{"$f":"Y$419","v":0}]
[null,null,null,null,null,null,null,null,null,null,null,null,null,null,null,null,null,null,null,null,null,null,"ABS 42/1","m",{"$f":"Z$419","v":0}]
[]
[]
[null,null,null,null,null,null,null,null,null,null,null,null,null,null,null,null,null,null,null,null,null,null,"počet","KS",{"$f":"SUM(E21:E251)","v":0}]
[null,null,null,null,null,null,null,null,null,null,null,null,null,null,null,null,null,null,null,null,null,null,"plocha zesílení","m2",{"$f":"AA$419","v":0}]
[null,null,null,null,null,null,null,null,null,null,null,null,null,null,null,null,null,null,null,null,null,null,"plocha celkem","m2",{"$f":"T419+Y431","v":0}]
[null,null,null,null,null,null,null,null,null,null,null,null,null,null,null,null,null,null,null,null,null,null,"plocha SF","m2",{"$f":"AB$419","v":0}]

{"sheet":"Materiál_7","index":6,"n_rows":433,"n_cols":28,"rows_kept":433,"cut":false,"hidden":false,"merged":[[431,24,431,25],[432,24,432,25],[425,24,425,25],[426,24,426,25],[427,24,427,25],[428,24,428,25],[429,24,429,25],[430,24,430,25],[16,2,16,9],[16,13,16,14],[18,0,19,0],[19,6,19,9],[420,18,432,21],[420,24,420,25],[421,24,421,25],[422,24,422,25],[423,24,423,25],[424,24,424,25],[12,2,12,3],[12,4,12,9],[12,13,12,15],[13,2,13,3],[13,4,13,9],[13,13,13,15],[10,6,10,14],[1,0,1,15],[3,0,3,15],[7,6,7,14],[8,6,8,14],[9,6,9,14]]}
[]
["!!! UVÁDĚJTE ROZMĚRY VČ. HRAN, PŘIČEMŽ DODRŽTE ZNAČENÍ UVEDENÉ VEDLE TABULKY !!!"]
[]
["!!! STANDARTNĚ OLEPUJEME TRANSPARENTNÍM POLYURETANOVÝM LEPIDLEM !!!"]
[]
[]
[null,null,null,null,null,null,null,null,null,null,null,null,null,null,null,null,null,1,"znamená ABS 0,5"]
[null,"Dodavatel:",null,null,null,null,"Označení zakázky:",null,null,null,null,null,null,null,null,{"$f":"IF(Materiál_1!P8=\"\",\"\",Materiál_1!P8)","v":""},null,2,"znamená ABS 2"]
[null,{"$f":"Materiál_1!B9","v":"NODO ART, s.r.o."},null,null,null,null,"Odběratel:",null,null,null,null,null,null,null,null,{"$f":"IF(Materiál_1!P9=\"\",\"\",Materiál_1!P9)","v":""},{"$f":"IF(Materiál_1!Q9=\"\",\"\",Materiál_1!Q9)","v":""},{"$f":"IF(Materiál_1!R9=\"\",\"\",Materiál_1!R9)","v":3},{"$f":"IF(Materiál_1!S9=\"\",\"\",Materiál_1!S9)","v":"znamená ABS 42/0,5"},{"$f":"IF(Materiál_1!T9=\"\",\"\",Materiál_1!T9)","v":""},{"$f":"IF(Materiál_1!U9=\"\",\"\",Materiál_1!U9)","v":""}]
[null,{"$f":"Materiál_1!B10","v":"tel. +420 773 236 200"},null,null,null,null,"tel:",null,null,null,null,null,null,null,null,{"$f":"IF(Materiál_1!P10=\"\",\"\",Materiál_1!P10)","v":""},null,4,"znamená ABS 42/2"]
[null,{"$f":"Materiál_1!B11","v":"e-mail: dubovecky@nodo.cz"},null,null,null,null,"e - mail :",null,null,null,null,null,null,null,null,{"$f":"IF(Materiál_1!P11=\"\",\"\",Materiál_1!P11)","v":""},null,5,"znamená ABS 22/1"]
[null,null,null,null,null,null,null,null,null,null,null,null,null,null,null,null,null,6,"znamená ABS 42/1"]
[null,"OBYČEJNÉ LEPIDLO \"EVA\"","DOPRAVA          \"ZÁVOZ\"",null,"NEBALIT NA PALETU",null,null,null,null,null,null,null,null,"UVOLŇOVACÍ ŘEZ"]
[null,{"$f":"IF(Materiál_1!B14=\"\",\"\",Materiál_1!B14)","v":""},{"$f":"IF(Materiál_1!C14=\"\",\"\",Materiál_1!C14)","v":""},{"$f":"IF(Materiál_1!D14=\"\",\"\",Materiál_1!D14)","v":""},{"$f":"IF(Materiál_1!E14=\"\",\"\",Materiál_1!E14)","v":""},{"$f":"IF(Materiál_1!F14=\"\",\"\",Materiál_1!F14)","v":""},{"$f":"IF(Materiál_1!G14=\"\",\"\",Materiál_1!G14)","v":""},{"$f":"IF(Materiál_1!H14=\"\",\"\",Materiál_1!H14)","v":""},{"$f":"IF(Materiál_1!I14=\"\",\"\",Materiál_1!I14)","v":""},{"$f":"IF(Materiál_1!J14=\"\",\"\",Materiál_1!J14)","v":""}]
[]
[]
[null,"Druh materiálu:",null,null,null,null,null,null,null,null,null,null,null,null,null,"BÍLÉ LEPIDLO"]
[]
["P.č.",null,"X1, X2","Y1, Y2",null,null,"X1","X2","Y1","Y2",null,null,null,null,null,null,null,null,null,null,"ABS 0,5","ABS 2","ABS 0,5","ABS 2","ABS 1","ABS 42/1","zesilování","sdružené formáty"]
[null,"Název","délka                             (po vláknech) (mm)","šířka                                        (napříč vláknům) (mm)","počet (ks)","orientace lét","olepování",null,null,null,null,null,null,"zesilování","sdružené formáty","Poznámka",null,null,null,"m2",1,2,3,4,5,6,"m2","m2"]
[1,null,null,null,null,null,null,null,null,null,null,null,null,null,null,null,null,null,null,{"$f":"(C21*D21*E21)/1000000","v":0},{"$f":"((((IF($G21=U$20,$G21*$C21,\"0\"))+(IF($H21=U$20,$H21*$C21,\"0\"))+(IF($I21=U$20,$I21*$D21,\"0\"))+(IF($J21=U$20,$J21*$D21,\"0\")))*$E21)/1000)/U$20","v":0},0,0,0,0,0,{"$f":"IF(N21=\"\",0,(C21*D21*E21)/1000000)","v":0},{"$f":"IF(O21=\"\",0,(C21*D21*E21)/1000000)","v":0}]
[2,null,null,null,null,null,null,null,null,null,null,null,null,null,null,null,null,null,null,0,0,0,0,0,0,0,{"$f":"IF(N22=\"\",0,(C22*D22*E22)/1000000)","v":0},{"$f":"IF(O22=\"\",0,(C22*D22*E22)/1000000)","v":0}]
[3,null,null,null,null,null,null,null,null,null,null,null,null,null,null,null,null,null,null,0,0,0,0,0,0,0,0,0]
[4,null,null,null,null,null,null,null,null,null,null,null,null,null,null,null,null,null,null,0,0,0,0,0,0,0,0,0]
[5,null,null,null,null,null,null,null,null,null,null,null,null,null,null,null,null,null,null,0,0,0,0,0,0,0,0,0]
[6,null,null,null,null,null,null,null,null,null,null,null,null,null,null,null,null,null,null,0,0,0,0,0,0,0,0,0]
[7,null,null,null,null,null,null,null,null,null,null,null,null,null,null,null,null,null,null,0,0,0,0,0,0,0,0,0]
[8,null,null,null,null,null,null,null,null,null,null,null,null,null,null,null,null,null,null,0,0,0,0,0,0,0,0,0]
[9,null,null,null,null,null,null,null,null,null,null,null,null,null,null,null,null,null,null,0,0,0,0,0,0,0,0,0]
[10,null,null,null,null,null,null,null,null,null,null,null,null,null,null,null,null,null,null,0,0,0,0,0,0,0,0,0]
[11,null,null,null,null,null,null,null,null,null,null,null,null,null,null,null,null,null,null,0,0,0,0,0,0,0,0,0]
[12,null,null,null,null,null,null,null,null,null,null,null,null,null,null,null,null,null,null,0,0,0,0,0,0,0,0,0]
[13,null,null,null,null,null,null,null,null,null,null,null,null,null,null,null,null,null,null,0,0,0,0,0,0,0,0,0]
[14,null,null,null,null,null,null,null,null,null,null,null,null,null,null,null,null,null,null,0,0,0,0,0,0,0,0,0]
[15,null,null,null,null,null,null,null,null,null,null,null,null,null,null,null,null,null,null,0,0,0,0,0,0,0,0,0]
[16,null,null,null,null,null,null,null,null,null,null,null,null,null,null,null,null,null,null,0,0,0,0,0,0,0,0,0]
[17,null,null,null,null,null,null,null,null,null,null,null,null,null,null,null,null,null,null,0,{"$f":"((((IF($G37=U$20,$G37*$C37,\"0\"))+(IF($H37=U$20,$H37*$C37,\"0\"))+(IF($I37=U$20,$I37*$D37,\"0\"))+(IF($J37=U$20,$J37*$D37,\"0\")))*$E37)/1000)/U$20","v":0},0,0,0,0,0,0,0]
[18,null,null,null,null,null,null,null,null,null,null,null,null,null,null,null,null,null,null,0,0,0,0,0,0,0,0,0]
[19,null,null,null,null,null,null,null,null,null,null,null,null,null,null,null,null,null,null,0,0,0,0,0,0,0,0,0]
[20,null,null,null,null,null,null,null,null,null,null,null,null,null,null,null,null,null,null,0,0,0,0,0,0,0,0,0]
[21,null,null,null,null,null,null,null,null,null,null,null,null,null,null,null,null,null,null,0,0,0,0,0,0,0,0,0]
[22,null,null,null,null,null,null,null,null,null,null,null,null,null,null,null,null,null,null,0,0,0,0,0,0,0,0,0]
[23,null,null,null,null,null,null,null,null,null,null,null,null,null,null,null,null,null,null,0,0,0,0,0,0,0,0,0]
[24,null,null,null,null,null,null,null,null,null,null,null,null,null,null,null,null,null,null,0,0,0,0,0,0,0,0,0]
[25,null,null,null,null,null,null,null,null,null,null,null,null,null,null,null,null,null,null,0,0,0,0,0,0,0,0,0]
[26,null,null,null,null,null,null,null,null,null,null,null,null,null,null,null,null,null,null,0,0,0,0,0,0,0,0,0]
[27,null,null,null,null,null,null,null,null,null,null,null,null,null,null,null,null,null,null,0,0,0,0,0,0,0,0,0]
[28,null,null,null,null,null,null,null,null,null,null,null,null,null,null,null,null,null,null,0,0,0,0,0,0,0,0,0]
[29,null,null,null,null,null,null,null,null,null,null,null,null,null,null,null,null,null,null,0,0,0,0,0,0,0,0,0]
[30,null,null,null,null,null,null,null,null,null,null,null,null,null,null,null,null,null,null,0,0,0,0,0,0,0,0,0]
[31,null,null,null,null,null,null,null,null,null,null,null,null,null,null,null,null,null,null,0,0,0,0,0,0,0,0,0]
[32,null,null,null,null,null,null,null,null,null,null,null,null,null,null,null,null,null,null,0,0,0,0,0,0,0,0,0]
[33,null,null,null,null,null,null,null,null,null,null,null,null,null,null,null,null,null,null,0,{"$f":"((((IF($G53=U$20,$G53*$C53,\"0\"))+(IF($H53=U$20,$H53*$C53,\"0\"))+(IF($I53=U$20,$I53*$D53,\"0\"))+(IF($J53=U$20,$J53*$D53,\"0\")))*$E53)/1000)/U$20","v":0},0,0,0,0,0,0,0]
[34,null,null,null,null,null,null,null,null,null,null,null,null,null,null,null,null,null,null,0,0,0,0,0,0,0,0,0]
[35,null,null,null,null,null,null,null,null,null,null,null,null,null,null,null,null,null,null,0,0,0,0,0,0,0,0,0]
[36,null,null,null,null,null,null,null,null,null,null,null,null,null,null,null,null,null,null,0,0,0,0,0,0,0,0,0]
[37,null,null,null,null,null,null,null,null,null,null,null,null,null,null,null,null,null,null,0,0,0,0,0,0,0,0,0]
[38,null,null,null,null,null,null,null,null,null,null,null,null,null,null,null,null,null,null,0,0,0,0,0,0,0,0,0]
[39,null,null,null,null,null,null,null,null,null,null,null,null,null,null,null,null,null,null,0,0,0,0,0,0,0,0,0]
[40,null,null,null,null,null,null,null,null,null,null,null,null,null,null,null,null,null,null,0,0,0,0,0,0,0,0,0]
[41,null,null,null,null,null,null,null,null,null,null,null,null,null,null,null,null,null,null,0,0,0,0,0,0,0,0,0]
[42,null,null,null,null,null,null,null,null,null,null,null,null,null,null,null,null,null,null,0,0,0,0,0,0,0,0,0]
[43,null,null,null,null,null,null,null,null,null,null,null,null,null,null,null,null,null,null,0,0,0,0,0,0,0,0,0]
[44,null,null,null,null,null,null,null,null,null,null,null,null,null,null,null,null,null,null,0,0,0,0,0,0,0,0,0]
[45,null,null,null,null,null,null,null,null,null,null,null,null,null,null,null,null,null,null,0,0,0,0,0,0,0,0,0]
[46,null,null,null,null,null,null,null,null,null,null,null,null,null,null,null,null,null,null,0,0,0,0,0,0,0,0,0]
[47,null,null,null,null,null,null,null,null,null,null,null,null,null,null,null,null,null,null,0,0,0,0,0,0,0,0,0]
[48,null,null,null,null,null,null,null,null,null,null,null,null,null,null,null,null,null,null,0,0,0,0,0,0,0,0,0]
[49,null,null,null,null,null,null,null,null,null,null,null,null,null,null,null,null,null,null,0,{"$f":"((((IF($G69=U$20,$G69*$C69,\"0\"))+(IF($H69=U$20,$H69*$C69,\"0\"))+(IF($I69=U$20,$I69*$D69,\"0\"))+(IF($J69=U$20,$J69*$D69,\"0\")))*$E69)/1000)/U$20","v":0},0,0,0,0,0,0,0]
[50,null,null,null,null,null,null,null,null,null,null,null,null,null,null,null,null,null,null,0,0,0,0,0,0,0,0,0]
[51,null,null,null,null,null,null,null,null,null,null,null,null,null,null,null,null,null,null,0,0,0,0,0,0,0,0,0]
[52,null,null,null,null,null,null,null,null,null,null,null,null,null,null,null,null,null,null,0,0,0,0,0,0,0,0,0]
[53,null,null,null,null,null,null,null,null,null,null,null,null,null,null,null,null,null,null,0,0,0,0,0,0,0,0,0]
[54,null,null,null,null,null,null,null,null,null,null,null,null,null,null,null,null,null,null,0,0,0,0,0,0,0,0,0]
[55,null,null,null,null,null,null,null,null,null,null,null,null,null,null,null,null,null,null,0,0,0,0,0,0,0,0,0]
[56,null,null,null,null,null,null,null,null,null,null,null,null,null,null,null,null,null,null,0,0,0,0,0,0,0,0,0]
[57,null,null,null,null,null,null,null,null,null,null,null,null,null,null,null,null,null,null,0,0,0,0,0,0,0,0,0]
[58,null,null,null,null,null,null,null,null,null,null,null,null,null,null,null,null,null,null,0,0,0,0,0,0,0,0,0]
[59,null,null,null,null,null,null,null,null,null,null,null,null,null,null,null,null,null,null,0,0,0,0,0,0,0,0,0]
[60,null,null,null,null,null,null,null,null,null,null,null,null,null,null,null,null,null,null,0,0,0,0,0,0,0,0,0]
[61,null,null,null,null,null,null,null,null,null,null,null,null,null,null,null,null,null,null,0,0,0,0,0,0,0,0,0]
[62,null,null,null,null,null,null,null,null,null,null,null,null,null,null,null,null,null,null,0,0,0,0,0,0,0,0,0]
[63,null,null,null,null,null,null,null,null,null,null,null,null,null,null,null,null,null,null,0,0,0,0,0,0,0,0,0]
[64,null,null,null,null,null,null,null,null,null,null,null,null,null,null,null,null,null,null,0,0,0,0,0,0,0,0,0]
[65,null,null,null,null,null,null,null,null,null,null,null,null,null,null,null,null,null,null,{"$f":"(C85*D85*E85)/1000000","v":0},{"$f":"((((IF($G85=U$20,$G85*$C85,\"0\"))+(IF($H85=U$20,$H85*$C85,\"0\"))+(IF($I85=U$20,$I85*$D85,\"0\"))+(IF($J85=U$20,$J85*$D85,\"0\")))*$E85)/1000)/U$20","v":0},0,0,0,0,0,0,0]
[66,null,null,null,null,null,null,null,null,null,null,null,null,null,null,null,null,null,null,0,0,0,0,0,0,0,{"$f":"IF(N86=\"\",0,(C86*D86*E86)/1000000)","v":0},{"$f":"IF(O86=\"\",0,(C86*D86*E86)/1000000)","v":0}]
[67,null,null,null,null,null,null,null,null,null,null,null,null,null,null,null,null,null,null,0,0,0,0,0,0,0,0,0]
[68,null,null,null,null,null,null,null,null,null,null,null,null,null,null,null,null,null,null,0,0,0,0,0,0,0,0,0]
[69,null,null,null,null,null,null,null,null,null,null,null,null,null,null,null,null,null,null,0,0,0,0,0,0,0,0,0]
[70,null,null,null,null,null,null,null,null,null,null,null,null,null,null,null,null,null,null,0,0,0,0,0,0,0,0,0]
[71,null,null,null,null,null,null,null,null,null,null,null,null,null,null,null,null,null,null,0,0,0,0,0,0,0,0,0]
[72,null,null,null,null,null,null,null,null,null,null,null,null,null,null,null,null,null,null,0,0,0,0,0,0,0,0,0]
[73,null,null,null,null,null,null,null,null,null,null,null,null,null,null,null,null,null,null,0,0,0,0,0,0,0,0,0]
[74,null,null,null,null,null,null,null,null,null,null,null,null,null,null,null,null,null,null,0,0,0,0,0,0,0,0,0]
[75,null,null,null,null,null,null,null,null,null,null,null,null,null,null,null,null,null,null,0,0,0,0,0,0,0,0,0]
[76,null,null,null,null,null,null,null,null,null,null,null,null,null,null,null,null,null,null,0,0,0,0,0,0,0,0,0]
[77,null,null,null,null,null,null,null,null,null,null,null,null,null,null,null,null,null,null,0,0,0,0,0,0,0,0,0]
[78,null,null,null,null,null,null,null,null,null,null,null,null,null,null,null,null,null,null,0,0,0,0,0,0,0,0,0]
[79,null,null,null,null,null,null,null,null,null,null,null,null,null,null,null,null,null,null,0,0,0,0,0,0,0,0,0]
[80,null,null,null,null,null,null,null,null,null,null,null,null,null,null,null,null,null,null,0,0,0,0,0,0,0,0,0]
[81,null,null,null,null,null,null,null,null,null,null,null,null,null,null,null,null,null,null,0,{"$f":"((((IF($G101=U$20,$G101*$C101,\"0\"))+(IF($H101=U$20,$H101*$C101,\"0\"))+(IF($I101=U$20,$I101*$D101,\"0\"))+(IF($J101=U$20,$J101*$D101,\"0\")))*$E101)/1000)/U$20","v":0},0,0,0,0,0,0,0]
[82,null,null,null,null,null,null,null,null,null,null,null,null,null,null,null,null,null,null,0,0,0,0,0,0,0,0,0]
[83,null,null,null,null,null,null,null,null,null,null,null,null,null,null,null,null,null,null,0,0,0,0,0,0,0,0,0]
[84,null,null,null,null,null,null,null,null,null,null,null,null,null,null,null,null,null,null,0,0,0,0,0,0,0,0,0]
[85,null,null,null,null,null,null,null,null,null,null,null,null,null,null,null,null,null,null,0,0,0,0,0,0,0,0,0]
[86,null,null,null,null,null,null,null,null,null,null,null,null,null,null,null,null,null,null,0,0,0,0,0,0,0,0,0]
[87,null,null,null,null,null,null,null,null,null,null,null,null,null,null,null,null,null,null,0,0,0,0,0,0,0,0,0]
[88,null,null,null,null,null,null,null,null,null,null,null,null,null,null,null,null,null,null,0,0,0,0,0,0,0,0,0]
[89,null,null,null,null,null,null,null,null,null,null,null,null,null,null,null,null,null,null,0,0,0,0,0,0,0,0,0]
[90,null,null,null,null,null,null,null,null,null,null,null,null,null,null,null,null,null,null,0,0,0,0,0,0,0,0,0]
[91,null,null,null,null,null,null,null,null,null,null,null,null,null,null,null,null,null,null,0,0,0,0,0,0,0,0,0]
[92,null,null,null,null,null,null,null,null,null,null,null,null,null,null,null,null,null,null,0,0,0,0,0,0,0,0,0]
[93,null,null,null,null,null,null,null,null,null,null,null,null,null,null,null,null,null,null,0,0,0,0,0,0,0,0,0]
[94,null,null,null,null,null,null,null,null,null,null,null,null,null,null,null,null,null,null,0,0,0,0,0,0,0,0,0]
[95,null,null,null,null,null,null,null,null,null,null,null,null,null,null,null,null,null,null,0,0,0,0,0,0,0,0,0]
[96,null,null,null,null,null,null,null,null,null,null,null,null,null,null,null,null,null,null,0,0,0,0,0,0,0,0,0]
[97,null,null,null,null,null,null,null,null,null,null,null,null,null,null,null,null,null,null,0,{"$f":"((((IF($G117=U$20,$G117*$C117,\"0\"))+(IF($H117=U$20,$H117*$C117,\"0\"))+(IF($I117=U$20,$I117*$D117,\"0\"))+(IF($J117=U$20,$J117*$D117,\"0\")))*$E117)/1000)/U$20","v":0},0,0,0,0,0,0,0]
[98,null,null,null,null,null,null,null,null,null,null,null,null,null,null,null,null,null,null,0,0,0,0,0,0,0,0,0]
[99,null,null,null,null,null,null,null,null,null,null,null,null,null,null,null,null,null,null,0,0,0,0,0,0,0,0,0]
[100,null,null,null,null,null,null,null,null,null,null,null,null,null,null,null,null,null,null,0,0,0,0,0,0,0,0,0]
[101,null,null,null,null,null,null,null,null,null,null,null,null,null,null,null,null,null,null,0,0,0,0,0,0,0,0,0]
[102,null,null,null,null,null,null,null,null,null,null,null,null,null,null,null,null,null,null,0,0,0,0,0,0,0,0,0]
[103,null,null,null,null,null,null,null,null,null,null,null,null,null,null,null,null,null,null,0,0,0,0,0,0,0,0,0]
[104,null,null,null,null,null,null,null,null,null,null,null,null,null,null,null,null,null,null,0,0,0,0,0,0,0,0,0]
[105,null,null,null,null,null,null,null,null,null,null,null,null,null,null,null,null,null,null,0,0,0,0,0,0,0,0,0]
[106,null,null,null,null,null,null,null,null,null,null,null,null,null,null,null,null,null,null,0,0,0,0,0,0,0,0,0]
[107,null,null,null,null,null,null,null,null,null,null,null,null,null,null,null,null,null,null,0,0,0,0,0,0,0,0,0]
[108,null,null,null,null,null,null,null,null,null,null,null,null,null,null,null,null,null,null,0,0,0,0,0,0,0,0,0]
[109,null,null,null,null,null,null,null,null,null,null,null,null,null,null,null,null,null,null,0,0,0,0,0,0,0,0,0]
[110,null,null,null,null,null,null,null,null,null,null,null,null,null,null,null,null,null,null,0,0,0,0,0,0,0,0,0]
[111,null,null,null,null,null,null,null,null,null,null,null,null,null,null,null,null,null,null,0,0,0,0,0,0,0,0,0]
[112,null,null,null,null,null,null,null,null,null,null,null,null,null,null,null,null,null,null,0,0,0,0,0,0,0,0,0]
[113,null,null,null,null,null,null,null,null,null,null,null,null,null,null,null,null,null,null,0,{"$f":"((((IF($G133=U$20,$G133*$C133,\"0\"))+(IF($H133=U$20,$H133*$C133,\"0\"))+(IF($I133=U$20,$I133*$D133,\"0\"))+(IF($J133=U$20,$J133*$D133,\"0\")))*$E133)/1000)/U$20","v":0},0,0,0,0,0,0,0]
[114,null,null,null,null,null,null,null,null,null,null,null,null,null,null,null,null,null,null,0,0,0,0,0,0,0,0,0]
[115,null,null,null,null,null,null,null,null,null,null,null,null,null,null,null,null,null,null,0,0,0,0,0,0,0,0,0]
[116,null,null,null,null,null,null,null,null,null,null,null,null,null,null,null,null,null,null,0,0,0,0,0,0,0,0,0]
[117,null,null,null,null,null,null,null,null,null,null,null,null,null,null,null,null,null,null,0,0,0,0,0,0,0,0,0]
[118,null,null,null,null,null,null,null,null,null,null,null,null,null,null,null,null,null,null,0,0,0,0,0,0,0,0,0]
[119,null,null,null,null,null,null,null,null,null,null,null,null,null,null,null,null,null,null,0,0,0,0,0,0,0,0,0]
[120,null,null,null,null,null,null,null,null,null,null,null,null,null,null,null,null,null,null,0,0,0,0,0,0,0,0,0]
[121,null,null,null,null,null,null,null,null,null,null,null,null,null,null,null,null,null,null,0,0,0,0,0,0,0,0,0]
[122,null,null,null,null,null,null,null,null,null,null,null,null,null,null,null,null,null,null,0,0,0,0,0,0,0,0,0]
[123,null,null,null,null,null,null,null,null,null,null,null,null,null,null,null,null,null,null,0,0,0,0,0,0,0,0,0]
[124,null,null,null,null,null,null,null,null,null,null,null,null,null,null,null,null,null,null,0,0,0,0,0,0,0,0,0]
[125,null,null,null,null,null,null,null,null,null,null,null,null,null,null,null,null,null,null,0,0,0,0,0,0,0,0,0]
[126,null,null,null,null,null,null,null,null,null,null,null,null,null,null,null,null,null,null,0,0,0,0,0,0,0,0,0]
[127,null,null,null,null,null,null,null,null,null,null,null,null,null,null,null,null,null,null,0,0,0,0,0,0,0,0,0]
[128,null,null,null,null,null,null,null,null,null,null,null,null,null,null,null,null,null,null,0,0,0,0,0,0,0,0,0]
[129,null,null,null,null,null,null,null,null,null,null,null,null,null,null,null,null,null,null,{"$f":"(C149*D149*E149)/1000000","v":0},{"$f":"((((IF($G149=U$20,$G149*$C149,\"0\"))+(IF($H149=U$20,$H149*$C149,\"0\"))+(IF($I149=U$20,$I149*$D149,\"0\"))+(IF($J149=U$20,$J149*$D149,\"0\")))*$E149)/1000)/U$20","v":0},0,0,0,0,0,0,0]
[130,null,null,null,null,null,null,null,null,null,null,null,null,null,null,null,null,null,null,0,0,0,0,0,0,0,{"$f":"IF(N150=\"\",0,(C150*D150*E150)/1000000)","v":0},{"$f":"IF(O150=\"\",0,(C150*D150*E150)/1000000)","v":0}]
[131,null,null,null,null,null,null,null,null,null,null,null,null,null,null,null,null,null,null,0,0,0,0,0,0,0,0,0]
[132,null,null,null,null,null,null,null,null,null,null,null,null,null,null,null,null,null,null,0,0,0,0,0,0,0,0,0]
[133,null,null,null,null,null,null,null,null,null,null,null,null,null,null,null,null,null,null,0,0,0,0,0,0,0,0,0]
[134,null,null,null,null,null,null,null,null,null,null,null,null,null,null,null,null,null,null,0,0,0,0,0,0,0,0,0]
[135,null,null,null,null,null,null,null,null,null,null,null,null,null,null,null,null,null,null,0,0,0,0,0,0,0,0,0]
[136,null,null,null,null,null,null,null,null,null,null,null,null,null,null,null,null,null,null,0,0,0,0,0,0,0,0,0]
[137,null,null,null,null,null,null,null,null,null,null,null,null,null,null,null,null,null,null,0,0,0,0,0,0,0,0,0]
[138,null,null,null,null,null,null,null,null,null,null,null,null,null,null,null,null,null,null,0,0,0,0,0,0,0,0,0]
[139,null,null,null,null,null,null,null,null,null,null,null,null,null,null,null,null,null,null,0,0,0,0,0,0,0,0,0]
[140,null,null,null,null,null,null,null,null,null,null,null,null,null,null,null,null,null,null,0,0,0,0,0,0,0,0,0]
[141,null,null,null,null,null,null,null,null,null,null,null,null,null,null,null,null,null,null,0,0,0,0,0,0,0,0,0]
[142,null,null,null,null,null,null,null,null,null,null,null,null,null,null,null,null,null,null,0,0,0,0,0,0,0,0,0]
[143,null,null,null,null,null,null,null,null,null,null,null,null,null,null,null,null,null,null,0,0,0,0,0,0,0,0,0]
[144,null,null,null,null,null,null,null,null,null,null,null,null,null,null,null,null,null,null,0,0,0,0,0,0,0,0,0]
[145,null,null,null,null,null,null,null,null,null,null,null,null,null,null,null,null,null,null,0,{"$f":"((((IF($G165=U$20,$G165*$C165,\"0\"))+(IF($H165=U$20,$H165*$C165,\"0\"))+(IF($I165=U$20,$I165*$D165,\"0\"))+(IF($J165=U$20,$J165*$D165,\"0\")))*$E165)/1000)/U$20","v":0},0,0,0,0,0,0,0]
[146,null,null,null,null,null,null,null,null,null,null,null,null,null,null,null,null,null,null,0,0,0,0,0,0,0,0,0]
[147,null,null,null,null,null,null,null,null,null,null,null,null,null,null,null,null,null,null,0,0,0,0,0,0,0,0,0]
[148,null,null,null,null,null,null,null,null,null,null,null,null,null,null,null,null,null,null,0,0,0,0,0,0,0,0,0]
[149,null,null,null,null,null,null,null,null,null,null,null,null,null,null,null,null,null,null,0,0,0,0,0,0,0,0,0]
[150,null,null,null,null,null,null,null,null,null,null,null,null,null,null,null,null,null,null,0,0,0,0,0,0,0,0,0]
[151,null,null,null,null,null,null,null,null,null,null,null,null,null,null,null,null,null,null,0,0,0,0,0,0,0,0,0]
[152,null,null,null,null,null,null,null,null,null,null,null,null,null,null,null,null,null,null,0,0,0,0,0,0,0,0,0]
[153,null,null,null,null,null,null,null,null,null,null,null,null,null,null,null,null,null,null,0,0,0,0,0,0,0,0,0]
[154,null,null,null,null,null,null,null,null,null,null,null,null,null,null,null,null,null,null,0,0,0,0,0,0,0,0,0]
[155,null,null,null,null,null,null,null,null,null,null,null,null,null,null,null,null,null,null,0,0,0,0,0,0,0,0,0]
[156,null,null,null,null,null,null,null,null,null,null,null,null,null,null,null,null,null,null,0,0,0,0,0,0,0,0,0]
[157,null,null,null,null,null,null,null,null,null,null,null,null,null,null,null,null,null,null,0,0,0,0,0,0,0,0,0]
[158,null,null,null,null,null,null,null,null,null,null,null,null,null,null,null,null,null,null,0,0,0,0,0,0,0,0,0]
[159,null,null,null,null,null,null,null,null,null,null,null,null,null,null,null,null,null,null,0,0,0,0,0,0,0,0,0]
[160,null,null,null,null,null,null,null,null,null,null,null,null,null,null,null,null,null,null,0,0,0,0,0,0,0,0,0]
[161,null,null,null,null,null,null,null,null,null,null,null,null,null,null,null,null,null,null,0,{"$f":"((((IF($G181=U$20,$G181*$C181,\"0\"))+(IF($H181=U$20,$H181*$C181,\"0\"))+(IF($I181=U$20,$I181*$D181,\"0\"))+(IF($J181=U$20,$J181*$D181,\"0\")))*$E181)/1000)/U$20","v":0},0,0,0,0,0,0,0]
[162,null,null,null,null,null,null,null,null,null,null,null,null,null,null,null,null,null,null,0,0,0,0,0,0,0,0,0]
[163,null,null,null,null,null,null,null,null,null,null,null,null,null,null,null,null,null,null,0,0,0,0,0,0,0,0,0]
[164,null,null,null,null,null,null,null,null,null,null,null,null,null,null,null,null,null,null,0,0,0,0,0,0,0,0,0]
[165,null,null,null,null,null,null,null,null,null,null,null,null,null,null,null,null,null,null,0,0,0,0,0,0,0,0,0]
[166,null,null,null,null,null,null,null,null,null,null,null,null,null,null,null,null,null,null,0,0,0,0,0,0,0,0,0]
[167,null,null,null,null,null,null,null,null,null,null,null,null,null,null,null,null,null,null,0,0,0,0,0,0,0,0,0]
[168,null,null,null,null,null,null,null,null,null,null,null,null,null,null,null,null,null,null,0,0,0,0,0,0,0,0,0]
[169,null,null,null,null,null,null,null,null,null,null,null,null,null,null,null,null,null,null,0,0,0,0,0,0,0,0,0]
[170,null,null,null,null,null,null,null,null,null,null,null,null,null,null,null,null,null,null,0,0,0,0,0,0,0,0,0]
[171,null,null,null,null,null,null,null,null,null,null,null,null,null,null,null,null,null,null,0,0,0,0,0,0,0,0,0]
[172,null,null,null,null,null,null,null,null,null,null,null,null,null,null,null,null,null,null,0,0,0,0,0,0,0,0,0]
[173,null,null,null,null,null,null,null,null,null,null,null,null,null,null,null,null,null,null,0,0,0,0,0,0,0,0,0]
[174,null,null,null,null,null,null,null,null,null,null,null,null,null,null,null,null,null,null,0,0,0,0,0,0,0,0,0]
[175,null,null,null,null,null,null,null,null,null,null,null,null,null,null,null,null,null,null,0,0,0,0,0,0,0,0,0]
[176,null,null,null,null,null,null,null,null,null,null,null,null,null,null,null,null,null,null,0,0,0,0,0,0,0,0,0]
[177,null,null,null,null,null,null,null,null,null,null,null,null,null,null,null,null,null,null,0,{"$f":"((((IF($G197=U$20,$G197*$C197,\"0\"))+(IF($H197=U$20,$H197*$C197,\"0\"))+(IF($I197=U$20,$I197*$D197,\"0\"))+(IF($J197=U$20,$J197*$D197,\"0\")))*$E197)/1000)/U$20","v":0},0,0,0,0,0,0,0]
[178,null,null,null,null,null,null,null,null,null,null,null,null,null,null,null,null,null,null,0,0,0,0,0,0,0,0,0]
[179,null,null,null,null,null,null,null,null,null,null,null,null,null,null,null,null,null,null,0,0,0,0,0,0,0,0,0]
[180,null,null,null,null,null,null,null,null,null,null,null,null,null,null,null,null,null,null,0,0,0,0,0,0,0,0,0]
[181,null,null,null,null,null,null,null,null,null,null,null,null,null,null,null,null,null,null,0,0,0,0,0,0,0,0,0]
[182,null,null,null,null,null,null,null,null,null,null,null,null,null,null,null,null,null,null,0,0,0,0,0,0,0,0,0]
[183,null,null,null,null,null,null,null,null,null,null,null,null,null,null,null,null,null,null,0,0,0,0,0,0,0,0,0]
[184,null,null,null,null,null,null,null,null,null,null,null,null,null,null,null,null,null,null,0,0,0,0,0,0,0,0,0]
[185,null,null,null,null,null,null,null,null,null,null,null,null,null,null,null,null,null,null,0,0,0,0,0,0,0,0,0]
[186,null,null,null,null,null,null,null,null,null,null,null,null,null,null,null,null,null,null,0,0,0,0,0,0,0,0,0]
[187,null,null,null,null,null,null,null,null,null,null,null,null,null,null,null,null,null,null,0,0,0,0,0,0,0,0,0]
[188,null,null,null,null,null,null,null,null,null,null,null,null,null,null,null,null,null,null,0,0,0,0,0,0,0,0,0]
[189,null,null,null,null,null,null,null,null,null,null,null,null,null,null,null,null,null,null,0,0,0,0,0,0,0,0,0]
[190,null,null,null,null,null,null,null,null,null,null,null,null,null,null,null,null,null,null,0,0,0,0,0,0,0,0,0]
[191,null,null,null,null,null,null,null,null,null,null,null,null,null,null,null,null,null,null,0,0,0,0,0,0,0,0,0]
[192,null,null,null,null,null,null,null,null,null,null,null,null,null,null,null,null,null,null,0,0,0,0,0,0,0,0,0]
[193,null,null,null,null,null,null,null,null,null,null,null,null,null,null,null,null,null,null,{"$f":"(C213*D213*E213)/1000000","v":0},{"$f":"((((IF($G213=U$20,$G213*$C213,\"0\"))+(IF($H213=U$20,$H213*$C213,\"0\"))+(IF($I213=U$20,$I213*$D213,\"0\"))+(IF($J213=U$20,$J213*$D213,\"0\")))*$E213)/1000)/U$20","v":0},0,0,0,0,0,0,0]
[194,null,null,null,null,null,null,null,null,null,null,null,null,null,null,null,null,null,null,0,0,0,0,0,0,0,{"$f":"IF(N214=\"\",0,(C214*D214*E214)/1000000)","v":0},{"$f":"IF(O214=\"\",0,(C214*D214*E214)/1000000)","v":0}]
[195,null,null,null,null,null,null,null,null,null,null,null,null,null,null,null,null,null,null,0,0,0,0,0,0,0,0,0]
[196,null,null,null,null,null,null,null,null,null,null,null,null,null,null,null,null,null,null,0,0,0,0,0,0,0,0,0]
[197,null,null,null,null,null,null,null,null,null,null,null,null,null,null,null,null,null,null,0,0,0,0,0,0,0,0,0]
[198,null,null,null,null,null,null,null,null,null,null,null,null,null,null,null,null,null,null,0,0,0,0,0,0,0,0,0]
[199,null,null,null,null,null,null,null,null,null,null,null,null,null,null,null,null,null,null,0,0,0,0,0,0,0,0,0]
[200,null,null,null,null,null,null,null,null,null,null,null,null,null,null,null,null,null,null,0,0,0,0,0,0,0,0,0]
[201,null,null,null,null,null,null,null,null,null,null,null,null,null,null,null,null,null,null,0,0,0,0,0,0,0,0,0]
[202,null,null,null,null,null,null,null,null,null,null,null,null,null,null,null,null,null,null,0,0,0,0,0,0,0,0,0]
[203,null,null,null,null,null,null,null,null,null,null,null,null,null,null,null,null,null,null,0,0,0,0,0,0,0,0,0]
[204,null,null,null,null,null,null,null,null,null,null,null,null,null,null,null,null,null,null,0,0,0,0,0,0,0,0,0]
[205,null,null,null,null,null,null,null,null,null,null,null,null,null,null,null,null,null,null,0,0,0,0,0,0,0,0,0]
[206,null,null,null,null,null,null,null,null,null,null,null,null,null,null,null,null,null,null,0,0,0,0,0,0,0,0,0]
[207,null,null,null,null,null,null,null,null,null,null,null,null,null,null,null,null,null,null,0,0,0,0,0,0,0,0,0]
[208,null,null,null,null,null,null,null,null,null,null,null,null,null,null,null,null,null,null,0,0,0,0,0,0,0,0,0]
[209,null,null,null,null,null,null,null,null,null,null,null,null,null,null,null,null,null,null,0,{"$f":"((((IF($G229=U$20,$G229*$C229,\"0\"))+(IF($H229=U$20,$H229*$C229,\"0\"))+(IF($I229=U$20,$I229*$D229,\"0\"))+(IF($J229=U$20,$J229*$D229,\"0\")))*$E229)/1000)/U$20","v":0},0,0,0,0,0,0,0]
[210,null,null,null,null,null,null,null,null,null,null,null,null,null,null,null,null,null,null,0,0,0,0,0,0,0,0,0]
[211,null,null,null,null,null,null,null,null,null,null,null,null,null,null,null,null,null,null,0,0,0,0,0,0,0,0,0]
[212,null,null,null,null,null,null,null,null,null,null,null,null,null,null,null,null,null,null,0,0,0,0,0,0,0,0,0]
[213,null,null,null,null,null,null,null,null,null,null,null,null,null,null,null,null,null,null,0,0,0,0,0,0,0,0,0]
[214,null,null,null,null,null,null,null,null,null,null,null,null,null,null,null,null,null,null,0,0,0,0,0,0,0,0,0]
[215,null,null,null,null,null,null,null,null,null,null,null,null,null,null,null,null,null,null,0,0,0,0,0,0,0,0,0]
[216,null,null,null,null,null,null,null,null,null,null,null,null,null,null,null,null,null,null,0,0,0,0,0,0,0,0,0]
[217,null,null,null,null,null,null,null,null,null,null,null,null,null,null,null,null,null,null,0,0,0,0,0,0,0,0,0]
[218,null,null,null,null,null,null,null,null,null,null,null,null,null,null,null,null,null,null,0,0,0,0,0,0,0,0,0]
[219,null,null,null,null,null,null,null,null,null,null,null,null,null,null,null,null,null,null,0,0,0,0,0,0,0,0,0]
[220,null,null,null,null,null,null,null,null,null,null,null,null,null,null,null,null,null,null,0,0,0,0,0,0,0,0,0]
[221,null,null,null,null,null,null,null,null,null,null,null,null,null,null,null,null,null,null,0,0,0,0,0,0,0,0,0]
[222,null,null,null,null,null,null,null,null,null,null,null,null,null,null,null,null,null,null,0,0,0,0,0,0,0,0,0]
[223,null,null,null,null,null,null,null,null,null,null,null,null,null,null,null,null,null,null,0,0,0,0,0,0,0,0,0]
[224,null,null,null,null,null,null,null,null,null,null,null,null,null,null,null,null,null,null,0,0,0,0,0,0,0,0,0]
[225,null,null,null,null,null,null,null,null,null,null,null,null,null,null,null,null,null,null,0,{"$f":"((((IF($G245=U$20,$G245*$C245,\"0\"))+(IF($H245=U$20,$H245*$C245,\"0\"))+(IF($I245=U$20,$I245*$D245,\"0\"))+(IF($J245=U$20,$J245*$D245,\"0\")))*$E245)/1000)/U$20","v":0},0,0,0,0,0,0,0]
[226,null,null,null,null,null,null,null,null,null,null,null,null,null,null,null,null,null,null,0,0,0,0,0,0,0,0,0]
[227,null,null,null,null,null,null,null,null,null,null,null,null,null,null,null,null,null,null,0,0,0,0,0,0,0,0,0]
[228,null,null,null,null,null,null,null,null,null,null,null,null,null,null,null,null,null,null,0,0,0,0,0,0,0,0,0]
[229,null,null,null,null,null,null,null,null,null,null,null,null,null,null,null,null,null,null,0,0,0,0,0,0,0,0,0]
[230,null,null,null,null,null,null,null,null,null,null,null,null,null,null,null,null,null,null,0,0,0,0,0,0,0,0,0]
[231,null,null,null,null,null,null,null,null,null,null,null,null,null,null,null,null,null,null,0,0,0,0,0,0,0,0,0]
[]
[]
[]
[]
[]
[]
[]
[]
[]
[]
[]
[]
[]
[]
[]
[]
[]
[]
[]
[]
[]
[]
[]
[]
[]
[]
[]
[]
[]
[]
[]
[]
[]
[]
[]
[]
[]
[]
[]
[]
[]
[]
[]
[]
[]
[]
[]
[]
[]
[]
[]
[]
[]
[]
[]
[]
[]
[]
[]
[]
[]
[]
[]
[]
[]
[]
[]
[]
[]
[]
[]
[]
[]
[]
[]
[]
[]
[]
[]
[]
[]
[]
[]
[]
[]
[]
[]
[]
[]
[]
[]
[]
[]
[]
[]
[]
[]
[]
[]
[]
[]
[]
[]
[]
[]
[]
[]
[]
[]
[]
[]
[]
[]
[]
[]
[]
[]
[]
[]
[]
[]
[]
[]
[]
[]
[]
[]
[]
[]
[]
[]
[]
[]
[]
[]
[]
[]
[]
[]
[]
[]
[]
[]
[]
[]
[]
[]
[]
[]
[]
[]
[]
[]
[]
[]
[]
[]
[]
[]
[]
[]
[]
[]
[]
[null,null,null,null,null,null,null,null,null,null,null,null,null,null,null,null,null,null,null,null,"ABS 0,5","ABS 2","ABS 0,5","ABS 2","ABS 1","ABS 42/1","zesilování","sdružené formáty"]
[null,null,null,null,null,null,null,null,null,null,null,null,null,null,null,null,null,null,null,"m2",1,2,3,4,5,6,"m2","m2"]
[]
[null,null,null,null,null,null,null,null,null,null,null,null,null,null,null,null,null,null,null,{"$f":"SUM(T21:T251)","v":0},0,0,0,0,0,0,0,0]
[]
[null,null,null,null,null,null,null,null,null,null,null,null,null,null,null,null,null,null,"výpočet",null,null,null,"plocha","m2",{"$f":"T$419","v":0}]
[null,null,null,null,null,null,null,null,null,null,null,null,null,null,null,null,null,null,null,null,null,null,"ABS 22/0,5","m",{"$f":"U$419","v":0}]
[null,null,null,null,null,null,null,null,null,null,null,null,null,null,null,null,null,null,null,null,null,null,"ABS 22/2","m",{"$f":"V$419","v":0}]
[null,null,null,null,null,null,null,null,null,null,null,null,null,null,null,null,null,null,null,null,null,null,"ABS 42/0,5","m",{"$f":"W$419","v":0}]
[null,null,null,null,null,null,null,null,null,null,null,null,null,null,null,null,null,null,null,null,null,null,"ABS 42/2","m",{"$f":"X$419","v":0}]
[null,null,null,null,null,null,null,null,null,null,null,null,null,null,null,null,null,null,null,null,null,null,"ABS 22/1","m",{"$f":"Y$419","v":0}]
[null,null,null,null,null,null,null,null,null,null,null,null,null,null,null,null,null,null,null,null,null,null,"ABS 42/1","m",{"$f":"Z$419","v":0}]
[]
[]
[null,null,null,null,null,null,null,null,null,null,null,null,null,null,null,null,null,null,null,null,null,null,"počet","KS",{"$f":"SUM(E21:E251)","v":0}]
[null,null,null,null,null,null,null,null,null,null,null,null,null,null,null,null,null,null,null,null,null,null,"plocha zesílení","m2",{"$f":"AA$419","v":0}]
[null,null,null,null,null,null,null,null,null,null,null,null,null,null,null,null,null,null,null,null,null,null,"plocha celkem","m2",{"$f":"T419+Y431","v":0}]
[null,null,null,null,null,null,null,null,null,null,null,null,null,null,null,null,null,null,null,null,null,null,"plocha SF","m2",{"$f":"AB$419","v":0}]

{"sheet":"Materiál_8","index":7,"n_rows":433,"n_cols":28,"rows_kept":433,"cut":false,"hidden":false,"merged":[[431,24,431,25],[432,24,432,25],[425,24,425,25],[426,24,426,25],[427,24,427,25],[428,24,428,25],[429,24,429,25],[430,24,430,25],[16,2,16,9],[16,13,16,14],[18,0,19,0],[19,6,19,9],[420,18,432,21],[420,24,420,25],[421,24,421,25],[422,24,422,25],[423,24,423,25],[424,24,424,25],[12,2,12,3],[12,4,12,9],[12,13,12,15],[13,2,13,3],[13,4,13,9],[13,13,13,15],[10,6,10,14],[1,0,1,15],[3,0,3,15],[7,6,7,14],[8,6,8,14],[9,6,9,14]]}
[]
["!!! UVÁDĚJTE ROZMĚRY VČ. HRAN, PŘIČEMŽ DODRŽTE ZNAČENÍ UVEDENÉ VEDLE TABULKY !!!"]
[]
["!!! STANDARTNĚ OLEPUJEME TRANSPARENTNÍM POLYURETANOVÝM LEPIDLEM !!!"]
[]
[]
[null,null,null,null,null,null,null,null,null,null,null,null,null,null,null,null,null,1,"znamená ABS 0,5"]
[null,"Dodavatel:",null,null,null,null,"Označení zakázky:",null,null,null,null,null,null,null,null,{"$f":"IF(Materiál_1!P8=\"\",\"\",Materiál_1!P8)","v":""},null,2,"znamená ABS 2"]
[null,{"$f":"Materiál_1!B9","v":"NODO ART, s.r.o."},null,null,null,null,"Odběratel:",null,null,null,null,null,null,null,null,{"$f":"IF(Materiál_1!P9=\"\",\"\",Materiál_1!P9)","v":""},{"$f":"IF(Materiál_1!Q9=\"\",\"\",Materiál_1!Q9)","v":""},{"$f":"IF(Materiál_1!R9=\"\",\"\",Materiál_1!R9)","v":3},{"$f":"IF(Materiál_1!S9=\"\",\"\",Materiál_1!S9)","v":"znamená ABS 42/0,5"},{"$f":"IF(Materiál_1!T9=\"\",\"\",Materiál_1!T9)","v":""},{"$f":"IF(Materiál_1!U9=\"\",\"\",Materiál_1!U9)","v":""}]
[null,{"$f":"Materiál_1!B10","v":"tel. +420 773 236 200"},null,null,null,null,"tel:",null,null,null,null,null,null,null,null,{"$f":"IF(Materiál_1!P10=\"\",\"\",Materiál_1!P10)","v":""},null,4,"znamená ABS 42/2"]
[null,{"$f":"Materiál_1!B11","v":"e-mail: dubovecky@nodo.cz"},null,null,null,null,"e - mail :",null,null,null,null,null,null,null,null,{"$f":"IF(Materiál_1!P11=\"\",\"\",Materiál_1!P11)","v":""},null,5,"znamená ABS 22/1"]
[null,null,null,null,null,null,null,null,null,null,null,null,null,null,null,null,null,6,"znamená ABS 42/1"]
[null,"OBYČEJNÉ LEPIDLO \"EVA\"","DOPRAVA          \"ZÁVOZ\"",null,"NEBALIT NA PALETU",null,null,null,null,null,null,null,null,"UVOLŇOVACÍ ŘEZ"]
[null,{"$f":"IF(Materiál_1!B14=\"\",\"\",Materiál_1!B14)","v":""},{"$f":"IF(Materiál_1!C14=\"\",\"\",Materiál_1!C14)","v":""},{"$f":"IF(Materiál_1!D14=\"\",\"\",Materiál_1!D14)","v":""},{"$f":"IF(Materiál_1!E14=\"\",\"\",Materiál_1!E14)","v":""},{"$f":"IF(Materiál_1!F14=\"\",\"\",Materiál_1!F14)","v":""},{"$f":"IF(Materiál_1!G14=\"\",\"\",Materiál_1!G14)","v":""},{"$f":"IF(Materiál_1!H14=\"\",\"\",Materiál_1!H14)","v":""},{"$f":"IF(Materiál_1!I14=\"\",\"\",Materiál_1!I14)","v":""},{"$f":"IF(Materiál_1!J14=\"\",\"\",Materiál_1!J14)","v":""}]
[]
[]
[null,"Druh materiálu:",null,null,null,null,null,null,null,null,null,null,null,null,null,"BÍLÉ LEPIDLO"]
[]
["P.č.",null,"X1, X2","Y1, Y2",null,null,"X1","X2","Y1","Y2",null,null,null,null,null,null,null,null,null,null,"ABS 0,5","ABS 2","ABS 0,5","ABS 2","ABS 1","ABS 42/1","zesilování","sdružené formáty"]
[null,"Název","délka                             (po vláknech) (mm)","šířka                                        (napříč vláknům) (mm)","počet (ks)","orientace lét","olepování",null,null,null,null,null,null,"zesilování","sdružené formáty","Poznámka",null,null,null,"m2",1,2,3,4,5,6,"m2","m2"]
[1,null,null,null,null,null,null,null,null,null,null,null,null,null,null,null,null,null,null,{"$f":"(C21*D21*E21)/1000000","v":0},{"$f":"((((IF($G21=U$20,$G21*$C21,\"0\"))+(IF($H21=U$20,$H21*$C21,\"0\"))+(IF($I21=U$20,$I21*$D21,\"0\"))+(IF($J21=U$20,$J21*$D21,\"0\")))*$E21)/1000)/U$20","v":0},0,0,0,0,0,{"$f":"IF(N21=\"\",0,(C21*D21*E21)/1000000)","v":0},{"$f":"IF(O21=\"\",0,(C21*D21*E21)/1000000)","v":0}]
[2,null,null,null,null,null,null,null,null,null,null,null,null,null,null,null,null,null,null,0,0,0,0,0,0,0,{"$f":"IF(N22=\"\",0,(C22*D22*E22)/1000000)","v":0},{"$f":"IF(O22=\"\",0,(C22*D22*E22)/1000000)","v":0}]
[3,null,null,null,null,null,null,null,null,null,null,null,null,null,null,null,null,null,null,0,0,0,0,0,0,0,0,0]
[4,null,null,null,null,null,null,null,null,null,null,null,null,null,null,null,null,null,null,0,0,0,0,0,0,0,0,0]
[5,null,null,null,null,null,null,null,null,null,null,null,null,null,null,null,null,null,null,0,0,0,0,0,0,0,0,0]
[6,null,null,null,null,null,null,null,null,null,null,null,null,null,null,null,null,null,null,0,0,0,0,0,0,0,0,0]
[7,null,null,null,null,null,null,null,null,null,null,null,null,null,null,null,null,null,null,0,0,0,0,0,0,0,0,0]
[8,null,null,null,null,null,null,null,null,null,null,null,null,null,null,null,null,null,null,0,0,0,0,0,0,0,0,0]
[9,null,null,null,null,null,null,null,null,null,null,null,null,null,null,null,null,null,null,0,0,0,0,0,0,0,0,0]
[10,null,null,null,null,null,null,null,null,null,null,null,null,null,null,null,null,null,null,0,0,0,0,0,0,0,0,0]
[11,null,null,null,null,null,null,null,null,null,null,null,null,null,null,null,null,null,null,0,0,0,0,0,0,0,0,0]
[12,null,null,null,null,null,null,null,null,null,null,null,null,null,null,null,null,null,null,0,0,0,0,0,0,0,0,0]
[13,null,null,null,null,null,null,null,null,null,null,null,null,null,null,null,null,null,null,0,0,0,0,0,0,0,0,0]
[14,null,null,null,null,null,null,null,null,null,null,null,null,null,null,null,null,null,null,0,0,0,0,0,0,0,0,0]
[15,null,null,null,null,null,null,null,null,null,null,null,null,null,null,null,null,null,null,0,0,0,0,0,0,0,0,0]
[16,null,null,null,null,null,null,null,null,null,null,null,null,null,null,null,null,null,null,0,0,0,0,0,0,0,0,0]
[17,null,null,null,null,null,null,null,null,null,null,null,null,null,null,null,null,null,null,0,{"$f":"((((IF($G37=U$20,$G37*$C37,\"0\"))+(IF($H37=U$20,$H37*$C37,\"0\"))+(IF($I37=U$20,$I37*$D37,\"0\"))+(IF($J37=U$20,$J37*$D37,\"0\")))*$E37)/1000)/U$20","v":0},0,0,0,0,0,0,0]
[18,null,null,null,null,null,null,null,null,null,null,null,null,null,null,null,null,null,null,0,0,0,0,0,0,0,0,0]
[19,null,null,null,null,null,null,null,null,null,null,null,null,null,null,null,null,null,null,0,0,0,0,0,0,0,0,0]
[20,null,null,null,null,null,null,null,null,null,null,null,null,null,null,null,null,null,null,0,0,0,0,0,0,0,0,0]
[21,null,null,null,null,null,null,null,null,null,null,null,null,null,null,null,null,null,null,0,0,0,0,0,0,0,0,0]
[22,null,null,null,null,null,null,null,null,null,null,null,null,null,null,null,null,null,null,0,0,0,0,0,0,0,0,0]
[23,null,null,null,null,null,null,null,null,null,null,null,null,null,null,null,null,null,null,0,0,0,0,0,0,0,0,0]
[24,null,null,null,null,null,null,null,null,null,null,null,null,null,null,null,null,null,null,0,0,0,0,0,0,0,0,0]
[25,null,null,null,null,null,null,null,null,null,null,null,null,null,null,null,null,null,null,0,0,0,0,0,0,0,0,0]
[26,null,null,null,null,null,null,null,null,null,null,null,null,null,null,null,null,null,null,0,0,0,0,0,0,0,0,0]
[27,null,null,null,null,null,null,null,null,null,null,null,null,null,null,null,null,null,null,0,0,0,0,0,0,0,0,0]
[28,null,null,null,null,null,null,null,null,null,null,null,null,null,null,null,null,null,null,0,0,0,0,0,0,0,0,0]
[29,null,null,null,null,null,null,null,null,null,null,null,null,null,null,null,null,null,null,0,0,0,0,0,0,0,0,0]
[30,null,null,null,null,null,null,null,null,null,null,null,null,null,null,null,null,null,null,0,0,0,0,0,0,0,0,0]
[31,null,null,null,null,null,null,null,null,null,null,null,null,null,null,null,null,null,null,0,0,0,0,0,0,0,0,0]
[32,null,null,null,null,null,null,null,null,null,null,null,null,null,null,null,null,null,null,0,0,0,0,0,0,0,0,0]
[33,null,null,null,null,null,null,null,null,null,null,null,null,null,null,null,null,null,null,0,{"$f":"((((IF($G53=U$20,$G53*$C53,\"0\"))+(IF($H53=U$20,$H53*$C53,\"0\"))+(IF($I53=U$20,$I53*$D53,\"0\"))+(IF($J53=U$20,$J53*$D53,\"0\")))*$E53)/1000)/U$20","v":0},0,0,0,0,0,0,0]
[34,null,null,null,null,null,null,null,null,null,null,null,null,null,null,null,null,null,null,0,0,0,0,0,0,0,0,0]
[35,null,null,null,null,null,null,null,null,null,null,null,null,null,null,null,null,null,null,0,0,0,0,0,0,0,0,0]
[36,null,null,null,null,null,null,null,null,null,null,null,null,null,null,null,null,null,null,0,0,0,0,0,0,0,0,0]
[37,null,null,null,null,null,null,null,null,null,null,null,null,null,null,null,null,null,null,0,0,0,0,0,0,0,0,0]
[38,null,null,null,null,null,null,null,null,null,null,null,null,null,null,null,null,null,null,0,0,0,0,0,0,0,0,0]
[39,null,null,null,null,null,null,null,null,null,null,null,null,null,null,null,null,null,null,0,0,0,0,0,0,0,0,0]
[40,null,null,null,null,null,null,null,null,null,null,null,null,null,null,null,null,null,null,0,0,0,0,0,0,0,0,0]
[41,null,null,null,null,null,null,null,null,null,null,null,null,null,null,null,null,null,null,0,0,0,0,0,0,0,0,0]
[42,null,null,null,null,null,null,null,null,null,null,null,null,null,null,null,null,null,null,0,0,0,0,0,0,0,0,0]
[43,null,null,null,null,null,null,null,null,null,null,null,null,null,null,null,null,null,null,0,0,0,0,0,0,0,0,0]
[44,null,null,null,null,null,null,null,null,null,null,null,null,null,null,null,null,null,null,0,0,0,0,0,0,0,0,0]
[45,null,null,null,null,null,null,null,null,null,null,null,null,null,null,null,null,null,null,0,0,0,0,0,0,0,0,0]
[46,null,null,null,null,null,null,null,null,null,null,null,null,null,null,null,null,null,null,0,0,0,0,0,0,0,0,0]
[47,null,null,null,null,null,null,null,null,null,null,null,null,null,null,null,null,null,null,0,0,0,0,0,0,0,0,0]
[48,null,null,null,null,null,null,null,null,null,null,null,null,null,null,null,null,null,null,0,0,0,0,0,0,0,0,0]
[49,null,null,null,null,null,null,null,null,null,null,null,null,null,null,null,null,null,null,0,{"$f":"((((IF($G69=U$20,$G69*$C69,\"0\"))+(IF($H69=U$20,$H69*$C69,\"0\"))+(IF($I69=U$20,$I69*$D69,\"0\"))+(IF($J69=U$20,$J69*$D69,\"0\")))*$E69)/1000)/U$20","v":0},0,0,0,0,0,0,0]
[50,null,null,null,null,null,null,null,null,null,null,null,null,null,null,null,null,null,null,0,0,0,0,0,0,0,0,0]
[51,null,null,null,null,null,null,null,null,null,null,null,null,null,null,null,null,null,null,0,0,0,0,0,0,0,0,0]
[52,null,null,null,null,null,null,null,null,null,null,null,null,null,null,null,null,null,null,0,0,0,0,0,0,0,0,0]
[53,null,null,null,null,null,null,null,null,null,null,null,null,null,null,null,null,null,null,0,0,0,0,0,0,0,0,0]
[54,null,null,null,null,null,null,null,null,null,null,null,null,null,null,null,null,null,null,0,0,0,0,0,0,0,0,0]
[55,null,null,null,null,null,null,null,null,null,null,null,null,null,null,null,null,null,null,0,0,0,0,0,0,0,0,0]
[56,null,null,null,null,null,null,null,null,null,null,null,null,null,null,null,null,null,null,0,0,0,0,0,0,0,0,0]
[57,null,null,null,null,null,null,null,null,null,null,null,null,null,null,null,null,null,null,0,0,0,0,0,0,0,0,0]
[58,null,null,null,null,null,null,null,null,null,null,null,null,null,null,null,null,null,null,0,0,0,0,0,0,0,0,0]
[59,null,null,null,null,null,null,null,null,null,null,null,null,null,null,null,null,null,null,0,0,0,0,0,0,0,0,0]
[60,null,null,null,null,null,null,null,null,null,null,null,null,null,null,null,null,null,null,0,0,0,0,0,0,0,0,0]
[61,null,null,null,null,null,null,null,null,null,null,null,null,null,null,null,null,null,null,0,0,0,0,0,0,0,0,0]
[62,null,null,null,null,null,null,null,null,null,null,null,null,null,null,null,null,null,null,0,0,0,0,0,0,0,0,0]
[63,null,null,null,null,null,null,null,null,null,null,null,null,null,null,null,null,null,null,0,0,0,0,0,0,0,0,0]
[64,null,null,null,null,null,null,null,null,null,null,null,null,null,null,null,null,null,null,0,0,0,0,0,0,0,0,0]
[65,null,null,null,null,null,null,null,null,null,null,null,null,null,null,null,null,null,null,{"$f":"(C85*D85*E85)/1000000","v":0},{"$f":"((((IF($G85=U$20,$G85*$C85,\"0\"))+(IF($H85=U$20,$H85*$C85,\"0\"))+(IF($I85=U$20,$I85*$D85,\"0\"))+(IF($J85=U$20,$J85*$D85,\"0\")))*$E85)/1000)/U$20","v":0},0,0,0,0,0,0,0]
[66,null,null,null,null,null,null,null,null,null,null,null,null,null,null,null,null,null,null,0,0,0,0,0,0,0,{"$f":"IF(N86=\"\",0,(C86*D86*E86)/1000000)","v":0},{"$f":"IF(O86=\"\",0,(C86*D86*E86)/1000000)","v":0}]
[67,null,null,null,null,null,null,null,null,null,null,null,null,null,null,null,null,null,null,0,0,0,0,0,0,0,0,0]
[68,null,null,null,null,null,null,null,null,null,null,null,null,null,null,null,null,null,null,0,0,0,0,0,0,0,0,0]
[69,null,null,null,null,null,null,null,null,null,null,null,null,null,null,null,null,null,null,0,0,0,0,0,0,0,0,0]
[70,null,null,null,null,null,null,null,null,null,null,null,null,null,null,null,null,null,null,0,0,0,0,0,0,0,0,0]
[71,null,null,null,null,null,null,null,null,null,null,null,null,null,null,null,null,null,null,0,0,0,0,0,0,0,0,0]
[72,null,null,null,null,null,null,null,null,null,null,null,null,null,null,null,null,null,null,0,0,0,0,0,0,0,0,0]
[73,null,null,null,null,null,null,null,null,null,null,null,null,null,null,null,null,null,null,0,0,0,0,0,0,0,0,0]
[74,null,null,null,null,null,null,null,null,null,null,null,null,null,null,null,null,null,null,0,0,0,0,0,0,0,0,0]
[75,null,null,null,null,null,null,null,null,null,null,null,null,null,null,null,null,null,null,0,0,0,0,0,0,0,0,0]
[76,null,null,null,null,null,null,null,null,null,null,null,null,null,null,null,null,null,null,0,0,0,0,0,0,0,0,0]
[77,null,null,null,null,null,null,null,null,null,null,null,null,null,null,null,null,null,null,0,0,0,0,0,0,0,0,0]
[78,null,null,null,null,null,null,null,null,null,null,null,null,null,null,null,null,null,null,0,0,0,0,0,0,0,0,0]
[79,null,null,null,null,null,null,null,null,null,null,null,null,null,null,null,null,null,null,0,0,0,0,0,0,0,0,0]
[80,null,null,null,null,null,null,null,null,null,null,null,null,null,null,null,null,null,null,0,0,0,0,0,0,0,0,0]
[81,null,null,null,null,null,null,null,null,null,null,null,null,null,null,null,null,null,null,0,{"$f":"((((IF($G101=U$20,$G101*$C101,\"0\"))+(IF($H101=U$20,$H101*$C101,\"0\"))+(IF($I101=U$20,$I101*$D101,\"0\"))+(IF($J101=U$20,$J101*$D101,\"0\")))*$E101)/1000)/U$20","v":0},0,0,0,0,0,0,0]
[82,null,null,null,null,null,null,null,null,null,null,null,null,null,null,null,null,null,null,0,0,0,0,0,0,0,0,0]
[83,null,null,null,null,null,null,null,null,null,null,null,null,null,null,null,null,null,null,0,0,0,0,0,0,0,0,0]
[84,null,null,null,null,null,null,null,null,null,null,null,null,null,null,null,null,null,null,0,0,0,0,0,0,0,0,0]
[85,null,null,null,null,null,null,null,null,null,null,null,null,null,null,null,null,null,null,0,0,0,0,0,0,0,0,0]
[86,null,null,null,null,null,null,null,null,null,null,null,null,null,null,null,null,null,null,0,0,0,0,0,0,0,0,0]
[87,null,null,null,null,null,null,null,null,null,null,null,null,null,null,null,null,null,null,0,0,0,0,0,0,0,0,0]
[88,null,null,null,null,null,null,null,null,null,null,null,null,null,null,null,null,null,null,0,0,0,0,0,0,0,0,0]
[89,null,null,null,null,null,null,null,null,null,null,null,null,null,null,null,null,null,null,0,0,0,0,0,0,0,0,0]
[90,null,null,null,null,null,null,null,null,null,null,null,null,null,null,null,null,null,null,0,0,0,0,0,0,0,0,0]
[91,null,null,null,null,null,null,null,null,null,null,null,null,null,null,null,null,null,null,0,0,0,0,0,0,0,0,0]
[92,null,null,null,null,null,null,null,null,null,null,null,null,null,null,null,null,null,null,0,0,0,0,0,0,0,0,0]
[93,null,null,null,null,null,null,null,null,null,null,null,null,null,null,null,null,null,null,0,0,0,0,0,0,0,0,0]
[94,null,null,null,null,null,null,null,null,null,null,null,null,null,null,null,null,null,null,0,0,0,0,0,0,0,0,0]
[95,null,null,null,null,null,null,null,null,null,null,null,null,null,null,null,null,null,null,0,0,0,0,0,0,0,0,0]
[96,null,null,null,null,null,null,null,null,null,null,null,null,null,null,null,null,null,null,0,0,0,0,0,0,0,0,0]
[97,null,null,null,null,null,null,null,null,null,null,null,null,null,null,null,null,null,null,0,{"$f":"((((IF($G117=U$20,$G117*$C117,\"0\"))+(IF($H117=U$20,$H117*$C117,\"0\"))+(IF($I117=U$20,$I117*$D117,\"0\"))+(IF($J117=U$20,$J117*$D117,\"0\")))*$E117)/1000)/U$20","v":0},0,0,0,0,0,0,0]
[98,null,null,null,null,null,null,null,null,null,null,null,null,null,null,null,null,null,null,0,0,0,0,0,0,0,0,0]
[99,null,null,null,null,null,null,null,null,null,null,null,null,null,null,null,null,null,null,0,0,0,0,0,0,0,0,0]
[100,null,null,null,null,null,null,null,null,null,null,null,null,null,null,null,null,null,null,0,0,0,0,0,0,0,0,0]
[101,null,null,null,null,null,null,null,null,null,null,null,null,null,null,null,null,null,null,0,0,0,0,0,0,0,0,0]
[102,null,null,null,null,null,null,null,null,null,null,null,null,null,null,null,null,null,null,0,0,0,0,0,0,0,0,0]
[103,null,null,null,null,null,null,null,null,null,null,null,null,null,null,null,null,null,null,0,0,0,0,0,0,0,0,0]
[104,null,null,null,null,null,null,null,null,null,null,null,null,null,null,null,null,null,null,0,0,0,0,0,0,0,0,0]
[105,null,null,null,null,null,null,null,null,null,null,null,null,null,null,null,null,null,null,0,0,0,0,0,0,0,0,0]
[106,null,null,null,null,null,null,null,null,null,null,null,null,null,null,null,null,null,null,0,0,0,0,0,0,0,0,0]
[107,null,null,null,null,null,null,null,null,null,null,null,null,null,null,null,null,null,null,0,0,0,0,0,0,0,0,0]
[108,null,null,null,null,null,null,null,null,null,null,null,null,null,null,null,null,null,null,0,0,0,0,0,0,0,0,0]
[109,null,null,null,null,null,null,null,null,null,null,null,null,null,null,null,null,null,null,0,0,0,0,0,0,0,0,0]
[110,null,null,null,null,null,null,null,null,null,null,null,null,null,null,null,null,null,null,0,0,0,0,0,0,0,0,0]
[111,null,null,null,null,null,null,null,null,null,null,null,null,null,null,null,null,null,null,0,0,0,0,0,0,0,0,0]
[112,null,null,null,null,null,null,null,null,null,null,null,null,null,null,null,null,null,null,0,0,0,0,0,0,0,0,0]
[113,null,null,null,null,null,null,null,null,null,null,null,null,null,null,null,null,null,null,0,{"$f":"((((IF($G133=U$20,$G133*$C133,\"0\"))+(IF($H133=U$20,$H133*$C133,\"0\"))+(IF($I133=U$20,$I133*$D133,\"0\"))+(IF($J133=U$20,$J133*$D133,\"0\")))*$E133)/1000)/U$20","v":0},0,0,0,0,0,0,0]
[114,null,null,null,null,null,null,null,null,null,null,null,null,null,null,null,null,null,null,0,0,0,0,0,0,0,0,0]
[115,null,null,null,null,null,null,null,null,null,null,null,null,null,null,null,null,null,null,0,0,0,0,0,0,0,0,0]
[116,null,null,null,null,null,null,null,null,null,null,null,null,null,null,null,null,null,null,0,0,0,0,0,0,0,0,0]
[117,null,null,null,null,null,null,null,null,null,null,null,null,null,null,null,null,null,null,0,0,0,0,0,0,0,0,0]
[118,null,null,null,null,null,null,null,null,null,null,null,null,null,null,null,null,null,null,0,0,0,0,0,0,0,0,0]
[119,null,null,null,null,null,null,null,null,null,null,null,null,null,null,null,null,null,null,0,0,0,0,0,0,0,0,0]
[120,null,null,null,null,null,null,null,null,null,null,null,null,null,null,null,null,null,null,0,0,0,0,0,0,0,0,0]
[121,null,null,null,null,null,null,null,null,null,null,null,null,null,null,null,null,null,null,0,0,0,0,0,0,0,0,0]
[122,null,null,null,null,null,null,null,null,null,null,null,null,null,null,null,null,null,null,0,0,0,0,0,0,0,0,0]
[123,null,null,null,null,null,null,null,null,null,null,null,null,null,null,null,null,null,null,0,0,0,0,0,0,0,0,0]
[124,null,null,null,null,null,null,null,null,null,null,null,null,null,null,null,null,null,null,0,0,0,0,0,0,0,0,0]
[125,null,null,null,null,null,null,null,null,null,null,null,null,null,null,null,null,null,null,0,0,0,0,0,0,0,0,0]
[126,null,null,null,null,null,null,null,null,null,null,null,null,null,null,null,null,null,null,0,0,0,0,0,0,0,0,0]
[127,null,null,null,null,null,null,null,null,null,null,null,null,null,null,null,null,null,null,0,0,0,0,0,0,0,0,0]
[128,null,null,null,null,null,null,null,null,null,null,null,null,null,null,null,null,null,null,0,0,0,0,0,0,0,0,0]
[129,null,null,null,null,null,null,null,null,null,null,null,null,null,null,null,null,null,null,{"$f":"(C149*D149*E149)/1000000","v":0},{"$f":"((((IF($G149=U$20,$G149*$C149,\"0\"))+(IF($H149=U$20,$H149*$C149,\"0\"))+(IF($I149=U$20,$I149*$D149,\"0\"))+(IF($J149=U$20,$J149*$D149,\"0\")))*$E149)/1000)/U$20","v":0},0,0,0,0,0,0,0]
[130,null,null,null,null,null,null,null,null,null,null,null,null,null,null,null,null,null,null,0,0,0,0,0,0,0,{"$f":"IF(N150=\"\",0,(C150*D150*E150)/1000000)","v":0},{"$f":"IF(O150=\"\",0,(C150*D150*E150)/1000000)","v":0}]
[131,null,null,null,null,null,null,null,null,null,null,null,null,null,null,null,null,null,null,0,0,0,0,0,0,0,0,0]
[132,null,null,null,null,null,null,null,null,null,null,null,null,null,null,null,null,null,null,0,0,0,0,0,0,0,0,0]
[133,null,null,null,null,null,null,null,null,null,null,null,null,null,null,null,null,null,null,0,0,0,0,0,0,0,0,0]
[134,null,null,null,null,null,null,null,null,null,null,null,null,null,null,null,null,null,null,0,0,0,0,0,0,0,0,0]
[135,null,null,null,null,null,null,null,null,null,null,null,null,null,null,null,null,null,null,0,0,0,0,0,0,0,0,0]
[136,null,null,null,null,null,null,null,null,null,null,null,null,null,null,null,null,null,null,0,0,0,0,0,0,0,0,0]
[137,null,null,null,null,null,null,null,null,null,null,null,null,null,null,null,null,null,null,0,0,0,0,0,0,0,0,0]
[138,null,null,null,null,null,null,null,null,null,null,null,null,null,null,null,null,null,null,0,0,0,0,0,0,0,0,0]
[139,null,null,null,null,null,null,null,null,null,null,null,null,null,null,null,null,null,null,0,0,0,0,0,0,0,0,0]
[140,null,null,null,null,null,null,null,null,null,null,null,null,null,null,null,null,null,null,0,0,0,0,0,0,0,0,0]
[141,null,null,null,null,null,null,null,null,null,null,null,null,null,null,null,null,null,null,0,0,0,0,0,0,0,0,0]
[142,null,null,null,null,null,null,null,null,null,null,null,null,null,null,null,null,null,null,0,0,0,0,0,0,0,0,0]
[143,null,null,null,null,null,null,null,null,null,null,null,null,null,null,null,null,null,null,0,0,0,0,0,0,0,0,0]
[144,null,null,null,null,null,null,null,null,null,null,null,null,null,null,null,null,null,null,0,0,0,0,0,0,0,0,0]
[145,null,null,null,null,null,null,null,null,null,null,null,null,null,null,null,null,null,null,0,{"$f":"((((IF($G165=U$20,$G165*$C165,\"0\"))+(IF($H165=U$20,$H165*$C165,\"0\"))+(IF($I165=U$20,$I165*$D165,\"0\"))+(IF($J165=U$20,$J165*$D165,\"0\")))*$E165)/1000)/U$20","v":0},0,0,0,0,0,0,0]
[146,null,null,null,null,null,null,null,null,null,null,null,null,null,null,null,null,null,null,0,0,0,0,0,0,0,0,0]
[147,null,null,null,null,null,null,null,null,null,null,null,null,null,null,null,null,null,null,0,0,0,0,0,0,0,0,0]
[148,null,null,null,null,null,null,null,null,null,null,null,null,null,null,null,null,null,null,0,0,0,0,0,0,0,0,0]
[149,null,null,null,null,null,null,null,null,null,null,null,null,null,null,null,null,null,null,0,0,0,0,0,0,0,0,0]
[150,null,null,null,null,null,null,null,null,null,null,null,null,null,null,null,null,null,null,0,0,0,0,0,0,0,0,0]
[151,null,null,null,null,null,null,null,null,null,null,null,null,null,null,null,null,null,null,0,0,0,0,0,0,0,0,0]
[152,null,null,null,null,null,null,null,null,null,null,null,null,null,null,null,null,null,null,0,0,0,0,0,0,0,0,0]
[153,null,null,null,null,null,null,null,null,null,null,null,null,null,null,null,null,null,null,0,0,0,0,0,0,0,0,0]
[154,null,null,null,null,null,null,null,null,null,null,null,null,null,null,null,null,null,null,0,0,0,0,0,0,0,0,0]
[155,null,null,null,null,null,null,null,null,null,null,null,null,null,null,null,null,null,null,0,0,0,0,0,0,0,0,0]
[156,null,null,null,null,null,null,null,null,null,null,null,null,null,null,null,null,null,null,0,0,0,0,0,0,0,0,0]
[157,null,null,null,null,null,null,null,null,null,null,null,null,null,null,null,null,null,null,0,0,0,0,0,0,0,0,0]
[158,null,null,null,null,null,null,null,null,null,null,null,null,null,null,null,null,null,null,0,0,0,0,0,0,0,0,0]
[159,null,null,null,null,null,null,null,null,null,null,null,null,null,null,null,null,null,null,0,0,0,0,0,0,0,0,0]
[160,null,null,null,null,null,null,null,null,null,null,null,null,null,null,null,null,null,null,0,0,0,0,0,0,0,0,0]
[161,null,null,null,null,null,null,null,null,null,null,null,null,null,null,null,null,null,null,0,{"$f":"((((IF($G181=U$20,$G181*$C181,\"0\"))+(IF($H181=U$20,$H181*$C181,\"0\"))+(IF($I181=U$20,$I181*$D181,\"0\"))+(IF($J181=U$20,$J181*$D181,\"0\")))*$E181)/1000)/U$20","v":0},0,0,0,0,0,0,0]
[162,null,null,null,null,null,null,null,null,null,null,null,null,null,null,null,null,null,null,0,0,0,0,0,0,0,0,0]
[163,null,null,null,null,null,null,null,null,null,null,null,null,null,null,null,null,null,null,0,0,0,0,0,0,0,0,0]
[164,null,null,null,null,null,null,null,null,null,null,null,null,null,null,null,null,null,null,0,0,0,0,0,0,0,0,0]
[165,null,null,null,null,null,null,null,null,null,null,null,null,null,null,null,null,null,null,0,0,0,0,0,0,0,0,0]
[166,null,null,null,null,null,null,null,null,null,null,null,null,null,null,null,null,null,null,0,0,0,0,0,0,0,0,0]
[167,null,null,null,null,null,null,null,null,null,null,null,null,null,null,null,null,null,null,0,0,0,0,0,0,0,0,0]
[168,null,null,null,null,null,null,null,null,null,null,null,null,null,null,null,null,null,null,0,0,0,0,0,0,0,0,0]
[169,null,null,null,null,null,null,null,null,null,null,null,null,null,null,null,null,null,null,0,0,0,0,0,0,0,0,0]
[170,null,null,null,null,null,null,null,null,null,null,null,null,null,null,null,null,null,null,0,0,0,0,0,0,0,0,0]
[171,null,null,null,null,null,null,null,null,null,null,null,null,null,null,null,null,null,null,0,0,0,0,0,0,0,0,0]
[172,null,null,null,null,null,null,null,null,null,null,null,null,null,null,null,null,null,null,0,0,0,0,0,0,0,0,0]
[173,null,null,null,null,null,null,null,null,null,null,null,null,null,null,null,null,null,null,0,0,0,0,0,0,0,0,0]
[174,null,null,null,null,null,null,null,null,null,null,null,null,null,null,null,null,null,null,0,0,0,0,0,0,0,0,0]
[175,null,null,null,null,null,null,null,null,null,null,null,null,null,null,null,null,null,null,0,0,0,0,0,0,0,0,0]
[176,null,null,null,null,null,null,null,null,null,null,null,null,null,null,null,null,null,null,0,0,0,0,0,0,0,0,0]
[177,null,null,null,null,null,null,null,null,null,null,null,null,null,null,null,null,null,null,0,{"$f":"((((IF($G197=U$20,$G197*$C197,\"0\"))+(IF($H197=U$20,$H197*$C197,\"0\"))+(IF($I197=U$20,$I197*$D197,\"0\"))+(IF($J197=U$20,$J197*$D197,\"0\")))*$E197)/1000)/U$20","v":0},0,0,0,0,0,0,0]
[178,null,null,null,null,null,null,null,null,null,null,null,null,null,null,null,null,null,null,0,0,0,0,0,0,0,0,0]
[179,null,null,null,null,null,null,null,null,null,null,null,null,null,null,null,null,null,null,0,0,0,0,0,0,0,0,0]
[180,null,null,null,null,null,null,null,null,null,null,null,null,null,null,null,null,null,null,0,0,0,0,0,0,0,0,0]
[181,null,null,null,null,null,null,null,null,null,null,null,null,null,null,null,null,null,null,0,0,0,0,0,0,0,0,0]
[182,null,null,null,null,null,null,null,null,null,null,null,null,null,null,null,null,null,null,0,0,0,0,0,0,0,0,0]
[183,null,null,null,null,null,null,null,null,null,null,null,null,null,null,null,null,null,null,0,0,0,0,0,0,0,0,0]
[184,null,null,null,null,null,null,null,null,null,null,null,null,null,null,null,null,null,null,0,0,0,0,0,0,0,0,0]
[185,null,null,null,null,null,null,null,null,null,null,null,null,null,null,null,null,null,null,0,0,0,0,0,0,0,0,0]
[186,null,null,null,null,null,null,null,null,null,null,null,null,null,null,null,null,null,null,0,0,0,0,0,0,0,0,0]
[187,null,null,null,null,null,null,null,null,null,null,null,null,null,null,null,null,null,null,0,0,0,0,0,0,0,0,0]
[188,null,null,null,null,null,null,null,null,null,null,null,null,null,null,null,null,null,null,0,0,0,0,0,0,0,0,0]
[189,null,null,null,null,null,null,null,null,null,null,null,null,null,null,null,null,null,null,0,0,0,0,0,0,0,0,0]
[190,null,null,null,null,null,null,null,null,null,null,null,null,null,null,null,null,null,null,0,0,0,0,0,0,0,0,0]
[191,null,null,null,null,null,null,null,null,null,null,null,null,null,null,null,null,null,null,0,0,0,0,0,0,0,0,0]
[192,null,null,null,null,null,null,null,null,null,null,null,null,null,null,null,null,null,null,0,0,0,0,0,0,0,0,0]
[193,null,null,null,null,null,null,null,null,null,null,null,null,null,null,null,null,null,null,{"$f":"(C213*D213*E213)/1000000","v":0},{"$f":"((((IF($G213=U$20,$G213*$C213,\"0\"))+(IF($H213=U$20,$H213*$C213,\"0\"))+(IF($I213=U$20,$I213*$D213,\"0\"))+(IF($J213=U$20,$J213*$D213,\"0\")))*$E213)/1000)/U$20","v":0},0,0,0,0,0,0,0]
[194,null,null,null,null,null,null,null,null,null,null,null,null,null,null,null,null,null,null,0,0,0,0,0,0,0,{"$f":"IF(N214=\"\",0,(C214*D214*E214)/1000000)","v":0},{"$f":"IF(O214=\"\",0,(C214*D214*E214)/1000000)","v":0}]
[195,null,null,null,null,null,null,null,null,null,null,null,null,null,null,null,null,null,null,0,0,0,0,0,0,0,0,0]
[196,null,null,null,null,null,null,null,null,null,null,null,null,null,null,null,null,null,null,0,0,0,0,0,0,0,0,0]
[197,null,null,null,null,null,null,null,null,null,null,null,null,null,null,null,null,null,null,0,0,0,0,0,0,0,0,0]
[198,null,null,null,null,null,null,null,null,null,null,null,null,null,null,null,null,null,null,0,0,0,0,0,0,0,0,0]
[199,null,null,null,null,null,null,null,null,null,null,null,null,null,null,null,null,null,null,0,0,0,0,0,0,0,0,0]
[200,null,null,null,null,null,null,null,null,null,null,null,null,null,null,null,null,null,null,0,0,0,0,0,0,0,0,0]
[201,null,null,null,null,null,null,null,null,null,null,null,null,null,null,null,null,null,null,0,0,0,0,0,0,0,0,0]
[202,null,null,null,null,null,null,null,null,null,null,null,null,null,null,null,null,null,null,0,0,0,0,0,0,0,0,0]
[203,null,null,null,null,null,null,null,null,null,null,null,null,null,null,null,null,null,null,0,0,0,0,0,0,0,0,0]
[204,null,null,null,null,null,null,null,null,null,null,null,null,null,null,null,null,null,null,0,0,0,0,0,0,0,0,0]
[205,null,null,null,null,null,null,null,null,null,null,null,null,null,null,null,null,null,null,0,0,0,0,0,0,0,0,0]
[206,null,null,null,null,null,null,null,null,null,null,null,null,null,null,null,null,null,null,0,0,0,0,0,0,0,0,0]
[207,null,null,null,null,null,null,null,null,null,null,null,null,null,null,null,null,null,null,0,0,0,0,0,0,0,0,0]
[208,null,null,null,null,null,null,null,null,null,null,null,null,null,null,null,null,null,null,0,0,0,0,0,0,0,0,0]
[209,null,null,null,null,null,null,null,null,null,null,null,null,null,null,null,null,null,null,0,{"$f":"((((IF($G229=U$20,$G229*$C229,\"0\"))+(IF($H229=U$20,$H229*$C229,\"0\"))+(IF($I229=U$20,$I229*$D229,\"0\"))+(IF($J229=U$20,$J229*$D229,\"0\")))*$E229)/1000)/U$20","v":0},0,0,0,0,0,0,0]
[210,null,null,null,null,null,null,null,null,null,null,null,null,null,null,null,null,null,null,0,0,0,0,0,0,0,0,0]
[211,null,null,null,null,null,null,null,null,null,null,null,null,null,null,null,null,null,null,0,0,0,0,0,0,0,0,0]
[212,null,null,null,null,null,null,null,null,null,null,null,null,null,null,null,null,null,null,0,0,0,0,0,0,0,0,0]
[213,null,null,null,null,null,null,null,null,null,null,null,null,null,null,null,null,null,null,0,0,0,0,0,0,0,0,0]
[214,null,null,null,null,null,null,null,null,null,null,null,null,null,null,null,null,null,null,0,0,0,0,0,0,0,0,0]
[215,null,null,null,null,null,null,null,null,null,null,null,null,null,null,null,null,null,null,0,0,0,0,0,0,0,0,0]
[216,null,null,null,null,null,null,null,null,null,null,null,null,null,null,null,null,null,null,0,0,0,0,0,0,0,0,0]
[217,null,null,null,null,null,null,null,null,null,null,null,null,null,null,null,null,null,null,0,0,0,0,0,0,0,0,0]
[218,null,null,null,null,null,null,null,null,null,null,null,null,null,null,null,null,null,null,0,0,0,0,0,0,0,0,0]
[219,null,null,null,null,null,null,null,null,null,null,null,null,null,null,null,null,null,null,0,0,0,0,0,0,0,0,0]
[220,null,null,null,null,null,null,null,null,null,null,null,null,null,null,null,null,null,null,0,0,0,0,0,0,0,0,0]
[221,null,null,null,null,null,null,null,null,null,null,null,null,null,null,null,null,null,null,0,0,0,0,0,0,0,0,0]
[222,null,null,null,null,null,null,null,null,null,null,null,null,null,null,null,null,null,null,0,0,0,0,0,0,0,0,0]
[223,null,null,null,null,null,null,null,null,null,null,null,null,null,null,null,null,null,null,0,0,0,0,0,0,0,0,0]
[224,null,null,null,null,null,null,null,null,null,null,null,null,null,null,null,null,null,null,0,0,0,0,0,0,0,0,0]
[225,null,null,null,null,null,null,null,null,null,null,null,null,null,null,null,null,null,null,0,{"$f":"((((IF($G245=U$20,$G245*$C245,\"0\"))+(IF($H245=U$20,$H245*$C245,\"0\"))+(IF($I245=U$20,$I245*$D245,\"0\"))+(IF($J245=U$20,$J245*$D245,\"0\")))*$E245)/1000)/U$20","v":0},0,0,0,0,0,0,0]
[226,null,null,null,null,null,null,null,null,null,null,null,null,null,null,null,null,null,null,0,0,0,0,0,0,0,0,0]
[227,null,null,null,null,null,null,null,null,null,null,null,null,null,null,null,null,null,null,0,0,0,0,0,0,0,0,0]
[228,null,null,null,null,null,null,null,null,null,null,null,null,null,null,null,null,null,null,0,0,0,0,0,0,0,0,0]
[229,null,null,null,null,null,null,null,null,null,null,null,null,null,null,null,null,null,null,0,0,0,0,0,0,0,0,0]
[230,null,null,null,null,null,null,null,null,null,null,null,null,null,null,null,null,null,null,0,0,0,0,0,0,0,0,0]
[231,null,null,null,null,null,null,null,null,null,null,null,null,null,null,null,null,null,null,0,0,0,0,0,0,0,0,0]
[]
[]
[]
[]
[]
[]
[]
[]
[]
[]
[]
[]
[]
[]
[]
[]
[]
[]
[]
[]
[]
[]
[]
[]
[]
[]
[]
[]
[]
[]
[]
[]
[]
[]
[]
[]
[]
[]
[]
[]
[]
[]
[]
[]
[]
[]
[]
[]
[]
[]
[]
[]
[]
[]
[]
[]
[]
[]
[]
[]
[]
[]
[]
[]
[]
[]
[]
[]
[]
[]
[]
[]
[]
[]
[]
[]
[]
[]
[]
[]
[]
[]
[]
[]
[]
[]
[]
[]
[]
[]
[]
[]
[]
[]
[]
[]
[]
[]
[]
[]
[]
[]
[]
[]
[]
[]
[]
[]
[]
[]
[]
[]
[]
[]
[]
[]
[]
[]
[]
[]
[]
[]
[]
[]
[]
[]
[]
[]
[]
[]
[]
[]
[]
[]
[]
[]
[]
[]
[]
[]
[]
[]
[]
[]
[]
[]
[]
[]
[]
[]
[]
[]
[]
[]
[]
[]
[]
[]
[]
[]
[]
[]
[]
[]
[null,null,null,null,null,null,null,null,null,null,null,null,null,null,null,null,null,null,null,null,"ABS 0,5","ABS 2","ABS 0,5","ABS 2","ABS 1","ABS 42/1","zesilování","sdružené formáty"]
[null,null,null,null,null,null,null,null,null,null,null,null,null,null,null,null,null,null,null,"m2",1,2,3,4,5,6,"m2","m2"]
[]
[null,null,null,null,null,null,null,null,null,null,null,null,null,null,null,null,null,null,null,{"$f":"SUM(T21:T251)","v":0},0,0,0,0,0,0,0,0]
[]
[null,null,null,null,null,null,null,null,null,null,null,null,null,null,null,null,null,null,"výpočet",null,null,null,"plocha","m2",{"$f":"T$419","v":0}]
[null,null,null,null,null,null,null,null,null,null,null,null,null,null,null,null,null,null,null,null,null,null,"ABS 22/0,5","m",{"$f":"U$419","v":0}]
[null,null,null,null,null,null,null,null,null,null,null,null,null,null,null,null,null,null,null,null,null,null,"ABS 22/2","m",{"$f":"V$419","v":0}]
[null,null,null,null,null,null,null,null,null,null,null,null,null,null,null,null,null,null,null,null,null,null,"ABS 42/0,5","m",{"$f":"W$419","v":0}]
[null,null,null,null,null,null,null,null,null,null,null,null,null,null,null,null,null,null,null,null,null,null,"ABS 42/2","m",{"$f":"X$419","v":0}]
[null,null,null,null,null,null,null,null,null,null,null,null,null,null,null,null,null,null,null,null,null,null,"ABS 22/1","m",{"$f":"Y$419","v":0}]
[null,null,null,null,null,null,null,null,null,null,null,null,null,null,null,null,null,null,null,null,null,null,"ABS 42/1","m",{"$f":"Z$419","v":0}]
[]
[]
[null,null,null,null,null,null,null,null,null,null,null,null,null,null,null,null,null,null,null,null,null,null,"počet","KS",{"$f":"SUM(E21:E251)","v":0}]
[null,null,null,null,null,null,null,null,null,null,null,null,null,null,null,null,null,null,null,null,null,null,"plocha zesílení","m2",{"$f":"AA$419","v":0}]
[null,null,null,null,null,null,null,null,null,null,null,null,null,null,null,null,null,null,null,null,null,null,"plocha celkem","m2",{"$f":"T419+Y431","v":0}]
[null,null,null,null,null,null,null,null,null,null,null,null,null,null,null,null,null,null,null,null,null,null,"plocha SF","m2",{"$f":"AB$419","v":0}]

{"sheet":"Souhrn","index":8,"n_rows":58,"n_cols":22,"rows_kept":58,"cut":false,"hidden":false,"merged":[[57,0,57,15],[16,0,17,0],[16,1,17,1],[6,11,6,12],[7,11,7,12],[8,11,8,12],[7,17,16,19],[8,13,8,14],[7,13,7,14],[6,13,6,14],[11,4,11,5],[11,6,11,7],[11,8,11,9],[9,13,9,14],[12,6,12,7],[12,4,12,5],[9,11,9,12]]}
[]
[]
[]
[]
[]
[]
[null,{"$f":"IF(Materiál_1!B8=\"\",\"\",Materiál_1!B8)","v":"Dodavatel:"},null,null,null,null,null,null,"",null,null,"Označení zakázky:",null,{"$f":"IF(Materiál_1!P8=\"\",\"\",Materiál_1!P8)","v":""}]
[null,{"$f":"IF(Materiál_1!B9=\"\",\"\",Materiál_1!B9)","v":"NODO ART, s.r.o."},null,null,null,null,null,null,"",null,null,"Odběratel:",null,{"$f":"IF(Materiál_1!P9=\"\",\"\",Materiál_1!P9)","v":""},null,null,null,"!!!!                                         Prosíme všechny tvůrce kusovníků, aby ukládali tento dokument s příponou, s jakou byl vytvořen (XLSM), děkujeme                           !!!!"]
[null,{"$f":"IF(Materiál_1!B10=\"\",\"\",Materiál_1!B10)","v":"tel. +420 773 236 200"},null,null,null,null,null,null,"",null,null,"tel:",null,{"$f":"IF(Materiál_1!P10=\"\",\"\",Materiál_1!P10)","v":""}]
[null,{"$f":"IF(Materiál_1!B11=\"\",\"\",Materiál_1!B11)","v":"e-mail: dubovecky@nodo.cz"},null,null,null,null,null,null,"",null,null,"e-mail:",null,{"$f":"IF(Materiál_1!P11=\"\",\"\",Materiál_1!P11)","v":""}]
[]
[null,null,null,null,"OBYČEJNÉ LEPIDLO \"EVA\"",null,"DOPRAVA          \"ZÁVOZ\"",null,"PALETA"]
[null,null,null,null,{"$f":"IF(Materiál_1!$B$14=\"\",\"NE\",\"ANO\")","v":"NE"},null,{"$f":"IF(Materiál_1!$C$14=\"\",\"NE\",\"ANO\")","v":"NE"},null,{"$f":"IF(Materiál_1!$E$14=\"\",\"ANO\",\"NE\")","v":"ANO"},{"$f":"IF(OR(D34=0,I13=\"NE\"),\"\",IF(D34<=45,1,IF(AND(D34>45,D34<=90),2,IF(AND(D34>90,D34<=135),3,\"skutečnost\"))))","v":""}]
[]
[]
[]
["poř.č.","Materiál","Plocha","Celková plocha vč. zesílení","Plocha zesílení","Plocha SF","ABS 22/0,5","ABS 22/2","ABS 42/0,5","ABS 42/2","ABS 22/1","ABS 42/1","počet","Bílé lepidlo","Uvolňovací řez",null,null,null,null,null,null,"VZOR"]
[null,null,"m2","m2","m2","m2","bm","bm","bm","bm","bm","bm","KS"]
["1.",{"$f":"IF(Materiál_1!$C$17=\"\",\"\",Materiál_1!$C$17)","v":""},{"$f":"IF(Materiál_1!$Y$421=0,\"\",Materiál_1!$Y$421*1.2)","v":""},{"$f":"IF(Materiál_1!$Y$432=0,\"\",Materiál_1!$Y$432*1.2)","v":""},{"$f":"IF(Materiál_1!$Y$431=0,\"\",Materiál_1!$Y$431*1.1)","v":""},{"$f":"IF(Materiál_1!$Y$433=0,\"\",Materiál_1!$Y$433)","v":""},{"$f":"IF(Materiál_1!$Y$422=0,\"\",Materiál_1!$Y$422*1.15)","v":""},{"$f":"IF(Materiál_1!$Y$423=0,\"\",Materiál_1!$Y$423*1.15)","v":""},{"$f":"IF(Materiál_1!$Y$424=0,\"\",Materiál_1!$Y$424*1.15)","v":""},{"$f":"IF(Materiál_1!$Y$425=0,\"\",Materiál_1!$Y$425*1.15)","v":""},{"$f":"IF(Materiál_1!$Y$426=0,\"\",Materiál_1!$Y$426*1.15)","v":""},{"$f":"IF(Materiál_1!$Y$427=0,\"\",Materiál_1!$Y$427*1.15)","v":""},{"$f":"IF(Materiál_1!$Y$430=0,\"\",Materiál_1!$Y$430)","v":""},{"$f":"IF(Materiál_1!$N$17=0,\"\",\"ANO\")","v":""},{"$f":"IF(Materiál_1!$N$14=0,\"\",\"ANO\")","v":""}]
["2.",{"$f":"IF(Materiál_2!$C$17=\"\",\"\",Materiál_2!$C$17)","v":""},{"$f":"IF(Materiál_2!$Y$421=0,\"\",Materiál_2!$Y$421*1.2)","v":""},{"$f":"IF(Materiál_2!$Y$432=0,\"\",Materiál_2!$Y$432*1.2)","v":""},{"$f":"IF(Materiál_2!$Y$431=0,\"\",Materiál_2!$Y$431*1.1)","v":""},{"$f":"IF(Materiál_2!$Y$433=0,\"\",Materiál_2!$Y$433)","v":""},{"$f":"IF(Materiál_2!$Y$422=0,\"\",Materiál_2!$Y$422*1.15)","v":""},{"$f":"IF(Materiál_2!$Y$423=0,\"\",Materiál_2!$Y$423*1.15)","v":""},{"$f":"IF(Materiál_2!$Y$424=0,\"\",Materiál_2!$Y$424*1.15)","v":""},{"$f":"IF(Materiál_2!$Y$425=0,\"\",Materiál_2!$Y$425*1.15)","v":""},{"$f":"IF(Materiál_2!$Y$426=0,\"\",Materiál_2!$Y$426*1.15)","v":""},{"$f":"IF(Materiál_2!$Y$427=0,\"\",Materiál_2!$Y$427*1.15)","v":""},{"$f":"IF(Materiál_2!$Y$430=0,\"\",Materiál_2!$Y$430)","v":""},{"$f":"IF(Materiál_2!$N$17=0,\"\",\"ANO\")","v":""},{"$f":"IF(Materiál_2!$N$14=0,\"\",\"ANO\")","v":""}]
["3.",{"$f":"IF(Materiál_3!$C$17=\"\",\"\",Materiál_3!$C$17)","v":""},{"$f":"IF(Materiál_3!$Y$421=0,\"\",Materiál_3!$Y$421*1.2)","v":""},{"$f":"IF(Materiál_3!$Y$432=0,\"\",Materiál_3!$Y$432*1.2)","v":""},{"$f":"IF(Materiál_3!$Y$431=0,\"\",Materiál_3!$Y$431*1.1)","v":""},{"$f":"IF(Materiál_3!$Y$433=0,\"\",Materiál_3!$Y$433)","v":""},{"$f":"IF(Materiál_3!$Y$422=0,\"\",Materiál_3!$Y$422*1.15)","v":""},{"$f":"IF(Materiál_3!$Y$423=0,\"\",Materiál_3!$Y$423*1.15)","v":""},{"$f":"IF(Materiál_3!$Y$424=0,\"\",Materiál_3!$Y$424*1.15)","v":""},{"$f":"IF(Materiál_3!$Y$425=0,\"\",Materiál_3!$Y$425*1.15)","v":""},{"$f":"IF(Materiál_3!$Y$426=0,\"\",Materiál_3!$Y$426*1.15)","v":""},{"$f":"IF(Materiál_3!$Y$427=0,\"\",Materiál_3!$Y$427*1.15)","v":""},{"$f":"IF(Materiál_3!$Y$430=0,\"\",Materiál_3!$Y$430)","v":""},{"$f":"IF(Materiál_3!$N$17=0,\"\",\"ANO\")","v":""},{"$f":"IF(Materiál_3!$N$14=0,\"\",\"ANO\")","v":""}]
["4.",{"$f":"IF(Materiál_4!$C$17=\"\",\"\",Materiál_4!$C$17)","v":""},{"$f":"IF(Materiál_4!$Y$421=0,\"\",Materiál_4!$Y$421*1.2)","v":""},{"$f":"IF(Materiál_4!$Y$432=0,\"\",Materiál_4!$Y$432*1.2)","v":""},{"$f":"IF(Materiál_4!$Y$431=0,\"\",Materiál_4!$Y$431*1.1)","v":""},{"$f":"IF(Materiál_4!$Y$433=0,\"\",Materiál_4!$Y$433)","v":""},{"$f":"IF(Materiál_4!$Y$422=0,\"\",Materiál_4!$Y$422*1.15)","v":""},{"$f":"IF(Materiál_4!$Y$423=0,\"\",Materiál_4!$Y$423*1.15)","v":""},{"$f":"IF(Materiál_4!$Y$424=0,\"\",Materiál_4!$Y$424*1.15)","v":""},{"$f":"IF(Materiál_4!$Y$425=0,\"\",Materiál_4!$Y$425*1.15)","v":""},{"$f":"IF(Materiál_4!$Y$426=0,\"\",Materiál_4!$Y$426*1.15)","v":""},{"$f":"IF(Materiál_4!$Y$427=0,\"\",Materiál_4!$Y$427*1.15)","v":""},{"$f":"IF(Materiál_4!$Y$430=0,\"\",Materiál_4!$Y$430)","v":""},{"$f":"IF(Materiál_4!$N$17=0,\"\",\"ANO\")","v":""},{"$f":"IF(Materiál_4!$N$14=0,\"\",\"ANO\")","v":""}]
["5.",{"$f":"IF(Materiál_5!$C$17=\"\",\"\",Materiál_5!$C$17)","v":""},{"$f":"IF(Materiál_5!$Y$421=0,\"\",Materiál_5!$Y$421*1.2)","v":""},{"$f":"IF(Materiál_5!$Y$432=0,\"\",Materiál_5!$Y$432*1.2)","v":""},{"$f":"IF(Materiál_5!$Y$431=0,\"\",Materiál_5!$Y$431*1.1)","v":""},{"$f":"IF(Materiál_5!$Y$433=0,\"\",Materiál_5!$Y$433)","v":""},{"$f":"IF(Materiál_5!$Y$422=0,\"\",Materiál_5!$Y$422*1.15)","v":""},{"$f":"IF(Materiál_5!$Y$423=0,\"\",Materiál_5!$Y$423*1.15)","v":""},{"$f":"IF(Materiál_5!$Y$424=0,\"\",Materiál_5!$Y$424*1.15)","v":""},{"$f":"IF(Materiál_5!$Y$425=0,\"\",Materiál_5!$Y$425*1.15)","v":""},{"$f":"IF(Materiál_5!$Y$426=0,\"\",Materiál_5!$Y$426*1.15)","v":""},{"$f":"IF(Materiál_5!$Y$427=0,\"\",Materiál_5!$Y$427*1.15)","v":""},{"$f":"IF(Materiál_5!$Y$430=0,\"\",Materiál_5!$Y$430)","v":""},{"$f":"IF(Materiál_5!$N$17=0,\"\",\"ANO\")","v":""},{"$f":"IF(Materiál_5!$N$14=0,\"\",\"ANO\")","v":""}]
["6.",{"$f":"IF(Materiál_6!$C$17=\"\",\"\",Materiál_6!$C$17)","v":""},{"$f":"IF(Materiál_6!$Y$421=0,\"\",Materiál_6!$Y$421*1.2)","v":""},{"$f":"IF(Materiál_6!$Y$432=0,\"\",Materiál_6!$Y$432*1.2)","v":""},{"$f":"IF(Materiál_6!$Y$431=0,\"\",Materiál_6!$Y$431*1.1)","v":""},{"$f":"IF(Materiál_6!$Y$433=0,\"\",Materiál_6!$Y$433)","v":""},{"$f":"IF(Materiál_6!$Y$422=0,\"\",Materiál_6!$Y$422*1.15)","v":""},{"$f":"IF(Materiál_6!$Y$423=0,\"\",Materiál_6!$Y$423*1.15)","v":""},{"$f":"IF(Materiál_6!$Y$424=0,\"\",Materiál_6!$Y$424*1.15)","v":""},{"$f":"IF(Materiál_6!$Y$425=0,\"\",Materiál_6!$Y$425*1.15)","v":""},{"$f":"IF(Materiál_6!$Y$426=0,\"\",Materiál_6!$Y$426*1.15)","v":""},{"$f":"IF(Materiál_6!$Y$427=0,\"\",Materiál_6!$Y$427*1.15)","v":""},{"$f":"IF(Materiál_6!$Y$430=0,\"\",Materiál_6!$Y$430)","v":""},{"$f":"IF(Materiál_6!$N$17=0,\"\",\"ANO\")","v":""},{"$f":"IF(Materiál_6!$N$14=0,\"\",\"ANO\")","v":""}]
["7.",{"$f":"IF(Materiál_7!$C$17=\"\",\"\",Materiál_7!$C$17)","v":""},{"$f":"IF(Materiál_7!$Y$421=0,\"\",Materiál_7!$Y$421*1.2)","v":""},{"$f":"IF(Materiál_7!$Y$432=0,\"\",Materiál_7!$Y$432*1.2)","v":""},{"$f":"IF(Materiál_7!$Y$431=0,\"\",Materiál_7!$Y$431*1.1)","v":""},{"$f":"IF(Materiál_7!$Y$433=0,\"\",Materiál_7!$Y$433)","v":""},{"$f":"IF(Materiál_7!$Y$422=0,\"\",Materiál_7!$Y$422*1.15)","v":""},{"$f":"IF(Materiál_7!$Y$423=0,\"\",Materiál_7!$Y$423*1.15)","v":""},{"$f":"IF(Materiál_7!$Y$424=0,\"\",Materiál_7!$Y$424*1.15)","v":""},{"$f":"IF(Materiál_7!$Y$425=0,\"\",Materiál_7!$Y$425*1.15)","v":""},{"$f":"IF(Materiál_7!$Y$426=0,\"\",Materiál_7!$Y$426*1.15)","v":""},{"$f":"IF(Materiál_7!$Y$427=0,\"\",Materiál_7!$Y$427*1.15)","v":""},{"$f":"IF(Materiál_7!$Y$430=0,\"\",Materiál_7!$Y$430)","v":""},{"$f":"IF(Materiál_7!$N$17=0,\"\",\"ANO\")","v":""},{"$f":"IF(Materiál_7!$N$14=0,\"\",\"ANO\")","v":""}]
["8.",{"$f":"IF(Materiál_8!$C$17=\"\",\"\",Materiál_8!$C$17)","v":""},{"$f":"IF(Materiál_8!$Y$421=0,\"\",Materiál_8!$Y$421*1.2)","v":""},{"$f":"IF(Materiál_8!$Y$432=0,\"\",Materiál_8!$Y$432*1.2)","v":""},{"$f":"IF(Materiál_8!$Y$431=0,\"\",Materiál_8!$Y$431*1.1)","v":""},{"$f":"IF(Materiál_8!$Y$433=0,\"\",Materiál_8!$Y$433)","v":""},{"$f":"IF(Materiál_8!$Y$422=0,\"\",Materiál_8!$Y$422*1.15)","v":""},{"$f":"IF(Materiál_8!$Y$423=0,\"\",Materiál_8!$Y$423*1.15)","v":""},{"$f":"IF(Materiál_8!$Y$424=0,\"\",Materiál_8!$Y$424*1.15)","v":""},{"$f":"IF(Materiál_8!$Y$425=0,\"\",Materiál_8!$Y$425*1.15)","v":""},{"$f":"IF(Materiál_8!$Y$426=0,\"\",Materiál_8!$Y$426*1.15)","v":""},{"$f":"IF(Materiál_8!$Y$427=0,\"\",Materiál_8!$Y$427*1.15)","v":""},{"$f":"IF(Materiál_8!$Y$430=0,\"\",Materiál_8!$Y$430)","v":""},{"$f":"IF(Materiál_8!$N$17=0,\"\",\"ANO\")","v":""},{"$f":"IF(Materiál_8!$N$14=0,\"\",\"ANO\")","v":""}]
[]
[]
[]
[]
[]
[]
[]
[null,"Součet celé zakázky",{"$f":"SUM(C19:C33)","v":0},{"$f":"ROUND(SUM(D19:D33),1)","v":0},0,0,0,0,0,0,0,0,{"$f":"SUM(M19:M33)","v":0}]
[]
[]
[]
[]
[]
[]
[]
[]
[]
[]
[]
[]
[]
[]
[null,"STANDARTNĚ OLEPUJEME TRANSPARENTNÍM POLYURETANOVÝM LEPIDLEM"]
[null,"OBYČEJNÝM LEPIDLEM \"EVA\" OLEPUJEME POUZE 1X TÝDNĚ   !!!"]
[null,"STANDARTNÍ BALENÍ JE NA PALETU (ZPOPLATNĚNO), POKUD NENÍ UVEDENO JINAK"]
[null,"STANDARTNĚ JE ODBĚR VLASTNÍ, POKUD NENÍ UVEDENO JINAK"]
[]
[]
[]
[]
[]
["!!!!! NEODEBRANÉ ZBYTKY ZE ZAKÁZEK, PROPADAJÍ VE PROSPĚCH NAŠÍ SPOLEČNOSTI !!!!!"]